Workbook

Sheet ORÇAMENTO
B13: TODOS OS VALORES ESTÃO NA UNIDADE MONETÁRIA REAL
B14: ITEM | C14: SERVIÇO | D14: UN | E14: QUANTI. | F14: QUANTI. | G14: VALOR S/ BDI | H14: BDI | I14: VALOR C/ BDI | J14: VALOR TOTAL | K14: CÓDIGO | L14: FONTE | Q14: TEXTO ORIGINAL NA REFERÊNCIA UTILIZADA | R14: Linha na tabela de referência
B15: INICIAL
B16: 1 | C16: =QUANT!C4 -> SERVIÇOS INICIAIS | I16: ∑ | J16: =SUBTOTAL(9,J17:J17) -> 964 | O16: =J16/$J$128 -> 0.00652330729 | Q16: =IF(R16="","",OFFSET(FONTE!$A$1,R16,1,1)) ->  | R16: =IF(ISERROR(MATCH(K16,FONTE!$A$1:$A$12282,0)-1),"",MATCH(K16,FONTE!$A$1:$A$12282,0)-1) -> 
B17: 1.1 | C17: =QUANT!C5 -> Placa de Obra em Chapa de Aço Galvanizado | D17: =IF(R17="","",OFFSET(FONTE!$A$1,R17,2,1)) -> M2 | E17: =QUANT!E5 -> 2.5 | F17: =ROUND(E17,2) -> 2.5 | G17: =OFFSET(FONTE!$A$1,R17,3,1) -> 320.43 | H17: ='BDI 20,34%'!$C$28 -> 0.2034 | I17: =TRUNC(((G17*H17)+G17),2) -> 385.6 | J17: =IF(ISERR(ROUND((F17*I17),2)),"",ROUND((F17*I17),2)) -> 964 | K17: 74209/1 | L17: =OFFSET(FONTE!$A$1,R17,4,1) -> SINAPI | Q17: =IF(R17="","",OFFSET(FONTE!$A$1,R17,1,1)) -> PLACA DE OBRA EM CHAPA DE ACO GALVANIZADO | R17: =IF(ISERROR(MATCH(K17,FONTE!$A$1:$A$12282,0)-1),"",MATCH(K17,FONTE!$A$1:$A$12282,0)-1) -> 5627
B18: 2 | C18: =QUANT!C8 -> DEMOLIÇÕES | I18: ∑ | J18: =SUBTOTAL(9,J19:J23) -> 5380.61 | O18: =J18/$J$128 -> 0.03641013738 | Q18: =IF(R18="","",OFFSET(FONTE!$A$1,R18,1,1)) ->  | R18: =IF(ISERROR(MATCH(K18,FONTE!$A$1:$A$12282,0)-1),"",MATCH(K18,FONTE!$A$1:$A$12282,0)-1) -> 
B19: 2.1 | C19: =QUANT!C9 -> Remoção de Piso Cerâmico e Azulejos | D19: =IF(R19="","",OFFSET(FONTE!$A$1,R19,2,1)) -> M2 | E19: =QUANT!E9 -> 77.995 | F19: =ROUND(E19,2) -> 78 | G19: =OFFSET(FONTE!$A$1,R19,3,1) -> 17.66 | H19: ='BDI 20,34%'!$C$28 -> 0.2034 | I19: =TRUNC(((G19*H19)+G19),2) -> 21.25 | J19: =IF(ISERR(ROUND((F19*I19),2)),"",ROUND((F19*I19),2)) -> 1657.5 | K19: 97633 | L19: =OFFSET(FONTE!$A$1,R19,4,1) -> SINAPI | Q19: =IF(R19="","",OFFSET(FONTE!$A$1,R19,1,1)) -> DEMOLIÇÃO DE REVESTIMENTO CERÂMICO, DE FORMA MANUAL, SEM REAPROVEITAMENTO. AF_12/2017 | R19: =IF(ISERROR(MATCH(K19,FONTE!$A$1:$A$12282,0)-1),"",MATCH(K19,FONTE!$A$1:$A$12282,0)-1) -> 11385
B20: 2.2 | C20: =QUANT!C11 -> Demolição de Piso de Concreto | D20: =IF(R20="","",OFFSET(FONTE!$A$1,R20,2,1)) -> M3 | E20: =QUANT!E11 -> 1.31 | F20: 1.31 | G20: =OFFSET(FONTE!$A$1,R20,3,1) -> 188.82 | H20: ='BDI 20,34%'!$C$28 -> 0.2034 | I20: 227.22 | J20: 297.66 | K20: CRD009 | L20: =OFFSET(FONTE!$A$1,R20,4,1) -> COMPOSIÇÃO | Q20: =IF(R20="","",OFFSET(FONTE!$A$1,R20,1,1)) -> DEMOLIÇÃO DE CONCRETO SIMPLES. DE FORMA MANUAL | R20: =IF(ISERROR(MATCH(K20,FONTE!$A$1:$A$12282,0)-1),"",MATCH(K20,FONTE!$A$1:$A$12282,0)-1) -> 12096
B21: 2.3 | C21: =QUANT!C18 -> Remoção de Telhas de Fibrocimento | D21: =IF(R21="","",OFFSET(FONTE!$A$1,R21,2,1)) -> M2 | E21: =QUANT!E18 -> 283.05 | F21: 283.05 | G21: =OFFSET(FONTE!$A$1,R21,3,1) -> 3.4 | H21: ='BDI 20,34%'!$C$28 -> 0.2034 | I21: 4.09 | J21: 1157.67 | K21: 97649 | L21: =OFFSET(FONTE!$A$1,R21,4,1) -> SINAPI | Q21: =IF(R21="","",OFFSET(FONTE!$A$1,R21,1,1)) -> REMOÇÃO DE TELHAS DE FIBROCIMENTO, METÁLICA E CERÂMICA, DE FORMA MECANIZADA, COM USO DE GUINDASTE, SEM REAPROVEITAMENTO. AF_12/2017 | R21: =IF(ISERROR(MATCH(K21,FONTE!$A$1:$A$12282,0)-1),"",MATCH(K21,FONTE!$A$1:$A$12282,0)-1) -> 11400
B22: 2.4 | C22: =QUANT!C21 -> Remoção de Estrutura de Madeira | D22: =IF(R22="","",OFFSET(FONTE!$A$1,R22,2,1)) -> M2 | E22: =QUANT!E21 -> 283.05 | F22: 283.05 | G22: =OFFSET(FONTE!$A$1,R22,3,1) -> 5.97 | H22: ='BDI 20,34%'!$C$28 -> 0.2034 | I22: 7.18 | J22: 2032.3 | K22: 97650 | L22: =OFFSET(FONTE!$A$1,R22,4,1) -> SINAPI | Q22: =IF(R22="","",OFFSET(FONTE!$A$1,R22,1,1)) -> REMOÇÃO DE TRAMA DE MADEIRA PARA COBERTURA, DE FORMA MANUAL, SEM REAPROVEITAMENTO. AF_12/2017 | R22: =IF(ISERROR(MATCH(K22,FONTE!$A$1:$A$12282,0)-1),"",MATCH(K22,FONTE!$A$1:$A$12282,0)-1) -> 11401
B23: 2.5 | C23: =QUANT!C24 -> Remoção de Forro de PVC (inclusive Estrutura) | D23: =IF(R23="","",OFFSET(FONTE!$A$1,R23,2,1)) -> M2 | E23: =QUANT!E24 -> 145.36 | F23: 145.36 | G23: =OFFSET(FONTE!$A$1,R23,3,1) -> 1.35 | H23: ='BDI 20,34%'!$C$28 -> 0.2034 | I23: 1.62 | J23: 235.48 | K23: 97640 | L23: =OFFSET(FONTE!$A$1,R23,4,1) -> SINAPI | Q23: =IF(R23="","",OFFSET(FONTE!$A$1,R23,1,1)) -> REMOÇÃO DE FORROS DE DRYWALL, PVC E FIBROMINERAL, DE FORMA MANUAL, SEM REAPROVEITAMENTO. AF_12/2017 | R23: =IF(ISERROR(MATCH(K23,FONTE!$A$1:$A$12282,0)-1),"",MATCH(K23,FONTE!$A$1:$A$12282,0)-1) -> 11392
B24: ESTRUTURA
B25: 3 | C25: =QUANT!C27 -> FUNDAÇÃO PROFUNDA | I25: ∑ | J25: =SUBTOTAL(9,J26:J29) -> 4654.93 | O25: =J25/$J$128 -> 0.03149952158 | Q25: =IF(R25="","",OFFSET(FONTE!$A$1,R25,1,1)) ->  | R25: =IF(ISERROR(MATCH(K25,FONTE!$A$1:$A$12282,0)-1),"",MATCH(K25,FONTE!$A$1:$A$12282,0)-1) -> 
B26: 3.1 | C26: Estaca Broca de Concreto Ø20cm, Escavação Manual com Trado Concha, Concreto 25MPa | D26: =IF(R26="","",OFFSET(FONTE!$A$1,R26,2,1)) -> M | E26: =18*2.5 -> 45 | F26: =ROUND(E26,2) -> 45 | G26: =OFFSET(FONTE!$A$1,R26,3,1) -> 51.37 | H26: ='BDI 20,34%'!$C$28 -> 0.2034 | I26: =TRUNC(((G26*H26)+G26),2) -> 61.81 | J26: =IF(ISERR(ROUND((F26*I26),2)),"",ROUND((F26*I26),2)) -> 2781.45 | K26: 98228 | L26: =OFFSET(FONTE!$A$1,R26,4,1) -> SINAPI | Q26: =IF(R26="","",OFFSET(FONTE!$A$1,R26,1,1)) -> ESTACA BROCA DE CONCRETO, DIÃMETRO DE 20 CM, PROFUNDIDADE DE ATÉ 3 M, ESCAVAÇÃO MANUAL COM TRADO CONCHA, NÃO ARMADA. AF_03/2018 | R26: =IF(ISERROR(MATCH(K26,FONTE!$A$1:$A$12282,0)-1),"",MATCH(K26,FONTE!$A$1:$A$12282,0)-1) -> 7274
B27: 3.2 | C27: Armaduras | Q27: =IF(R27="","",OFFSET(FONTE!$A$1,R27,1,1)) ->  | R27: =IF(ISERROR(MATCH(K27,FONTE!$A$1:$A$12282,0)-1),"",MATCH(K27,FONTE!$A$1:$A$12282,0)-1) -> 
B28: 3.2.1 | C28: Armadura CA-60 - 5.0mm (fornecimento, corte, dobra e colocação) | D28: =IF(R28="","",OFFSET(FONTE!$A$1,R28,2,1)) -> KG | E28: 23.56 | F28: =ROUND(E28,2) -> 23.56 | G28: =OFFSET(FONTE!$A$1,R28,3,1) -> 13.2 | H28: ='BDI 20,34%'!$C$28 -> 0.2034 | I28: =TRUNC(((G28*H28)+G28),2) -> 15.88 | J28: =IF(ISERR(ROUND((F28*I28),2)),"",ROUND((F28*I28),2)) -> 374.13 | K28: 92775 | L28: =OFFSET(FONTE!$A$1,R28,4,1) -> SINAPI | Q28: =IF(R28="","",OFFSET(FONTE!$A$1,R28,1,1)) -> ARMAÇÃO DE PILAR OU VIGA DE UMA ESTRUTURA CONVENCIONAL DE CONCRETO ARMADO EM UMA EDIFICAÇÃO TÉRREA OU SOBRADO UTILIZANDO AÇO CA-60 DE 5,0 MM - MONTAGEM. AF_12/2015 | R28: =IF(ISERROR(MATCH(K28,FONTE!$A$1:$A$12282,0)-1),"",MATCH(K28,FONTE!$A$1:$A$12282,0)-1) -> 7512
B29: 3.2.2 | C29: Armadura CA-50 - 8.0mm (fornecimento, corte, dobra e colocação) | D29: =IF(R29="","",OFFSET(FONTE!$A$1,R29,2,1)) -> KG | E29: 117.32 | F29: 117.32 | G29: =OFFSET(FONTE!$A$1,R29,3,1) -> 10.62 | H29: ='BDI 20,34%'!$C$28 -> 0.2034 | I29: 12.78 | J29: 1499.35 | K29: 92777 | L29: =OFFSET(FONTE!$A$1,R29,4,1) -> SINAPI | Q29: =IF(R29="","",OFFSET(FONTE!$A$1,R29,1,1)) -> ARMAÇÃO DE PILAR OU VIGA DE UMA ESTRUTURA CONVENCIONAL DE CONCRETO ARMADO EM UMA EDIFICAÇÃO TÉRREA OU SOBRADO UTILIZANDO AÇO CA-50 DE 8,0 MM - MONTAGEM. AF_12/2015 | R29: =IF(ISERROR(MATCH(K29,FONTE!$A$1:$A$12282,0)-1),"",MATCH(K29,FONTE!$A$1:$A$12282,0)-1) -> 7514
B30: 4 | C30: =QUANT!C31 -> INFRAESTRUTURA | I30: ∑ | J30: =SUBTOTAL(9,J31:J36) -> 4020.93 | O30: =J30/$J$128 -> 0.02720929666 | Q30: =IF(R30="","",OFFSET(FONTE!$A$1,R30,1,1)) ->  | R30: =IF(ISERROR(MATCH(K30,FONTE!$A$1:$A$12282,0)-1),"",MATCH(K30,FONTE!$A$1:$A$12282,0)-1) -> 
B31: 4.1 | C31: =QUANT!C32 -> Escavações Manuais | D31: =IF(R31="","",OFFSET(FONTE!$A$1,R31,2,1)) -> M3 | E31: =QUANT!E32 -> 3.96 | F31: =ROUND(E31,2) -> 3.96 | G31: =OFFSET(FONTE!$A$1,R31,3,1) -> 65.82 | H31: ='BDI 20,34%'!$C$28 -> 0.2034 | I31: =TRUNC(((G31*H31)+G31),2) -> 79.2 | J31: =IF(ISERR(ROUND((F31*I31),2)),"",ROUND((F31*I31),2)) -> 313.63 | K31: 93358 | L31: =OFFSET(FONTE!$A$1,R31,4,1) -> SINAPI | Q31: =IF(R31="","",OFFSET(FONTE!$A$1,R31,1,1)) -> ESCAVAÇÃO MANUAL DE VALA COM PROFUNDIDADE MENOR OU IGUAL A 1,30 M. AF_03/2016 | R31: =IF(ISERROR(MATCH(K31,FONTE!$A$1:$A$12282,0)-1),"",MATCH(K31,FONTE!$A$1:$A$12282,0)-1) -> 10148
B32: 4.2 | C32: =QUANT!C38 -> Forma de Madeira para Concreto (material e mão-de-obra para fabricação, montagem e desforma) | D32: =IF(R32="","",OFFSET(FONTE!$A$1,R32,2,1)) -> M2 | E32: =QUANT!E38 -> 10.26 | F32: 10.26 | G32: =OFFSET(FONTE!$A$1,R32,3,1) -> 72.4 | H32: ='BDI 20,34%'!$C$28 -> 0.2034 | I32: 87.12 | J32: 893.85 | K32: 96534 | L32: =OFFSET(FONTE!$A$1,R32,4,1) -> SINAPI | Q32: =IF(R32="","",OFFSET(FONTE!$A$1,R32,1,1)) -> FABRICAÇÃO, MONTAGEM E DESMONTAGEM DE FÔRMA PARA BLOCO DE COROAMENTO, EM MADEIRA SERRADA, E=25 MM, 4 UTILIZAÇÕES. AF_06/2017 | R32: =IF(ISERROR(MATCH(K32,FONTE!$A$1:$A$12282,0)-1),"",MATCH(K32,FONTE!$A$1:$A$12282,0)-1) -> 7466
B33: 4.3 | C33: =QUANT!C40 -> Armaduras | Q33: =IF(R33="","",OFFSET(FONTE!$A$1,R33,1,1)) ->  | R33: =IF(ISERROR(MATCH(K33,FONTE!$A$1:$A$12282,0)-1),"",MATCH(K33,FONTE!$A$1:$A$12282,0)-1) -> 
B34: 4.3.1 | C34: =QUANT!C41 -> Armadura CA-50 - 8.0mm (fornecimento, corte, dobra e colocação) | D34: =IF(R34="","",OFFSET(FONTE!$A$1,R34,2,1)) -> KG | E34: =QUANT!E41 -> 56.88 | F34: =ROUND(E34,2) -> 56.88 | G34: =OFFSET(FONTE!$A$1,R34,3,1) -> 10.62 | H34: ='BDI 20,34%'!$C$28 -> 0.2034 | I34: =TRUNC(((G34*H34)+G34),2) -> 12.78 | J34: =IF(ISERR(ROUND((F34*I34),2)),"",ROUND((F34*I34),2)) -> 726.93 | K34: 96545 | L34: =OFFSET(FONTE!$A$1,R34,4,1) -> SINAPI | Q34: =IF(R34="","",OFFSET(FONTE!$A$1,R34,1,1)) -> ARMAÇÃO DE BLOCO, VIGA BALDRAME OU SAPATA UTILIZANDO AÇO CA-50 DE 8 MM - MONTAGEM. AF_06/2017 | R34: =IF(ISERROR(MATCH(K34,FONTE!$A$1:$A$12282,0)-1),"",MATCH(K34,FONTE!$A$1:$A$12282,0)-1) -> 7591
B35: 4.3.2 | C35: =QUANT!C43 -> Armadura CA-50 - 10.0mm (fornecimento, corte, dobra e colocação) | D35: =IF(R35="","",OFFSET(FONTE!$A$1,R35,2,1)) -> KG | E35: =QUANT!E43 -> 115.5 | F35: 115.5 | G35: =OFFSET(FONTE!$A$1,R35,3,1) -> 8.63 | H35: ='BDI 20,34%'!$C$28 -> 0.2034 | I35: 10.38 | J35: 1198.89 | K35: 96546 | L35: =OFFSET(FONTE!$A$1,R35,4,1) -> SINAPI | Q35: =IF(R35="","",OFFSET(FONTE!$A$1,R35,1,1)) -> ARMAÇÃO DE BLOCO, VIGA BALDRAME OU SAPATA UTILIZANDO AÇO CA-50 DE 10 MM - MONTAGEM. AF_06/2017 | R35: =IF(ISERROR(MATCH(K35,FONTE!$A$1:$A$12282,0)-1),"",MATCH(K35,FONTE!$A$1:$A$12282,0)-1) -> 7592
B36: 4.4 | C36: =QUANT!C45 -> Concreto Usinado (fornecimento, lançamento, adensamento e bombeado) FCK=25MPA | D36: =IF(R36="","",OFFSET(FONTE!$A$1,R36,2,1)) -> M3 | E36: =QUANT!E45 -> 1.98 | F36: 1.98 | G36: =OFFSET(FONTE!$A$1,R36,3,1) -> 372.53 | H36: ='BDI 20,34%'!$C$28 -> 0.2034 | I36: 448.3 | J36: 887.63 | K36: 96557 | L36: =OFFSET(FONTE!$A$1,R36,4,1) -> SINAPI | Q36: =IF(R36="","",OFFSET(FONTE!$A$1,R36,1,1)) -> CONCRETAGEM DE BLOCOS DE COROAMENTO E VIGAS BALDRAMES, FCK 30 MPA, COM USO DE BOMBA  LANÇAMENTO, ADENSAMENTO E ACABAMENTO. AF_06/2017 | R36: =IF(ISERROR(MATCH(K36,FONTE!$A$1:$A$12282,0)-1),"",MATCH(K36,FONTE!$A$1:$A$12282,0)-1) -> 7664
B37: 5 | C37: =QUANT!C47 -> SUPRAESTRUTURA | I37: ∑ | J37: =SUBTOTAL(9,J38:J42) -> 4352.18 | O37: =J37/$J$128 -> 0.02945083768 | Q37: =IF(R37="","",OFFSET(FONTE!$A$1,R37,1,1)) ->  | R37: =IF(ISERROR(MATCH(K37,FONTE!$A$1:$A$12282,0)-1),"",MATCH(K37,FONTE!$A$1:$A$12282,0)-1) -> 
B38: 5.1 | C38: =QUANT!C48 -> Forma de Madeira Serrada para Concreto, (material e mão-de-obra para fabricação, montagem e desforma) - Pilares | D38: =IF(R38="","",OFFSET(FONTE!$A$1,R38,2,1)) -> M2 | E38: =QUANT!E48 -> 16.83 | F38: =ROUND(E38,2) -> 16.83 | G38: =OFFSET(FONTE!$A$1,R38,3,1) -> 97.66 | H38: ='BDI 20,34%'!$C$28 -> 0.2034 | I38: =TRUNC(((G38*H38)+G38),2) -> 117.52 | J38: =IF(ISERR(ROUND((F38*I38),2)),"",ROUND((F38*I38),2)) -> 1977.86 | K38: 92412 | L38: =OFFSET(FONTE!$A$1,R38,4,1) -> SINAPI | Q38: =IF(R38="","",OFFSET(FONTE!$A$1,R38,1,1)) -> MONTAGEM E DESMONTAGEM DE FÔRMA DE PILARES RETANGULARES E ESTRUTURAS SIMILARES COM ÁREA MÉDIA DAS SEÇÕES MENOR OU IGUAL A 0,25 M², PÉ-DIREITO SIMPLES, EM MADEIRA SERRADA, 4 UTILIZAÇÕES. AF_12/2015 | R38: =IF(ISERROR(MATCH(K38,FONTE!$A$1:$A$12282,0)-1),"",MATCH(K38,FONTE!$A$1:$A$12282,0)-1) -> 7321
B39: 5.2 | C39: =QUANT!C50 -> Armaduras | Q39: =IF(R39="","",OFFSET(FONTE!$A$1,R39,1,1)) ->  | R39: =IF(ISERROR(MATCH(K39,FONTE!$A$1:$A$12282,0)-1),"",MATCH(K39,FONTE!$A$1:$A$12282,0)-1) -> 
B40: 5.2.1 | C40: =QUANT!C51 -> Armadura CA-60 - 5.0MM (fornecimento, corte, dobra e colocação) | D40: =IF(R40="","",OFFSET(FONTE!$A$1,R40,2,1)) -> KG | E40: =QUANT!E51 -> 20.79 | F40: =ROUND(E40,2) -> 20.79 | G40: =OFFSET(FONTE!$A$1,R40,3,1) -> 13.2 | H40: ='BDI 20,34%'!$C$28 -> 0.2034 | I40: =TRUNC(((G40*H40)+G40),2) -> 15.88 | J40: =IF(ISERR(ROUND((F40*I40),2)),"",ROUND((F40*I40),2)) -> 330.15 | K40: 92775 | L40: =OFFSET(FONTE!$A$1,R40,4,1) -> SINAPI | Q40: =IF(R40="","",OFFSET(FONTE!$A$1,R40,1,1)) -> ARMAÇÃO DE PILAR OU VIGA DE UMA ESTRUTURA CONVENCIONAL DE CONCRETO ARMADO EM UMA EDIFICAÇÃO TÉRREA OU SOBRADO UTILIZANDO AÇO CA-60 DE 5,0 MM - MONTAGEM. AF_12/2015 | R40: =IF(ISERROR(MATCH(K40,FONTE!$A$1:$A$12282,0)-1),"",MATCH(K40,FONTE!$A$1:$A$12282,0)-1) -> 7512
B41: 5.2.2 | C41: =QUANT!C53 -> Armadura CA-50 - 12.5MM (fornecimento, corte, dobra e colocação) | D41: =IF(R41="","",OFFSET(FONTE!$A$1,R41,2,1)) -> KG | E41: =QUANT!E53 -> 176.81 | F41: 176.81 | G41: =OFFSET(FONTE!$A$1,R41,3,1) -> 7.5 | H41: ='BDI 20,34%'!$C$28 -> 0.2034 | I41: 9.02 | J41: 1594.83 | K41: 92779 | L41: =OFFSET(FONTE!$A$1,R41,4,1) -> SINAPI | Q41: =IF(R41="","",OFFSET(FONTE!$A$1,R41,1,1)) -> ARMAÇÃO DE PILAR OU VIGA DE UMA ESTRUTURA CONVENCIONAL DE CONCRETO ARMADO EM UMA EDIFICAÇÃO TÉRREA OU SOBRADO UTILIZANDO AÇO CA-50 DE 12,5 MM - MONTAGEM. AF_12/2015 | R41: =IF(ISERROR(MATCH(K41,FONTE!$A$1:$A$12282,0)-1),"",MATCH(K41,FONTE!$A$1:$A$12282,0)-1) -> 7516
B42: 5.3 | C42: =QUANT!C55 -> Concreto Usinado (fornecimento, lançamento, adensamento e bombeado) FCK=25MPA - Pilares | D42: =IF(R42="","",OFFSET(FONTE!$A$1,R42,2,1)) -> M3 | E42: =QUANT!E55 -> 1.04 | F42: 1.04 | G42: =OFFSET(FONTE!$A$1,R42,3,1) -> 359.04 | H42: ='BDI 20,34%'!$C$28 -> 0.2034 | I42: 432.06 | J42: 449.34 | K42: 92720 | L42: =OFFSET(FONTE!$A$1,R42,4,1) -> SINAPI | Q42: =IF(R42="","",OFFSET(FONTE!$A$1,R42,1,1)) -> CONCRETAGEM DE PILARES, FCK = 25 MPA, COM USO DE BOMBA EM EDIFICAÇÃO COM SEÇÃO MÉDIA DE PILARES MENOR OU IGUAL A 0,25 M² - LANÇAMENTO, ADENSAMENTO E ACABAMENTO. AF_12/2015 | R42: =IF(ISERROR(MATCH(K42,FONTE!$A$1:$A$12282,0)-1),"",MATCH(K42,FONTE!$A$1:$A$12282,0)-1) -> 7625
B43: 6 | C43: =QUANT!C57 -> PISO | I43: ∑ | J43: =SUBTOTAL(9,J44:J50) -> 10555.33 | O43: =J43/$J$128 -> 0.07142703437 | Q43: =IF(R43="","",OFFSET(FONTE!$A$1,R43,1,1)) ->  | R43: =IF(ISERROR(MATCH(K43,FONTE!$A$1:$A$12282,0)-1),"",MATCH(K43,FONTE!$A$1:$A$12282,0)-1) -> 
B44: 6.1 | C44: =QUANT!C58 -> Escavações Manuais | D44: =IF(R44="","",OFFSET(FONTE!$A$1,R44,2,1)) -> M3 | E44: =QUANT!E58 -> 19.65 | F44: =ROUND(E44,2) -> 19.65 | G44: =OFFSET(FONTE!$A$1,R44,3,1) -> 65.82 | H44: ='BDI 20,34%'!$C$28 -> 0.2034 | I44: =TRUNC(((G44*H44)+G44),2) -> 79.2 | J44: =IF(ISERR(ROUND((F44*I44),2)),"",ROUND((F44*I44),2)) -> 1556.28 | K44: 93358 | L44: =OFFSET(FONTE!$A$1,R44,4,1) -> SINAPI | Q44: =IF(R44="","",OFFSET(FONTE!$A$1,R44,1,1)) -> ESCAVAÇÃO MANUAL DE VALA COM PROFUNDIDADE MENOR OU IGUAL A 1,30 M. AF_03/2016 | R44: =IF(ISERROR(MATCH(K44,FONTE!$A$1:$A$12282,0)-1),"",MATCH(K44,FONTE!$A$1:$A$12282,0)-1) -> 10148
B45: 6.2 | C45: =QUANT!C63 -> Brita 2 (fornecimento e colocação) | D45: =IF(R45="","",OFFSET(FONTE!$A$1,R45,2,1)) -> M3 | E45: =QUANT!E63 -> 26.106 | F45: 26.11 | G45: =OFFSET(FONTE!$A$1,R45,3,1) -> 82.26 | H45: ='BDI 20,34%'!$C$28 -> 0.2034 | I45: 98.99 | J45: 2584.63 | K45: 88549 | L45: =OFFSET(FONTE!$A$1,R45,4,1) -> SINAPI | Q45: =IF(R45="","",OFFSET(FONTE!$A$1,R45,1,1)) -> FORNECIMENTO E ASSENTAMENTO DE BRITA 2-DRENOS E FILTROS MM | R45: =IF(ISERROR(MATCH(K45,FONTE!$A$1:$A$12282,0)-1),"",MATCH(K45,FONTE!$A$1:$A$12282,0)-1) -> 10258
B46: 6.3 | C46: =QUANT!C71 -> Lona 200 Micras (fornecimento e instalação) | D46: =IF(R46="","",OFFSET(FONTE!$A$1,R46,2,1)) -> M2 | E46: =QUANT!E71 -> 71.64 | F46: 71.64 | G46: =OFFSET(FONTE!$A$1,R46,3,1) -> 4.95 | H46: ='BDI 20,34%'!$C$28 -> 0.2034 | I46: 5.95 | J46: 426.26 | K46: 68053 | L46: =OFFSET(FONTE!$A$1,R46,4,1) -> SINAPI | Q46: =IF(R46="","",OFFSET(FONTE!$A$1,R46,1,1)) -> FORNECIMENTO/INSTALACAO LONA PLASTICA PRETA, PARA IMPERMEABILIZACAO, ESPESSURA 150 MICRAS. | R46: =IF(ISERROR(MATCH(K46,FONTE!$A$1:$A$12282,0)-1),"",MATCH(K46,FONTE!$A$1:$A$12282,0)-1) -> 7768
B47: 6.4 | C47: =QUANT!C79 -> Tela Soldada Q-92 - Aço CA-60 4.2mm - Malha 15x15cm (fornecimento, corte e instalação) | D47: =IF(R47="","",OFFSET(FONTE!$A$1,R47,2,1)) -> M2 | E47: =QUANT!E79 -> 71.64 | F47: 71.64 | G47: =OFFSET(FONTE!$A$1,R47,3,1) -> 11.32 | H47: ='BDI 20,34%'!$C$28 -> 0.2034 | I47: 13.62 | J47: 975.74 | K47: 85662 | L47: =OFFSET(FONTE!$A$1,R47,4,1) -> SINAPI | Q47: =IF(R47="","",OFFSET(FONTE!$A$1,R47,1,1)) -> ARMACAO EM TELA DE ACO SOLDADA NERVURADA Q-92, ACO CA-60, 4,2MM, MALHA 15X15CM | R47: =IF(ISERROR(MATCH(K47,FONTE!$A$1:$A$12282,0)-1),"",MATCH(K47,FONTE!$A$1:$A$12282,0)-1) -> 7479
B48: 6.5 | C48: =QUANT!C81 -> Piso em Concreto 25 Mpa | D48: =IF(R48="","",OFFSET(FONTE!$A$1,R48,2,1)) -> M3 | E48: =QUANT!E81 -> 5.5582 | F48: 5.56 | G48: =OFFSET(FONTE!$A$1,R48,3,1) -> 314.27 | H48: ='BDI 20,34%'!$C$28 -> 0.2034 | I48: 378.19 | J48: 2102.74 | K48: CED100 | L48: =OFFSET(FONTE!$A$1,R48,4,1) -> COMPOSIÇÃO | Q48: =IF(R48="","",OFFSET(FONTE!$A$1,R48,1,1)) -> CONCRETAGEM DE PISO, FCK 25 MPA, PARA ESPESSURA DE 5 À 15 CM - LANÇAMENTO, ADENSAMENTO E ACABAMENTO. | R48: =IF(ISERROR(MATCH(K48,FONTE!$A$1:$A$12282,0)-1),"",MATCH(K48,FONTE!$A$1:$A$12282,0)-1) -> 12117
B49: 6.6 | C49: =QUANT!C89 -> Contrapiso/Regularização em Argamassa, e=3cm | D49: =IF(R49="","",OFFSET(FONTE!$A$1,R49,2,1)) -> M2 | E49: =QUANT!E89 -> 71.71 | F49: 71.71 | G49: =OFFSET(FONTE!$A$1,R49,3,1) -> 32.23 | H49: ='BDI 20,34%'!$C$28 -> 0.2034 | I49: 38.78 | J49: 2780.91 | K49: 87630 | L49: =OFFSET(FONTE!$A$1,R49,4,1) -> SINAPI | Q49: =IF(R49="","",OFFSET(FONTE!$A$1,R49,1,1)) -> CONTRAPISO EM ARGAMASSA TRAÇO 1:4 (CIMENTO E AREIA), PREPARO MECÂNICO COM BETONEIRA 400 L, APLICADO EM ÁREAS SECAS SOBRE LAJE, ADERIDO, ESPESSURA 3CM. AF_06/2014 | R49: =IF(ISERROR(MATCH(K49,FONTE!$A$1:$A$12282,0)-1),"",MATCH(K49,FONTE!$A$1:$A$12282,0)-1) -> 10736
B50: 6.7 | C50: =QUANT!C95 -> Guia de Travamento com Blocos de Concreto 14x19x39 | D50: =IF(R50="","",OFFSET(FONTE!$A$1,R50,2,1)) -> M2 | E50: =QUANT!E95 -> 1.64 | F50: 1.64 | G50: =OFFSET(FONTE!$A$1,R50,3,1) -> 65.25 | H50: ='BDI 20,34%'!$C$28 -> 0.2034 | I50: 78.52 | J50: 128.77 | K50: 87455 | L50: =OFFSET(FONTE!$A$1,R50,4,1) -> SINAPI | Q50: =IF(R50="","",OFFSET(FONTE!$A$1,R50,1,1)) -> ALVENARIA DE VEDAÇÃO DE BLOCOS VAZADOS DE CONCRETO DE 14X19X39CM (ESPESSURA 14CM) DE PAREDES COM ÁREA LÍQUIDA MAIOR OU IGUAL A 6M² SEM VÃOS E ARGAMASSA DE ASSENTAMENTO COM PREPARO EM BETONEIRA. AF_06/2014 | R50: =IF(ISERROR(MATCH(K50,FONTE!$A$1:$A$12282,0)-1),"",MATCH(K50,FONTE!$A$1:$A$12282,0)-1) -> 10370
B51: 7 | C51: FECHAMENTOS | I51: ∑ | J51: =SUBTOTAL(9,J52) -> 905.26 | O51: =J51/$J$128 -> 0.006125818628 | Q51: =IF(R51="","",OFFSET(FONTE!$A$1,R51,1,1)) ->  | R51: =IF(ISERROR(MATCH(K51,FONTE!$A$1:$A$12282,0)-1),"",MATCH(K51,FONTE!$A$1:$A$12282,0)-1) -> 
B52: 7.1 | C52: Alvenaria de Tijolos Cerâmicos Furados, e=9cm (12cm acabada) | D52: =IF(R52="","",OFFSET(FONTE!$A$1,R52,2,1)) -> M2 | E52: =(1.5+1.5+2.12+2.12-0.9-0.9)*2.1 -> 11.424 | F52: =ROUND(E52,2) -> 11.42 | G52: =OFFSET(FONTE!$A$1,R52,3,1) -> 65.88 | H52: ='BDI 20,34%'!$C$28 -> 0.2034 | I52: =TRUNC(((G52*H52)+G52),2) -> 79.27 | J52: =IF(ISERR(ROUND((F52*I52),2)),"",ROUND((F52*I52),2)) -> 905.26 | K52: 87519 | L52: =OFFSET(FONTE!$A$1,R52,4,1) -> SINAPI | Q52: =IF(R52="","",OFFSET(FONTE!$A$1,R52,1,1)) -> ALVENARIA DE VEDAÇÃO DE BLOCOS CERÂMICOS FURADOS NA HORIZONTAL DE 9X19X19CM (ESPESSURA 9CM) DE PAREDES COM ÁREA LÍQUIDA MAIOR OU IGUAL A 6M² COM VÃOS E ARGAMASSA DE ASSENTAMENTO COM PREPARO EM BETONEIRA. AF_06/2014 | R52: =IF(ISERROR(MATCH(K52,FONTE!$A$1:$A$12282,0)-1),"",MATCH(K52,FONTE!$A$1:$A$12282,0)-1) -> 10316
B53: 8 | C53: =QUANT!C97 -> COBERTURA | I53: ∑ | J53: =SUBTOTAL(9,J55:J60) -> 63208.84 | O53: =J53/$J$128 -> 0.4277289282 | Q53: =IF(R53="","",OFFSET(FONTE!$A$1,R53,1,1)) ->  | R53: =IF(ISERROR(MATCH(K53,FONTE!$A$1:$A$12282,0)-1),"",MATCH(K53,FONTE!$A$1:$A$12282,0)-1) -> 
B54: 8.1 | C54: Estrutura de madeira da cobertura | Q54: =IF(R54="","",OFFSET(FONTE!$A$1,R54,1,1)) ->  | R54: =IF(ISERROR(MATCH(K54,FONTE!$A$1:$A$12282,0)-1),"",MATCH(K54,FONTE!$A$1:$A$12282,0)-1) -> 
B55: 8.1.1 | C55: =QUANT!C98 -> Estrutura em Madeira Aparelhada (Angelim ou equivalente da região) para Telha Ondulada, Composta por Ripas, Caibros e Terças | D55: =IF(R55="","",OFFSET(FONTE!$A$1,R55,2,1)) -> M2 | E55: =QUANT!E98 -> 283.05 | F55: =ROUND(E55,2) -> 283.05 | G55: =OFFSET(FONTE!$A$1,R55,3,1) -> 20.2 | H55: ='BDI 20,34%'!$C$28 -> 0.2034 | I55: =TRUNC(((G55*H55)+G55),2) -> 24.3 | J55: =IF(ISERR(ROUND((F55*I55),2)),"",ROUND((F55*I55),2)) -> 6878.12 | K55: 92543 | L55: =OFFSET(FONTE!$A$1,R55,4,1) -> SINAPI | Q55: =IF(R55="","",OFFSET(FONTE!$A$1,R55,1,1)) -> TRAMA DE MADEIRA COMPOSTA POR TERÇAS PARA TELHADOS DE ATÉ 2 ÁGUAS PARA TELHA ONDULADA DE FIBROCIMENTO, METÁLICA, PLÁSTICA OU TERMOACÚSTICA, INCLUSO TRANSPORTE VERTICAL. AF_12/2015 | R55: =IF(ISERROR(MATCH(K55,FONTE!$A$1:$A$12282,0)-1),"",MATCH(K55,FONTE!$A$1:$A$12282,0)-1) -> 6511
B56: 8.1.2 | C56: Tesoura de Madeira (Angelim ou equivalente da região), vão de 6m, instalada. | D56: =IF(R56="","",OFFSET(FONTE!$A$1,R56,2,1)) -> UN | E56: 3 | F56: 3 | G56: =OFFSET(FONTE!$A$1,R56,3,1) -> 798.63 | H56: ='BDI 20,34%'!$C$28 -> 0.2034 | I56: 961.07 | J56: 2883.21 | K56: CED500 | L56: =OFFSET(FONTE!$A$1,R56,4,1) -> COMPOSIÇÃO | Q56: =IF(R56="","",OFFSET(FONTE!$A$1,R56,1,1)) -> FABRICAÇÃO E INSTALAÇÃO DE TESOURA INTEIRA EM MADEIRA NÃO APARELHADA, VÃO DE 6 M, PARA TELHA ONDULADA DE FIBROCIMENTO, METÁLICA, PLÁSTICA OU TERMOACÚSTICA. | R56: =IF(ISERROR(MATCH(K56,FONTE!$A$1:$A$12282,0)-1),"",MATCH(K56,FONTE!$A$1:$A$12282,0)-1) -> 12111
B57: 8.1.3 | C57: Tesoura de Madeira (Angelim ou equivalente da região), vão de 9m, instalada. | D57: =IF(R57="","",OFFSET(FONTE!$A$1,R57,2,1)) -> UN | E57: 4 | F57: 4 | G57: =OFFSET(FONTE!$A$1,R57,3,1) -> 1423.72 | H57: ='BDI 20,34%'!$C$28 -> 0.2034 | I57: 1713.3 | J57: 6853.2 | K57: CED501 | L57: =OFFSET(FONTE!$A$1,R57,4,1) -> COMPOSIÇÃO | Q57: =IF(R57="","",OFFSET(FONTE!$A$1,R57,1,1)) -> FABRICAÇÃO E INSTALAÇÃO DE TESOURA INTEIRA EM MADEIRA NÃO APARELHADA, VÃO DE 9 M, PARA TELHA ONDULADA DE FIBROCIMENTO, METÁLICA, PLÁSTICA | R57: =IF(ISERROR(MATCH(K57,FONTE!$A$1:$A$12282,0)-1),"",MATCH(K57,FONTE!$A$1:$A$12282,0)-1) -> 12112
B58: 8.2 | C58: =QUANT!C101 -> Telha Sanduíche, Composta por: - Telha em Galvalume, e=0,5mm, Trapezoidal 40cm (TP40) - Preenchimento de Lã de Rocha 50mm - Telha em Galvalume, e=0,5mm, Trapezoidal 40cm (TP40) | D58: =IF(R58="","",OFFSET(FONTE!$A$1,R58,2,1)) -> M2 | E58: =QUANT!E101 -> 283.05 | F58: 283.05 | G58: =OFFSET(FONTE!$A$1,R58,3,1) -> 102.83 | H58: ='BDI 20,34%'!$C$28 -> 0.2034 | I58: 123.74 | J58: 35024.61 | K58: CED101 | L58: =OFFSET(FONTE!$A$1,R58,4,1) -> COMPOSIÇÃO | Q58: =IF(R58="","",OFFSET(FONTE!$A$1,R58,1,1)) -> TELHA METÁLICA COM ISOLAMENTO DE LÃ DE ROCHA | R58: =IF(ISERROR(MATCH(K58,FONTE!$A$1:$A$12282,0)-1),"",MATCH(K58,FONTE!$A$1:$A$12282,0)-1) -> 12118
B59: 8.3 | C59: Calhas em Chapa em Aço Galvanizado, em Chapa 24 (e=0,65mm), desenvolvimento 50cm | D59: =IF(R59="","",OFFSET(FONTE!$A$1,R59,2,1)) -> M | E59: =5.05+13.5+13.5+8.4+13.1+2.65 -> 56.2 | F59: 56.2 | G59: =OFFSET(FONTE!$A$1,R59,3,1) -> 65.49 | H59: ='BDI 20,34%'!$C$28 -> 0.2034 | I59: 78.81 | J59: 4429.12 | K59: 94228 | L59: =OFFSET(FONTE!$A$1,R59,4,1) -> SINAPI | Q59: =IF(R59="","",OFFSET(FONTE!$A$1,R59,1,1)) -> CALHA EM CHAPA DE AÇO GALVANIZADO NÚMERO 24, DESENVOLVIMENTO DE 50 CM, INCLUSO TRANSPORTE VERTICAL. AF_06/2016 | R59: =IF(ISERROR(MATCH(K59,FONTE!$A$1:$A$12282,0)-1),"",MATCH(K59,FONTE!$A$1:$A$12282,0)-1) -> 6580
B60: 8.4 | C60: Rufos em Chapa em Aço Galvanizado, em Chapa 24 (e=0,65mm), desenvolvimento 25cm | D60: =IF(R60="","",OFFSET(FONTE!$A$1,R60,2,1)) -> M | E60: =238.4358/2+8.6+8.6+1.6+1.6+11.3+6.15+3.1+8.25+4.75+4.75+1.45+1.45 -> 180.8179 | F60: 180.82 | G60: =OFFSET(FONTE!$A$1,R60,3,1) -> 32.82 | H60: ='BDI 20,34%'!$C$28 -> 0.2034 | I60: 39.49 | J60: 7140.58 | K60: 94231 | L60: =OFFSET(FONTE!$A$1,R60,4,1) -> SINAPI | Q60: =IF(R60="","",OFFSET(FONTE!$A$1,R60,1,1)) -> RUFO EM CHAPA DE AÇO GALVANIZADO NÚMERO 24, CORTE DE 25 CM, INCLUSO TRANSPORTE VERTICAL. AF_06/2016 | R60: =IF(ISERROR(MATCH(K60,FONTE!$A$1:$A$12282,0)-1),"",MATCH(K60,FONTE!$A$1:$A$12282,0)-1) -> 6582
B61: 9 | C61: INSTALAÇÕES ELÉTRICAS | I61: ∑ | J61: =SUBTOTAL(9,J62:J64) -> 2955.3 | O61: =J61/$J$128 -> 0.01999826767 | Q61: =IF(R61="","",OFFSET(FONTE!$A$1,R61,1,1)) ->  | R61: =IF(ISERROR(MATCH(K61,FONTE!$A$1:$A$12282,0)-1),"",MATCH(K61,FONTE!$A$1:$A$12282,0)-1) -> 
B62: 9.1 | C62: Mão de Obra de Revisão Elétrica (organização disjuntores, equilibrio das fases, revisão e trocas de condutores) | D62: =IF(R62="","",OFFSET(FONTE!$A$1,R62,2,1)) -> H | E62: =10*3 -> 30 | F62: =ROUND(E62,2) -> 30 | G62: =OFFSET(FONTE!$A$1,R62,3,1) -> 50.95 | H62: ='BDI 20,34%'!$C$28 -> 0.2034 | I62: =TRUNC(((G62*H62)+G62),2) -> 61.31 | J62: =IF(ISERR(ROUND((F62*I62),2)),"",ROUND((F62*I62),2)) -> 1839.3 | K62: CEL100 | L62: =OFFSET(FONTE!$A$1,R62,4,1) -> COMPOSIÇÃO | Q62: =IF(R62="","",OFFSET(FONTE!$A$1,R62,1,1)) -> MÃO DE OBRA DE REVISÃO ELÉTRICA | R62: =IF(ISERROR(MATCH(K62,FONTE!$A$1:$A$12282,0)-1),"",MATCH(K62,FONTE!$A$1:$A$12282,0)-1) -> 12136
B63: 9.2 | C63: Cabo de Cobre Isolado 1,5mm2 - 1KV | D63: =IF(R63="","",OFFSET(FONTE!$A$1,R63,2,1)) -> M | E63: 300 | F63: 300 | G63: =OFFSET(FONTE!$A$1,R63,3,1) -> 1.3 | H63: ='BDI 20,34%'!$C$28 -> 0.2034 | I63: 1.56 | J63: 468 | K63: 993 | L63: =OFFSET(FONTE!$A$1,R63,4,1) -> SINAPI-I | Q63: =IF(R63="","",OFFSET(FONTE!$A$1,R63,1,1)) -> CABO DE COBRE, FLEXIVEL, CLASSE 4 OU 5, ISOLACAO EM PVC/A, ANTICHAMA BWF-B, COBERTURA PVC-ST1, ANTICHAMA BWF-B, 1 CONDUTOR, 0,6/1 KV, SECAO NOMINAL 1,5 MM2 | R63: =IF(ISERROR(MATCH(K63,FONTE!$A$1:$A$12282,0)-1),"",MATCH(K63,FONTE!$A$1:$A$12282,0)-1) -> 800
B64: 9.3 | C64: Cabo de Cobre Isolado 2,5mm2 - 1KV | D64: =IF(R64="","",OFFSET(FONTE!$A$1,R64,2,1)) -> M | E64: 300 | F64: 300 | G64: =OFFSET(FONTE!$A$1,R64,3,1) -> 1.8 | H64: ='BDI 20,34%'!$C$28 -> 0.2034 | I64: 2.16 | J64: 648 | K64: 1022 | L64: =OFFSET(FONTE!$A$1,R64,4,1) -> SINAPI-I | Q64: =IF(R64="","",OFFSET(FONTE!$A$1,R64,1,1)) -> CABO DE COBRE, FLEXIVEL, CLASSE 4 OU 5, ISOLACAO EM PVC/A, ANTICHAMA BWF-B, COBERTURA PVC-ST1, ANTICHAMA BWF-B, 1 CONDUTOR, 0,6/1 KV, SECAO NOMINAL 2,5 MM2 | R64: =IF(ISERROR(MATCH(K64,FONTE!$A$1:$A$12282,0)-1),"",MATCH(K64,FONTE!$A$1:$A$12282,0)-1) -> 806
B65: 10 | C65: REDE HIDRÁULICA | I65: ∑ | J65: =SUBTOTAL(9,J66:J81) -> 420.91 | O65: =J65/$J$128 -> 0.00284826273 | Q65: =IF(R65="","",OFFSET(FONTE!$A$1,R65,1,1)) ->  | R65: =IF(ISERROR(MATCH(K65,FONTE!$A$1:$A$12282,0)-1),"",MATCH(K65,FONTE!$A$1:$A$12282,0)-1) -> 
B66: 10.1 | C66: Bucha de Redução Soldável Longa | Q66: =IF(R66="","",OFFSET(FONTE!$A$1,R66,1,1)) ->  | R66: =IF(ISERROR(MATCH(K66,FONTE!$A$1:$A$12282,0)-1),"",MATCH(K66,FONTE!$A$1:$A$12282,0)-1) -> 
B67: 10.1.1 | C67: 50mm - 25mm | D67: =IF(R67="","",OFFSET(FONTE!$A$1,R67,2,1)) -> UN | E67: 1 | F67: =ROUND(E67,2) -> 1 | G67: =OFFSET(FONTE!$A$1,R67,3,1) -> 6.83 | H67: ='BDI 20,34%'!$C$28 -> 0.2034 | I67: =TRUNC(((G67*H67)+G67),2) -> 8.21 | J67: =IF(ISERR(ROUND((F67*I67),2)),"",ROUND((F67*I67),2)) -> 8.21 | K67: CHD011 | L67: =OFFSET(FONTE!$A$1,R67,4,1) -> COMPOSIÇÃO | Q67: =IF(R67="","",OFFSET(FONTE!$A$1,R67,1,1)) -> BUCHA DE REDUCAO DE PVC, SOLDAVEL, LONGA, COM 50 X 25 MM, PARA AGUA FRIA PREDIAL - FORNECIMENTO E INSTALAÇÃO | R67: =IF(ISERROR(MATCH(K67,FONTE!$A$1:$A$12282,0)-1),"",MATCH(K67,FONTE!$A$1:$A$12282,0)-1) -> 12161
B68: 10.2 | C68: Joelho 45° Soldável | Q68: =IF(R68="","",OFFSET(FONTE!$A$1,R68,1,1)) ->  | R68: =IF(ISERROR(MATCH(K68,FONTE!$A$1:$A$12282,0)-1),"",MATCH(K68,FONTE!$A$1:$A$12282,0)-1) -> 
B69: 10.2.1 | C69: 50mm | D69: =IF(R69="","",OFFSET(FONTE!$A$1,R69,2,1)) -> UN | E69: 2 | F69: =ROUND(E69,2) -> 2 | G69: =OFFSET(FONTE!$A$1,R69,3,1) -> 10.61 | H69: ='BDI 20,34%'!$C$28 -> 0.2034 | I69: =TRUNC(((G69*H69)+G69),2) -> 12.76 | J69: =IF(ISERR(ROUND((F69*I69),2)),"",ROUND((F69*I69),2)) -> 25.52 | K69: 89502 | L69: =OFFSET(FONTE!$A$1,R69,4,1) -> SINAPI | Q69: =IF(R69="","",OFFSET(FONTE!$A$1,R69,1,1)) -> JOELHO 45 GRAUS, PVC, SOLDÁVEL, DN 50MM, INSTALADO EM PRUMADA DE ÁGUA - FORNECIMENTO E INSTALAÇÃO. AF_12/2014 | R69: =IF(ISERROR(MATCH(K69,FONTE!$A$1:$A$12282,0)-1),"",MATCH(K69,FONTE!$A$1:$A$12282,0)-1) -> 8714
B70: 10.3 | C70: Joelho 90° Soldável | Q70: =IF(R70="","",OFFSET(FONTE!$A$1,R70,1,1)) ->  | R70: =IF(ISERROR(MATCH(K70,FONTE!$A$1:$A$12282,0)-1),"",MATCH(K70,FONTE!$A$1:$A$12282,0)-1) -> 
B71: 10.3.1 | C71: 25mm | D71: =IF(R71="","",OFFSET(FONTE!$A$1,R71,2,1)) -> UN | E71: 18 | F71: =ROUND(E71,2) -> 18 | G71: =OFFSET(FONTE!$A$1,R71,3,1) -> 4.7 | H71: ='BDI 20,34%'!$C$28 -> 0.2034 | I71: =TRUNC(((G71*H71)+G71),2) -> 5.65 | J71: =IF(ISERR(ROUND((F71*I71),2)),"",ROUND((F71*I71),2)) -> 101.7 | K71: 89408 | L71: =OFFSET(FONTE!$A$1,R71,4,1) -> SINAPI | Q71: =IF(R71="","",OFFSET(FONTE!$A$1,R71,1,1)) -> JOELHO 90 GRAUS, PVC, SOLDÁVEL, DN 25MM, INSTALADO EM RAMAL DE DISTRIBUIÇÃO DE ÁGUA - FORNECIMENTO E INSTALAÇÃO. AF_12/2014 | R71: =IF(ISERROR(MATCH(K71,FONTE!$A$1:$A$12282,0)-1),"",MATCH(K71,FONTE!$A$1:$A$12282,0)-1) -> 8663
B72: 10.3.2 | C72: 50mm | D72: =IF(R72="","",OFFSET(FONTE!$A$1,R72,2,1)) -> UN | E72: 3 | F72: 3 | G72: =OFFSET(FONTE!$A$1,R72,3,1) -> 9.52 | H72: ='BDI 20,34%'!$C$28 -> 0.2034 | I72: 11.45 | J72: 34.35 | K72: 89501 | L72: =OFFSET(FONTE!$A$1,R72,4,1) -> SINAPI | Q72: =IF(R72="","",OFFSET(FONTE!$A$1,R72,1,1)) -> JOELHO 90 GRAUS, PVC, SOLDÁVEL, DN 50MM, INSTALADO EM PRUMADA DE ÁGUA - FORNECIMENTO E INSTALAÇÃO. AF_12/2014 | R72: =IF(ISERROR(MATCH(K72,FONTE!$A$1:$A$12282,0)-1),"",MATCH(K72,FONTE!$A$1:$A$12282,0)-1) -> 8713
B73: 10.4 | C73: Tê 90° Soldável | Q73: =IF(R73="","",OFFSET(FONTE!$A$1,R73,1,1)) ->  | R73: =IF(ISERROR(MATCH(K73,FONTE!$A$1:$A$12282,0)-1),"",MATCH(K73,FONTE!$A$1:$A$12282,0)-1) -> 
B74: 10.4.1 | C74: 50mm | D74: =IF(R74="","",OFFSET(FONTE!$A$1,R74,2,1)) -> UN | E74: 1 | F74: =ROUND(E74,2) -> 1 | G74: =OFFSET(FONTE!$A$1,R74,3,1) -> 14.56 | H74: ='BDI 20,34%'!$C$28 -> 0.2034 | I74: =TRUNC(((G74*H74)+G74),2) -> 17.52 | J74: =IF(ISERR(ROUND((F74*I74),2)),"",ROUND((F74*I74),2)) -> 17.52 | K74: 89625 | L74: =OFFSET(FONTE!$A$1,R74,4,1) -> SINAPI | Q74: =IF(R74="","",OFFSET(FONTE!$A$1,R74,1,1)) -> TE, PVC, SOLDÁVEL, DN 50MM, INSTALADO EM PRUMADA DE ÁGUA - FORNECIMENTO E INSTALAÇÃO. AF_12/2014 | R74: =IF(ISERROR(MATCH(K74,FONTE!$A$1:$A$12282,0)-1),"",MATCH(K74,FONTE!$A$1:$A$12282,0)-1) -> 8817
B75: 10.5 | C75: Tê de Redução 90° Soldável | Q75: =IF(R75="","",OFFSET(FONTE!$A$1,R75,1,1)) ->  | R75: =IF(ISERROR(MATCH(K75,FONTE!$A$1:$A$12282,0)-1),"",MATCH(K75,FONTE!$A$1:$A$12282,0)-1) -> 
B76: 10.5.1 | C76: 50mm - 25mm | D76: =IF(R76="","",OFFSET(FONTE!$A$1,R76,2,1)) -> UN | E76: 2 | F76: =ROUND(E76,2) -> 2 | G76: =OFFSET(FONTE!$A$1,R76,3,1) -> 13.84 | H76: ='BDI 20,34%'!$C$28 -> 0.2034 | I76: =TRUNC(((G76*H76)+G76),2) -> 16.65 | J76: =IF(ISERR(ROUND((F76*I76),2)),"",ROUND((F76*I76),2)) -> 33.3 | K76: 89627 | L76: =OFFSET(FONTE!$A$1,R76,4,1) -> SINAPI | Q76: =IF(R76="","",OFFSET(FONTE!$A$1,R76,1,1)) -> TÊ DE REDUÇÃO, PVC, SOLDÁVEL, DN 50MM X 25MM, INSTALADO EM PRUMADA DE ÁGUA - FORNECIMENTO E INSTALAÇÃO. AF_12/2014 | R76: =IF(ISERROR(MATCH(K76,FONTE!$A$1:$A$12282,0)-1),"",MATCH(K76,FONTE!$A$1:$A$12282,0)-1) -> 8819
B77: 10.6 | C77: Tubos PVC Soldável | Q77: =IF(R77="","",OFFSET(FONTE!$A$1,R77,1,1)) ->  | R77: =IF(ISERROR(MATCH(K77,FONTE!$A$1:$A$12282,0)-1),"",MATCH(K77,FONTE!$A$1:$A$12282,0)-1) -> 
B78: 10.6.1 | C78: 25mm | D78: =IF(R78="","",OFFSET(FONTE!$A$1,R78,2,1)) -> M | E78: 9.6 | F78: =ROUND(E78,2) -> 9.6 | G78: =OFFSET(FONTE!$A$1,R78,3,1) -> 6.9 | H78: ='BDI 20,34%'!$C$28 -> 0.2034 | I78: =TRUNC(((G78*H78)+G78),2) -> 8.3 | J78: =IF(ISERR(ROUND((F78*I78),2)),"",ROUND((F78*I78),2)) -> 79.68 | K78: 89402 | L78: =OFFSET(FONTE!$A$1,R78,4,1) -> SINAPI | Q78: =IF(R78="","",OFFSET(FONTE!$A$1,R78,1,1)) -> TUBO, PVC, SOLDÁVEL, DN 25MM, INSTALADO EM RAMAL DE DISTRIBUIÇÃO DE ÁGUA - FORNECIMENTO E INSTALAÇÃO. AF_12/2014 | R78: =IF(ISERROR(MATCH(K78,FONTE!$A$1:$A$12282,0)-1),"",MATCH(K78,FONTE!$A$1:$A$12282,0)-1) -> 8389
B79: 10.6.2 | C79: 50mm | D79: =IF(R79="","",OFFSET(FONTE!$A$1,R79,2,1)) -> M | E79: 2.7 | F79: 2.7 | G79: =OFFSET(FONTE!$A$1,R79,3,1) -> 10.2 | H79: ='BDI 20,34%'!$C$28 -> 0.2034 | I79: 12.27 | J79: 33.13 | K79: 89449 | L79: =OFFSET(FONTE!$A$1,R79,4,1) -> SINAPI | Q79: =IF(R79="","",OFFSET(FONTE!$A$1,R79,1,1)) -> TUBO, PVC, SOLDÁVEL, DN 50MM, INSTALADO EM PRUMADA DE ÁGUA - FORNECIMENTO E INSTALAÇÃO. AF_12/2014 | R79: =IF(ISERROR(MATCH(K79,FONTE!$A$1:$A$12282,0)-1),"",MATCH(K79,FONTE!$A$1:$A$12282,0)-1) -> 8394
B80: 10.7 | C80: Joelho 90° Soldável com Bucha de Latão | Q80: =IF(R80="","",OFFSET(FONTE!$A$1,R80,1,1)) ->  | R80: =IF(ISERROR(MATCH(K80,FONTE!$A$1:$A$12282,0)-1),"",MATCH(K80,FONTE!$A$1:$A$12282,0)-1) -> 
B81: 10.7.1 | C81: 25mm - 1/2" | D81: =IF(R81="","",OFFSET(FONTE!$A$1,R81,2,1)) -> UN | E81: 7 | F81: =ROUND(E81,2) -> 7 | G81: =OFFSET(FONTE!$A$1,R81,3,1) -> 10.39 | H81: ='BDI 20,34%'!$C$28 -> 0.2034 | I81: =TRUNC(((G81*H81)+G81),2) -> 12.5 | J81: =IF(ISERR(ROUND((F81*I81),2)),"",ROUND((F81*I81),2)) -> 87.5 | K81: 90373 | L81: =OFFSET(FONTE!$A$1,R81,4,1) -> SINAPI | Q81: =IF(R81="","",OFFSET(FONTE!$A$1,R81,1,1)) -> JOELHO 90 GRAUS COM BUCHA DE LATÃO, PVC, SOLDÁVEL, DN 25MM, X 1/2 INSTALADO EM RAMAL OU SUB-RAMAL DE ÁGUA - FORNECIMENTO E INSTALAÇÃO. AF_12/2014 | R81: =IF(ISERROR(MATCH(K81,FONTE!$A$1:$A$12282,0)-1),"",MATCH(K81,FONTE!$A$1:$A$12282,0)-1) -> 9035
B82: 11 | C82: REDE SANITÁRIA | I82: ∑ | J82: =SUBTOTAL(9,J83:J93) -> 430.45 | O82: =J82/$J$128 -> 0.002912819111 | Q82: =IF(R82="","",OFFSET(FONTE!$A$1,R82,1,1)) ->  | R82: =IF(ISERROR(MATCH(K82,FONTE!$A$1:$A$12282,0)-1),"",MATCH(K82,FONTE!$A$1:$A$12282,0)-1) -> 
B83: 11.1 | C83: Caixa sifonada | Q83: =IF(R83="","",OFFSET(FONTE!$A$1,R83,1,1)) ->  | R83: =IF(ISERROR(MATCH(K83,FONTE!$A$1:$A$12282,0)-1),"",MATCH(K83,FONTE!$A$1:$A$12282,0)-1) -> 
B84: 11.1.1 | C84: 150x150x50 | D84: =IF(R84="","",OFFSET(FONTE!$A$1,R84,2,1)) -> UN | E84: 3 | F84: =ROUND(E84,2) -> 3 | G84: =OFFSET(FONTE!$A$1,R84,3,1) -> 22.79 | H84: ='BDI 20,34%'!$C$28 -> 0.2034 | I84: =TRUNC(((G84*H84)+G84),2) -> 27.42 | J84: =IF(ISERR(ROUND((F84*I84),2)),"",ROUND((F84*I84),2)) -> 82.26 | K84: 89707 | L84: =OFFSET(FONTE!$A$1,R84,4,1) -> SINAPI | Q84: =IF(R84="","",OFFSET(FONTE!$A$1,R84,1,1)) -> CAIXA SIFONADA, PVC, DN 100 X 100 X 50 MM, JUNTA ELÁSTICA, FORNECIDA E INSTALADA EM RAMAL DE DESCARGA OU EM RAMAL DE ESGOTO SANITÁRIO. AF_12/2014 | R84: =IF(ISERROR(MATCH(K84,FONTE!$A$1:$A$12282,0)-1),"",MATCH(K84,FONTE!$A$1:$A$12282,0)-1) -> 9736
B85: 11.2 | C85: Joelho PVC 45° | Q85: =IF(R85="","",OFFSET(FONTE!$A$1,R85,1,1)) ->  | R85: =IF(ISERROR(MATCH(K85,FONTE!$A$1:$A$12282,0)-1),"",MATCH(K85,FONTE!$A$1:$A$12282,0)-1) -> 
B86: 11.2.1 | C86: 40mm | D86: =IF(R86="","",OFFSET(FONTE!$A$1,R86,2,1)) -> UN | E86: 4 | F86: =ROUND(E86,2) -> 4 | G86: =OFFSET(FONTE!$A$1,R86,3,1) -> 5.65 | H86: ='BDI 20,34%'!$C$28 -> 0.2034 | I86: =TRUNC(((G86*H86)+G86),2) -> 6.79 | J86: =IF(ISERR(ROUND((F86*I86),2)),"",ROUND((F86*I86),2)) -> 27.16 | K86: 89726 | L86: =OFFSET(FONTE!$A$1,R86,4,1) -> SINAPI | Q86: =IF(R86="","",OFFSET(FONTE!$A$1,R86,1,1)) -> JOELHO 45 GRAUS, PVC, SERIE NORMAL, ESGOTO PREDIAL, DN 40 MM, JUNTA SOLDÁVEL, FORNECIDO E INSTALADO EM RAMAL DE DESCARGA OU RAMAL DE ESGOTO SANITÁRIO. AF_12/2014 | R86: =IF(ISERROR(MATCH(K86,FONTE!$A$1:$A$12282,0)-1),"",MATCH(K86,FONTE!$A$1:$A$12282,0)-1) -> 8901
B87: 11.3 | C87: Joelho PVC 90° | Q87: =IF(R87="","",OFFSET(FONTE!$A$1,R87,1,1)) ->  | R87: =IF(ISERROR(MATCH(K87,FONTE!$A$1:$A$12282,0)-1),"",MATCH(K87,FONTE!$A$1:$A$12282,0)-1) -> 
B88: 11.3.1 | C88: 40mm | D88: =IF(R88="","",OFFSET(FONTE!$A$1,R88,2,1)) -> UN | E88: 10 | F88: =ROUND(E88,2) -> 10 | G88: =OFFSET(FONTE!$A$1,R88,3,1) -> 7.1 | H88: ='BDI 20,34%'!$C$28 -> 0.2034 | I88: =TRUNC(((G88*H88)+G88),2) -> 8.54 | J88: =IF(ISERR(ROUND((F88*I88),2)),"",ROUND((F88*I88),2)) -> 85.4 | K88: 89724 | L88: =OFFSET(FONTE!$A$1,R88,4,1) -> SINAPI | Q88: =IF(R88="","",OFFSET(FONTE!$A$1,R88,1,1)) -> JOELHO 90 GRAUS, PVC, SERIE NORMAL, ESGOTO PREDIAL, DN 40 MM, JUNTA SOLDÁVEL, FORNECIDO E INSTALADO EM RAMAL DE DESCARGA OU RAMAL DE ESGOTO SANITÁRIO. AF_12/2014 | R88: =IF(ISERROR(MATCH(K88,FONTE!$A$1:$A$12282,0)-1),"",MATCH(K88,FONTE!$A$1:$A$12282,0)-1) -> 8899
B89: 11.4 | C89: Junção Simples PVC | Q89: =IF(R89="","",OFFSET(FONTE!$A$1,R89,1,1)) ->  | R89: =IF(ISERROR(MATCH(K89,FONTE!$A$1:$A$12282,0)-1),"",MATCH(K89,FONTE!$A$1:$A$12282,0)-1) -> 
B90: 11.4.1 | C90: 100mm - 50mm | D90: =IF(R90="","",OFFSET(FONTE!$A$1,R90,2,1)) -> UN | E90: 3 | F90: =ROUND(E90,2) -> 3 | G90: =OFFSET(FONTE!$A$1,R90,3,1) -> 21.45 | H90: ='BDI 20,34%'!$C$28 -> 0.2034 | I90: =TRUNC(((G90*H90)+G90),2) -> 25.81 | J90: =IF(ISERR(ROUND((F90*I90),2)),"",ROUND((F90*I90),2)) -> 77.43 | K90: CHD019 | L90: =OFFSET(FONTE!$A$1,R90,4,1) -> COMPOSIÇÃO | Q90: =IF(R90="","",OFFSET(FONTE!$A$1,R90,1,1)) -> JUNCAO SIMPLES, PVC, DN 100 X 50 MM, SERIE NORMAL PARA ESGOTO PREDIAL - FORNECIMENTOE INSTALAÇÃO | R90: =IF(ISERROR(MATCH(K90,FONTE!$A$1:$A$12282,0)-1),"",MATCH(K90,FONTE!$A$1:$A$12282,0)-1) -> 12162
B91: 11.5 | C91: Tubo Rígido com Ponta Lisa | Q91: =IF(R91="","",OFFSET(FONTE!$A$1,R91,1,1)) ->  | R91: =IF(ISERROR(MATCH(K91,FONTE!$A$1:$A$12282,0)-1),"",MATCH(K91,FONTE!$A$1:$A$12282,0)-1) -> 
B92: 11.5.1 | C92: 40mm | D92: =IF(R92="","",OFFSET(FONTE!$A$1,R92,2,1)) -> M | E92: =5.75/2+0.5*5 -> 5.375 | F92: =ROUND(E92,2) -> 5.38 | G92: =OFFSET(FONTE!$A$1,R92,3,1) -> 15.02 | H92: ='BDI 20,34%'!$C$28 -> 0.2034 | I92: =TRUNC(((G92*H92)+G92),2) -> 18.07 | J92: =IF(ISERR(ROUND((F92*I92),2)),"",ROUND((F92*I92),2)) -> 97.22 | K92: 89711 | L92: =OFFSET(FONTE!$A$1,R92,4,1) -> SINAPI | Q92: =IF(R92="","",OFFSET(FONTE!$A$1,R92,1,1)) -> TUBO PVC, SERIE NORMAL, ESGOTO PREDIAL, DN 40 MM, FORNECIDO E INSTALADO EM RAMAL DE DESCARGA OU RAMAL DE ESGOTO SANITÁRIO. AF_12/2014 | R92: =IF(ISERROR(MATCH(K92,FONTE!$A$1:$A$12282,0)-1),"",MATCH(K92,FONTE!$A$1:$A$12282,0)-1) -> 8409
B93: 11.5.2 | C93: 50mm - 2" | D93: =IF(R93="","",OFFSET(FONTE!$A$1,R93,2,1)) -> M | E93: 2.35 | F93: 2.35 | G93: =OFFSET(FONTE!$A$1,R93,3,1) -> 21.57 | H93: ='BDI 20,34%'!$C$28 -> 0.2034 | I93: 25.95 | J93: 60.98 | K93: 89712 | L93: =OFFSET(FONTE!$A$1,R93,4,1) -> SINAPI | Q93: =IF(R93="","",OFFSET(FONTE!$A$1,R93,1,1)) -> TUBO PVC, SERIE NORMAL, ESGOTO PREDIAL, DN 50 MM, FORNECIDO E INSTALADO EM RAMAL DE DESCARGA OU RAMAL DE ESGOTO SANITÁRIO. AF_12/2014 | R93: =IF(ISERROR(MATCH(K93,FONTE!$A$1:$A$12282,0)-1),"",MATCH(K93,FONTE!$A$1:$A$12282,0)-1) -> 8410
B94: ACABAMENTOS
B95: 12 | C95: =QUANT!C104 -> REVESTIMENTO PISO | I95: ∑ | J95: =SUBTOTAL(9,J96:J99) -> 12901.29 | O95: =J95/$J$128 -> 0.08730194928 | Q95: =IF(R95="","",OFFSET(FONTE!$A$1,R95,1,1)) ->  | R95: =IF(ISERROR(MATCH(K95,FONTE!$A$1:$A$12282,0)-1),"",MATCH(K95,FONTE!$A$1:$A$12282,0)-1) -> 
B96: 12.1 | C96: =QUANT!C105 -> Soleira de Granito Jateada, e=2cm (fornecimento e assentamento) | D96: =IF(R96="","",OFFSET(FONTE!$A$1,R96,2,1)) -> M | E96: =QUANT!E105 -> 8.6 | F96: =ROUND(E96,2) -> 8.6 | G96: =OFFSET(FONTE!$A$1,R96,3,1) -> 73.3 | H96: ='BDI 20,34%'!$C$28 -> 0.2034 | I96: =TRUNC(((G96*H96)+G96),2) -> 88.2 | J96: =IF(ISERR(ROUND((F96*I96),2)),"",ROUND((F96*I96),2)) -> 758.52 | K96: 98689 | L96: =OFFSET(FONTE!$A$1,R96,4,1) -> SINAPI | Q96: =IF(R96="","",OFFSET(FONTE!$A$1,R96,1,1)) -> SOLEIRA EM GRANITO, LARGURA 15 CM, ESPESSURA 2,0 CM. AF_06/2018 | R96: =IF(ISERROR(MATCH(K96,FONTE!$A$1:$A$12282,0)-1),"",MATCH(K96,FONTE!$A$1:$A$12282,0)-1) -> 10696
B97: 12.2 | C97: =QUANT!C107 -> Piso Porcelanato 60x60, PEI 5, assentado com Argamassa para Porcelanato | D97: =IF(R97="","",OFFSET(FONTE!$A$1,R97,2,1)) -> UN | E97: =QUANT!E107 -> 112.66 | F97: 112.66 | G97: =OFFSET(FONTE!$A$1,R97,3,1) -> 77.15 | H97: ='BDI 20,34%'!$C$28 -> 0.2034 | I97: 92.84 | J97: 10459.35 | K97: CED502 | L97: =OFFSET(FONTE!$A$1,R97,4,1) -> COMPOSIÇÃO | Q97: =IF(R97="","",OFFSET(FONTE!$A$1,R97,1,1)) -> REVESTIMENTO CERÂMICO PARA PISO COM PLACAS TIPO PORCELANATO DE DIMENSÕES 60X60 CM APLICADA EM AMBIENTES DE ÁREA MAIOR QUE 10 M². AF_06/2014 | R97: =IF(ISERROR(MATCH(K97,FONTE!$A$1:$A$12282,0)-1),"",MATCH(K97,FONTE!$A$1:$A$12282,0)-1) -> 12113
B98: 12.3 | C98: =QUANT!C112 -> Piso Cerâmico Antiderrapente 60x60, PEI 5, assentado com Argamassa para Porcelanato | D98: =IF(R98="","",OFFSET(FONTE!$A$1,R98,2,1)) -> M2 | E98: =QUANT!E112 -> 17.26 | F98: 17.26 | G98: =OFFSET(FONTE!$A$1,R98,3,1) -> 55.41 | H98: ='BDI 20,34%'!$C$28 -> 0.2034 | I98: 66.68 | J98: 1150.9 | K98: 87257 | L98: =OFFSET(FONTE!$A$1,R98,4,1) -> SINAPI | Q98: =IF(R98="","",OFFSET(FONTE!$A$1,R98,1,1)) -> REVESTIMENTO CERÂMICO PARA PISO COM PLACAS TIPO ESMALTADA EXTRA DE DIMENSÕES 60X60 CM APLICADA EM AMBIENTES DE ÁREA MAIOR QUE 10 M2. AF_06/2014 | R98: =IF(ISERROR(MATCH(K98,FONTE!$A$1:$A$12282,0)-1),"",MATCH(K98,FONTE!$A$1:$A$12282,0)-1) -> 10670
B99: 12.4 | C99: =QUANT!C118 -> Rodapé Cerâmico de 7cm, assentado com Argamassa | D99: =IF(R99="","",OFFSET(FONTE!$A$1,R99,2,1)) -> M | E99: =QUANT!E118 -> 43.4 | F99: 43.4 | G99: =OFFSET(FONTE!$A$1,R99,3,1) -> 10.2 | H99: ='BDI 20,34%'!$C$28 -> 0.2034 | I99: 12.27 | J99: 532.52 | K99: 88650 | L99: =OFFSET(FONTE!$A$1,R99,4,1) -> SINAPI | Q99: =IF(R99="","",OFFSET(FONTE!$A$1,R99,1,1)) -> RODAPÉ CERÂMICO DE 7CM DE ALTURA COM PLACAS TIPO ESMALTADA EXTRA DE DIMENSÕES 60X60CM. AF_06/2014 | R99: =IF(ISERROR(MATCH(K99,FONTE!$A$1:$A$12282,0)-1),"",MATCH(K99,FONTE!$A$1:$A$12282,0)-1) -> 10713
B100: 13 | C100: REVESTIMENTO PAREDE | I100: ∑ | J100: =SUBTOTAL(9,J101:J103) -> 4118.06 | O100: =J100/$J$128 -> 0.02786656724 | Q100: =IF(R100="","",OFFSET(FONTE!$A$1,R100,1,1)) ->  | R100: =IF(ISERROR(MATCH(K100,FONTE!$A$1:$A$12282,0)-1),"",MATCH(K100,FONTE!$A$1:$A$12282,0)-1) -> 
B101: 13.1 | C101: Chapisco | D101: =IF(R101="","",OFFSET(FONTE!$A$1,R101,2,1)) -> M2 | E101: =E52*2 -> 22.848 | F101: =ROUND(E101,2) -> 22.85 | G101: =OFFSET(FONTE!$A$1,R101,3,1) -> 3.2 | H101: ='BDI 20,34%'!$C$28 -> 0.2034 | I101: =TRUNC(((G101*H101)+G101),2) -> 3.85 | J101: =IF(ISERR(ROUND((F101*I101),2)),"",ROUND((F101*I101),2)) -> 87.97 | K101: 87879 | L101: =OFFSET(FONTE!$A$1,R101,4,1) -> SINAPI | Q101: =IF(R101="","",OFFSET(FONTE!$A$1,R101,1,1)) -> CHAPISCO APLICADO EM ALVENARIAS E ESTRUTURAS DE CONCRETO INTERNAS, COM COLHER DE PEDREIRO. ARGAMASSA TRAÇO 1:3 COM PREPARO EM BETONEIRA 400L. AF_06/2014 | R101: =IF(ISERROR(MATCH(K101,FONTE!$A$1:$A$12282,0)-1),"",MATCH(K101,FONTE!$A$1:$A$12282,0)-1) -> 10814
B102: 13.2 | C102: Emboço/Reboco (Massa Única) | D102: =IF(R102="","",OFFSET(FONTE!$A$1,R102,2,1)) -> M2 | E102: =E101 -> 22.848 | F102: 22.85 | G102: =OFFSET(FONTE!$A$1,R102,3,1) -> 26.88 | H102: ='BDI 20,34%'!$C$28 -> 0.2034 | I102: 32.34 | J102: 738.97 | K102: 89173 | L102: =OFFSET(FONTE!$A$1,R102,4,1) -> SINAPI | Q102: =IF(R102="","",OFFSET(FONTE!$A$1,R102,1,1)) -> (COMPOSIÇÃO REPRESENTATIVA) DO SERVIÇO DE EMBOÇO/MASSA ÚNICA, APLICADO MANUALMENTE, TRAÇO 1:2:8, EM BETONEIRA DE 400L, PAREDES INTERNAS, COM EXECUÇÃO DE TALISCAS, EDIFICAÇÃO HABITACIONAL UNIFAMILIAR (CASAS) E EDIFICAÇÃO PÚBLICA PADRÃO. AF_12/2014 | R102: =IF(ISERROR(MATCH(K102,FONTE!$A$1:$A$12282,0)-1),"",MATCH(K102,FONTE!$A$1:$A$12282,0)-1) -> 10972
B103: 13.3 | C103: Azulejos 30x60cm (fornecimento e assentamento) | D103: =IF(R103="","",OFFSET(FONTE!$A$1,R103,2,1)) -> M2 | E103: =QUANT!E127 -> 75.258 | F103: 75.26 | G103: =OFFSET(FONTE!$A$1,R103,3,1) -> 36.34 | H103: ='BDI 20,34%'!$C$28 -> 0.2034 | I103: 43.73 | J103: 3291.12 | K103: 93393 | L103: =OFFSET(FONTE!$A$1,R103,4,1) -> SINAPI | Q103: =IF(R103="","",OFFSET(FONTE!$A$1,R103,1,1)) -> REVESTIMENTO CERÂMICO PARA PAREDES INTERNAS COM PLACAS TIPO ESMALTADA PADRÃO POPULAR DE DIMENSÕES 20X20 CM, ARGAMASSA TIPO AC I, APLICADAS EM AMBIENTES DE ÁREA MAIOR QUE 5 M2 NA ALTURA INTEIRA DAS PAREDES. AF_06/2014 | R103: =IF(ISERROR(MATCH(K103,FONTE!$A$1:$A$12282,0)-1),"",MATCH(K103,FONTE!$A$1:$A$12282,0)-1) -> 11002
B104: 14 | C104: =QUANT!C145 -> PINTURA | I104: ∑ | J104: =SUBTOTAL(9,J105:J105) -> 13358.43 | O104: =J104/$J$128 -> 0.09039537738 | Q104: =IF(R104="","",OFFSET(FONTE!$A$1,R104,1,1)) ->  | R104: =IF(ISERROR(MATCH(K104,FONTE!$A$1:$A$12282,0)-1),"",MATCH(K104,FONTE!$A$1:$A$12282,0)-1) -> 
B105: 14.1 | C105: =QUANT!C146 -> Pintura Acrílica, duas demãos | D105: =IF(R105="","",OFFSET(FONTE!$A$1,R105,2,1)) -> M2 | E105: =QUANT!E146 -> 936.12 | F105: =ROUND(E105,2) -> 936.12 | G105: =OFFSET(FONTE!$A$1,R105,3,1) -> 11.86 | H105: ='BDI 20,34%'!$C$28 -> 0.2034 | I105: =TRUNC(((G105*H105)+G105),2) -> 14.27 | J105: =IF(ISERR(ROUND((F105*I105),2)),"",ROUND((F105*I105),2)) -> 13358.43 | K105: 88489 | L105: =OFFSET(FONTE!$A$1,R105,4,1) -> SINAPI | Q105: =IF(R105="","",OFFSET(FONTE!$A$1,R105,1,1)) -> APLICAÇÃO MANUAL DE PINTURA COM TINTA LÁTEX ACRÍLICA EM PAREDES, DUAS DEMÃOS. AF_06/2014 | R105: =IF(ISERROR(MATCH(K105,FONTE!$A$1:$A$12282,0)-1),"",MATCH(K105,FONTE!$A$1:$A$12282,0)-1) -> 10586
B106: 15 | C106: =QUANT!C224 -> FORRO | I106: ∑ | J106: =SUBTOTAL(9,J107:J107) -> 7654.66 | O106: =J106/$J$128 -> 0.05179844334 | Q106: =IF(R106="","",OFFSET(FONTE!$A$1,R106,1,1)) ->  | R106: =IF(ISERROR(MATCH(K106,FONTE!$A$1:$A$12282,0)-1),"",MATCH(K106,FONTE!$A$1:$A$12282,0)-1) -> 
B107: 15.1 | C107: =QUANT!C225 -> Forro de PVC em Réguas, Liso (inclusive estrutura metálica de fixação, fornecimento e colocação) | D107: =IF(R107="","",OFFSET(FONTE!$A$1,R107,2,1)) -> M2 | E107: =QUANT!E225 -> 145.36 | F107: =ROUND(E107,2) -> 145.36 | G107: =OFFSET(FONTE!$A$1,R107,3,1) -> 43.76 | H107: ='BDI 20,34%'!$C$28 -> 0.2034 | I107: =TRUNC(((G107*H107)+G107),2) -> 52.66 | J107: =IF(ISERR(ROUND((F107*I107),2)),"",ROUND((F107*I107),2)) -> 7654.66 | K107: 96485 | L107: =OFFSET(FONTE!$A$1,R107,4,1) -> SINAPI | Q107: =IF(R107="","",OFFSET(FONTE!$A$1,R107,1,1)) -> FORRO EM RÉGUAS DE PVC, LISO, PARA AMBIENTES RESIDENCIAIS, INCLUSIVE ESTRUTURA DE FIXAÇÃO. AF_05/2017_P | R107: =IF(ISERROR(MATCH(K107,FONTE!$A$1:$A$12282,0)-1),"",MATCH(K107,FONTE!$A$1:$A$12282,0)-1) -> 11029
B108: 16 | C108: ESQUADRIAS | I108: ∑ | J108: =SUBTOTAL(9,J109:J111) -> 8022.64 | O108: =J108/$J$128 -> 0.05428853319 | Q108: =IF(R108="","",OFFSET(FONTE!$A$1,R108,1,1)) ->  | R108: =IF(ISERROR(MATCH(K108,FONTE!$A$1:$A$12282,0)-1),"",MATCH(K108,FONTE!$A$1:$A$12282,0)-1) -> 
B109: 16.1 | C109: Porta de Correr de Veneziana de Alumínio, 0,90 x 2,10m (02 unidades) | D109: =IF(R109="","",OFFSET(FONTE!$A$1,R109,2,1)) -> M2 | E109: =2*0.9*2.1 -> 3.78 | F109: =ROUND(E109,2) -> 3.78 | G109: =OFFSET(FONTE!$A$1,R109,3,1) -> 684.28 | H109: ='BDI 20,34%'!$C$28 -> 0.2034 | I109: =TRUNC(((G109*H109)+G109),2) -> 823.46 | J109: =IF(ISERR(ROUND((F109*I109),2)),"",ROUND((F109*I109),2)) -> 3112.68 | K109: 68050 | L109: =OFFSET(FONTE!$A$1,R109,4,1) -> SINAPI | Q109: =IF(R109="","",OFFSET(FONTE!$A$1,R109,1,1)) -> PORTA DE CORRER EM ALUMINIO, COM DUAS FOLHAS PARA VIDRO, INCLUSO VIDRO LISO INCOLOR, FECHADURA E PUXADOR, SEM GUARNICAO/ALIZAR/VISTA | R109: =IF(ISERROR(MATCH(K109,FONTE!$A$1:$A$12282,0)-1),"",MATCH(K109,FONTE!$A$1:$A$12282,0)-1) -> 7104
B110: 16.2 | C110: Porta de Abrir de Veneziana de Alumínio, 0,86 x 1,90m (01 unidades) | D110: =IF(R110="","",OFFSET(FONTE!$A$1,R110,2,1)) -> M2 | E110: =0.86*1.9 -> 1.634 | F110: 1.63 | G110: =OFFSET(FONTE!$A$1,R110,3,1) -> 807.94 | H110: ='BDI 20,34%'!$C$28 -> 0.2034 | I110: 972.27 | J110: 1584.8 | K110: 91341 | L110: =OFFSET(FONTE!$A$1,R110,4,1) -> SINAPI | Q110: =IF(R110="","",OFFSET(FONTE!$A$1,R110,1,1)) -> PORTA EM ALUMÍNIO DE ABRIR TIPO VENEZIANA COM GUARNIÇÃO, FIXAÇÃO COM PARAFUSOS - FORNECIMENTO E INSTALAÇÃO. AF_08/2015 | R110: =IF(ISERROR(MATCH(K110,FONTE!$A$1:$A$12282,0)-1),"",MATCH(K110,FONTE!$A$1:$A$12282,0)-1) -> 7107
B111: 16.3 | C111: Porta de Abrir de Veneziana de Alumínio, 0,90 x 1,90m (02 unidades) | D111: =IF(R111="","",OFFSET(FONTE!$A$1,R111,2,1)) -> M2 | E111: =2*0.9*1.9 -> 3.42 | F111: 3.42 | G111: =OFFSET(FONTE!$A$1,R111,3,1) -> 807.94 | H111: ='BDI 20,34%'!$C$28 -> 0.2034 | I111: 972.27 | J111: 3325.16 | K111: 91341 | L111: =OFFSET(FONTE!$A$1,R111,4,1) -> SINAPI | Q111: =IF(R111="","",OFFSET(FONTE!$A$1,R111,1,1)) -> PORTA EM ALUMÍNIO DE ABRIR TIPO VENEZIANA COM GUARNIÇÃO, FIXAÇÃO COM PARAFUSOS - FORNECIMENTO E INSTALAÇÃO. AF_08/2015 | R111: =IF(ISERROR(MATCH(K111,FONTE!$A$1:$A$12282,0)-1),"",MATCH(K111,FONTE!$A$1:$A$12282,0)-1) -> 7107
B112: 17 | C112: INSTALAÇÕES LOUÇAS ACESSORIOS E APARELHOS | I112: ∑ | J112: =SUBTOTAL(9,J113:J126) -> 3873.98 | O112: =J112/$J$128 -> 0.02621489831 | Q112: =IF(R112="","",OFFSET(FONTE!$A$1,R112,1,1)) ->  | R112: =IF(ISERROR(MATCH(K112,FONTE!$A$1:$A$12282,0)-1),"",MATCH(K112,FONTE!$A$1:$A$12282,0)-1) -> 
B113: 17.1 | C113: Lavatório Louça Branca Suspenso, 29,5x39cm ou equivalente, Padrão Popular, incluso Sifão Copo em PVC, Válvula e Engate Flexível 30cm em Plástico e com Torneira Cromada de Mesa tipo Alavanca, Padrão Popular (fornecimento e instalação) | D113: =IF(R113="","",OFFSET(FONTE!$A$1,R113,2,1)) -> UN | E113: 2 | F113: =ROUND(E113,2) -> 2 | G113: =OFFSET(FONTE!$A$1,R113,3,1) -> 181.55 | H113: ='BDI 20,34%'!$C$28 -> 0.2034 | I113: =TRUNC(((G113*H113)+G113),2) -> 218.47 | J113: =IF(ISERR(ROUND((F113*I113),2)),"",ROUND((F113*I113),2)) -> 436.94 | K113: 86942 | L113: =OFFSET(FONTE!$A$1,R113,4,1) -> SINAPI | Q113: =IF(R113="","",OFFSET(FONTE!$A$1,R113,1,1)) -> LAVATÓRIO LOUÇA BRANCA SUSPENSO, 29,5 X 39CM OU EQUIVALENTE, PADRÃO POPULAR, INCLUSO SIFÃO TIPO GARRAFA EM PVC, VÁLVULA E ENGATE FLEXÍVEL 30CM EM PLÁSTICO E TORNEIRA CROMADA DE MESA, PADRÃO POPULAR - FORNECIMENTO E INSTALAÇÃO. AF_12/2013 | R113: =IF(ISERROR(MATCH(K113,FONTE!$A$1:$A$12282,0)-1),"",MATCH(K113,FONTE!$A$1:$A$12282,0)-1) -> 9802
B114: 17.2 | C114: Ducha Higiênica Metálica de Parede Articulável (fornecimento e instalação) | D114: =IF(R114="","",OFFSET(FONTE!$A$1,R114,2,1)) -> UN | E114: 2 | F114: 2 | G114: =OFFSET(FONTE!$A$1,R114,3,1) -> 215.3 | H114: ='BDI 20,34%'!$C$28 -> 0.2034 | I114: 259.09 | J114: 518.18 | K114: CAC001 | L114: =OFFSET(FONTE!$A$1,R114,4,1) -> COMPOSIÇÃO | Q114: =IF(R114="","",OFFSET(FONTE!$A$1,R114,1,1)) -> DUCHA HIGIÊNICA METÁLICA DE PAREDE ARTICULÁVEL (fornecimento e instalação) | R114: =IF(ISERROR(MATCH(K114,FONTE!$A$1:$A$12282,0)-1),"",MATCH(K114,FONTE!$A$1:$A$12282,0)-1) -> 12206
B115: 17.3 | C115: Barra de Apoio | Q115: =IF(R115="","",OFFSET(FONTE!$A$1,R115,1,1)) ->  | R115: =IF(ISERROR(MATCH(K115,FONTE!$A$1:$A$12282,0)-1),"",MATCH(K115,FONTE!$A$1:$A$12282,0)-1) -> 
B116: 17.3.1 | C116: Barra de Apoio Angular, 60cm, em Aço Inox Polido (fornecimento e instalação) | D116: =IF(R116="","",OFFSET(FONTE!$A$1,R116,2,1)) -> UN | E116: 2 | F116: =ROUND(E116,2) -> 2 | G116: =OFFSET(FONTE!$A$1,R116,3,1) -> 194.94 | H116: ='BDI 20,34%'!$C$28 -> 0.2034 | I116: =TRUNC(((G116*H116)+G116),2) -> 234.59 | J116: =IF(ISERR(ROUND((F116*I116),2)),"",ROUND((F116*I116),2)) -> 469.18 | K116: CAC003 | L116: =OFFSET(FONTE!$A$1,R116,4,1) -> COMPOSIÇÃO | Q116: =IF(R116="","",OFFSET(FONTE!$A$1,R116,1,1)) -> BARRA DE APOIO ANGULAR, 60 CM, EM ACO INOX POLIDO (fornecimento e instalação) | R116: =IF(ISERROR(MATCH(K116,FONTE!$A$1:$A$12282,0)-1),"",MATCH(K116,FONTE!$A$1:$A$12282,0)-1) -> 12207
B117: 17.3.2 | C117: Barra de Apoio Reta, em Alumínio, 40cm (fornecimento e instalação) | D117: =IF(R117="","",OFFSET(FONTE!$A$1,R117,2,1)) -> UN | E117: 4 | F117: 4 | G117: =OFFSET(FONTE!$A$1,R117,3,1) -> 96.24 | H117: ='BDI 20,34%'!$C$28 -> 0.2034 | I117: 115.81 | J117: 463.24 | K117: CAC004 | L117: =OFFSET(FONTE!$A$1,R117,4,1) -> COMPOSIÇÃO | Q117: =IF(R117="","",OFFSET(FONTE!$A$1,R117,1,1)) -> BARRA DE APOIO RETA, EM ALUMINIO, COMPRIMENTO 60CM OU MENOR (fornecimento e instalação) | R117: =IF(ISERROR(MATCH(K117,FONTE!$A$1:$A$12282,0)-1),"",MATCH(K117,FONTE!$A$1:$A$12282,0)-1) -> 12208
B118: 17.3.3 | C118: Barra de Apoio Reta, em Alumínio, 70cm (fornecimento e instalação) | D118: =IF(R118="","",OFFSET(FONTE!$A$1,R118,2,1)) -> UN | E118: 2 | F118: 2 | G118: =OFFSET(FONTE!$A$1,R118,3,1) -> 108.65 | H118: ='BDI 20,34%'!$C$28 -> 0.2034 | I118: 130.74 | J118: 261.48 | K118: CAC005 | L118: =OFFSET(FONTE!$A$1,R118,4,1) -> COMPOSIÇÃO | Q118: =IF(R118="","",OFFSET(FONTE!$A$1,R118,1,1)) -> BARRA DE APOIO RETA, EM ALUMINIO, COMPRIMENTO 70CM (fornecimento e instalação) | R118: =IF(ISERROR(MATCH(K118,FONTE!$A$1:$A$12282,0)-1),"",MATCH(K118,FONTE!$A$1:$A$12282,0)-1) -> 12209
B119: 17.3.4 | C119: Barra de Apoio Reta, em Alumínio, 80cm (fornecimento e instalação) | D119: =IF(R119="","",OFFSET(FONTE!$A$1,R119,2,1)) -> UN | E119: 4 | F119: 4 | G119: =OFFSET(FONTE!$A$1,R119,3,1) -> 116.58 | H119: ='BDI 20,34%'!$C$28 -> 0.2034 | I119: 140.29 | J119: 561.16 | K119: CAC006 | L119: =OFFSET(FONTE!$A$1,R119,4,1) -> COMPOSIÇÃO | Q119: =IF(R119="","",OFFSET(FONTE!$A$1,R119,1,1)) -> BARRA DE APOIO RETA, EM ALUMINIO, COMPRIMENTO 80CM (fornecimento e instalação) | R119: =IF(ISERROR(MATCH(K119,FONTE!$A$1:$A$12282,0)-1),"",MATCH(K119,FONTE!$A$1:$A$12282,0)-1) -> 12210
B120: 17.4 | C120: Espelho Cristal 80x50cm e=4mm, com Moldura de Madeira | D120: =IF(R120="","",OFFSET(FONTE!$A$1,R120,2,1)) -> M2 | E120: =0.5*0.9*2 -> 0.9 | F120: 0.9 | G120: =OFFSET(FONTE!$A$1,R120,3,1) -> 397.71 | H120: ='BDI 20,34%'!$C$28 -> 0.2034 | I120: 478.6 | J120: 430.74 | K120: 74125/1 | L120: =OFFSET(FONTE!$A$1,R120,4,1) -> SINAPI | Q120: =IF(R120="","",OFFSET(FONTE!$A$1,R120,1,1)) -> ESPELHO CRISTAL ESPESSURA 4MM, COM MOLDURA DE MADEIRA | R120: =IF(ISERROR(MATCH(K120,FONTE!$A$1:$A$12282,0)-1),"",MATCH(K120,FONTE!$A$1:$A$12282,0)-1) -> 7129
B121: 17.5 | C121: Saboneteira Plástica tipo Dispenser para Sabonete Líquido (fornecimento e instalação) | D121: =IF(R121="","",OFFSET(FONTE!$A$1,R121,2,1)) -> UN | E121: 2 | F121: 2 | G121: =OFFSET(FONTE!$A$1,R121,3,1) -> 70.46 | H121: ='BDI 20,34%'!$C$28 -> 0.2034 | I121: 84.79 | J121: 169.58 | K121: 95547 | L121: =OFFSET(FONTE!$A$1,R121,4,1) -> SINAPI | Q121: =IF(R121="","",OFFSET(FONTE!$A$1,R121,1,1)) -> SABONETEIRA PLASTICA TIPO DISPENSER PARA SABONETE LIQUIDO COM RESERVATORIO 800 A 1500 ML, INCLUSO FIXAÇÃO. AF_10/2016 | R121: =IF(ISERROR(MATCH(K121,FONTE!$A$1:$A$12282,0)-1),"",MATCH(K121,FONTE!$A$1:$A$12282,0)-1) -> 9818
B122: 17.6 | C122: Toalheiro Plástico tipo Dispenser para Papel Toalha Interfolhado (fornecimento e instalação) | D122: =IF(R122="","",OFFSET(FONTE!$A$1,R122,2,1)) -> UN | E122: 2 | F122: 2 | G122: =OFFSET(FONTE!$A$1,R122,3,1) -> 69.12 | H122: ='BDI 20,34%'!$C$28 -> 0.2034 | I122: 83.17 | J122: 166.34 | K122: CAC007 | L122: =OFFSET(FONTE!$A$1,R122,4,1) -> COMPOSIÇÃO | Q122: =IF(R122="","",OFFSET(FONTE!$A$1,R122,1,1)) -> TOALHEIRO PLÁSTICO TIPO DISPENSER PARA PAPEL TOALHA INTERFOLHADO (fornecimento e instalação) | R122: =IF(ISERROR(MATCH(K122,FONTE!$A$1:$A$12282,0)-1),"",MATCH(K122,FONTE!$A$1:$A$12282,0)-1) -> 12211
B123: 17.7 | C123: Papeleira Plástica tipo Dispenser para Papel Higiênico para Rolo de 300m (fornecimento e instalação) | D123: =IF(R123="","",OFFSET(FONTE!$A$1,R123,2,1)) -> UN | E123: 2 | F123: 2 | G123: =OFFSET(FONTE!$A$1,R123,3,1) -> 69.12 | H123: ='BDI 20,34%'!$C$28 -> 0.2034 | I123: 83.17 | J123: 166.34 | K123: CAC008 | L123: =OFFSET(FONTE!$A$1,R123,4,1) -> COMPOSIÇÃO | Q123: =IF(R123="","",OFFSET(FONTE!$A$1,R123,1,1)) -> PAPELEIRA TIPO DISPENSER PARA PAPEL HIGIÊNICO PARA ROLO DE 300M (fornecimento e instalação) | R123: =IF(ISERROR(MATCH(K123,FONTE!$A$1:$A$12282,0)-1),"",MATCH(K123,FONTE!$A$1:$A$12282,0)-1) -> 12212
B124: 17.8 | C124: Gancho para Pendurar Utensílios (fornecimento e instalação) | D124: =IF(R124="","",OFFSET(FONTE!$A$1,R124,2,1)) -> UN | E124: 2 | F124: 2 | G124: =OFFSET(FONTE!$A$1,R124,3,1) -> 28.26 | H124: ='BDI 20,34%'!$C$28 -> 0.2034 | I124: 34 | J124: 68 | K124: CAC009 | L124: =OFFSET(FONTE!$A$1,R124,4,1) -> COMPOSIÇÃO | Q124: =IF(R124="","",OFFSET(FONTE!$A$1,R124,1,1)) -> GANCHO PARA PENDURAR UTENSÍLIOS (fornecimento e instalação) | R124: =IF(ISERROR(MATCH(K124,FONTE!$A$1:$A$12282,0)-1),"",MATCH(K124,FONTE!$A$1:$A$12282,0)-1) -> 12213
B125: 17.9 | C125: Porta Objetos em MDF (fornecimento e instalação) | D125: =IF(R125="","",OFFSET(FONTE!$A$1,R125,2,1)) -> UN | E125: 2 | F125: 2 | G125: =OFFSET(FONTE!$A$1,R125,3,1) -> 32.99 | H125: ='BDI 20,34%'!$C$28 -> 0.2034 | I125: 39.7 | J125: 79.4 | K125: CAC010 | L125: =OFFSET(FONTE!$A$1,R125,4,1) -> COMPOSIÇÃO | Q125: =IF(R125="","",OFFSET(FONTE!$A$1,R125,1,1)) -> PORTA OBJETOS (fornecimento e instalação) | R125: =IF(ISERROR(MATCH(K125,FONTE!$A$1:$A$12282,0)-1),"",MATCH(K125,FONTE!$A$1:$A$12282,0)-1) -> 12214
B126: 17.10 | C126: Lixeira Basculante de PVC 12 Litros | D126: =IF(R126="","",OFFSET(FONTE!$A$1,R126,2,1)) -> UN | E126: 2 | F126: 2 | G126: =OFFSET(FONTE!$A$1,R126,3,1) -> 34.66 | H126: ='BDI 20,34%'!$C$28 -> 0.2034 | I126: 41.7 | J126: 83.4 | K126: CAC011 | L126: =OFFSET(FONTE!$A$1,R126,4,1) -> COMPOSIÇÃO | Q126: =IF(R126="","",OFFSET(FONTE!$A$1,R126,1,1)) -> LIXEIRA BASCULANTE DE PVC 12 LITROS (fornecimento e instalação) | R126: =IF(ISERROR(MATCH(K126,FONTE!$A$1:$A$12282,0)-1),"",MATCH(K126,FONTE!$A$1:$A$12282,0)-1) -> 12215
I128: TOTAL: | J128: =SUBTOTAL(9,J15:J127) -> 147777.8 | O128: =J16+J18+J25+J30+J37+J53+J43+J95+J106+J104+J108+J100+J82+J65+J61+J51+J112 -> 147777.8
B131: 1 | C131: Declaro que os encargos sociais e complementares para mão de obra, horista e mensalista, sem desoneração, atendem ao estabelecido no SINAPI para SC.
B132: 2 | C132: Declaro que para esta planilha, foi verificado que a alternativa mais adequada para a Administração Pública, é a utilização da planilha SEM DESONERAÇÃO.
B134: Rio do Sul, | C134: =TODAY() -> 2019-08-02 | O134: .

Sheet QUANT
B4: =ORÇAMENTO!B16 -> 1 | C4: SERVIÇOS INICIAIS | O4: -
B5: =ORÇAMENTO!B17 -> 1.1 | C5: Placa de Obra em Chapa de Aço Galvanizado | D5: ∑ | E5: =E6 -> 2.5 | F5: =ORÇAMENTO!D17 -> M2
C6: Área | E6: =2*1.25 -> 2.5
B8: =ORÇAMENTO!B18 -> 2 | C8: DEMOLIÇÕES | O8: -
B9: =ORÇAMENTO!B19 -> 2.1 | C9: Remoção de Piso Cerâmico e Azulejos | D9: ∑ | E9: =55.98+(3.45*2+2.5*2)*1.85 -> 77.995 | F9: =ORÇAMENTO!D19 -> M2
B11: =ORÇAMENTO!B20 -> 2.2 | C11: Demolição de Piso de Concreto | D11: ∑ | E11: =K14 -> 1.31 | F11: =ORÇAMENTO!D20 -> M3
C12: Soma dos locais que terão Piso Demolido
E13: Comprimento | G13: Largura | I13: Espessura
C14: Área de Reforço | E14: 13.1 | F14: x | G14: 1 | H14: x | I14: 0.1 | J14: = | K14: =ROUND((E14*G14*I14),2) -> 1.31
C15: Banheiros | G15: 8.63 | H15: x | I15: 0.1 | J15: = | K15: =ROUND((G15*I15),2) -> 0.86
C16: Banheiros | G16: 8.63 | H16: x | I16: 0.1 | J16: = | K16: =ROUND((G16*I16),2) -> 0.86
B18: =ORÇAMENTO!B21 -> 2.3 | C18: Remoção de Telhas de Fibrocimento | D18: ∑ | E18: 283.05 | F18: =ORÇAMENTO!D21 -> M2
C19: Soma das áreas que será retirada de telha
B21: =ORÇAMENTO!B22 -> 2.4 | C21: Remoção de Estrutura de Madeira | D21: ∑ | E21: 283.05 | F21: =ORÇAMENTO!D22 -> M2
C22: Soma das áreas que será retirada a estrutura de madeira
B24: =ORÇAMENTO!B23 -> 2.5 | C24: Remoção de Forro de PVC (inclusive Estrutura) | D24: ∑ | E24: =112.66+32.7 -> 145.36 | F24: =ORÇAMENTO!D23 -> M2
C25: Soma das áreas com retirada de forro
B27: =ORÇAMENTO!B25 -> 3 | C27: FUNDAÇÃO PROFUNDA | O27: -
B28: =ORÇAMENTO!B26 -> 3.1
B29: ao | C29: Quantitativo obtido em Projeto Estrutural
B30: =ORÇAMENTO!B29 -> 3.2.2
B31: =ORÇAMENTO!B30 -> 4 | C31: INFRAESTRUTURA | O31: -
B32: =ORÇAMENTO!B31 -> 4.1 | C32: Escavações Manuais | D32: ∑ | E32: =M36 -> 3.96 | F32: =ORÇAMENTO!D31 -> M3
C33: Largura x comprimento x altura x quantidade
E34: Largura | G34: Comprimento | I34: Altura | K34: Quantidade
E35: 0.8 | F35: x | G35: 1.1 | H35: x | I35: 0.5 | J35: x | K35: 9 | L35: = | M35: =ROUND((E35*G35*I35*K35),2) -> 3.96
L36: ∑ | M36: =SUM(M35) -> 3.96
B38: =ORÇAMENTO!B32 -> 4.2 | C38: Forma de Madeira para Concreto (material e mão-de-obra para fabricação, montagem e desforma) | D38: ∑ | E38: 10.26 | F38: =ORÇAMENTO!D32 -> M2
B40: =ORÇAMENTO!B33 -> 4.3 | C40: Armaduras
B41: =ORÇAMENTO!B34 -> 4.3.1 | C41: Armadura CA-50 - 8.0mm (fornecimento, corte, dobra e colocação) | D41: ∑ | E41: 56.88 | F41: =ORÇAMENTO!D34 -> KG
B43: =ORÇAMENTO!B35 -> 4.3.2 | C43: Armadura CA-50 - 10.0mm (fornecimento, corte, dobra e colocação) | D43: ∑ | E43: 115.5 | F43: =ORÇAMENTO!D35 -> KG
B45: =ORÇAMENTO!B36 -> 4.4 | C45: Concreto Usinado (fornecimento, lançamento, adensamento e bombeado) FCK=25MPA | D45: ∑ | E45: 1.98 | F45: =ORÇAMENTO!D36 -> M3
B47: =ORÇAMENTO!B37 -> 5 | C47: SUPRAESTRUTURA | O47: -
B48: =ORÇAMENTO!B38 -> 5.1 | C48: Forma de Madeira Serrada para Concreto, (material e mão-de-obra para fabricação, montagem e desforma) - Pilares | D48: ∑ | E48: 16.83 | F48: =ORÇAMENTO!D38 -> M2
B50: =ORÇAMENTO!B39 -> 5.2 | C50: Armaduras
B51: =ORÇAMENTO!B40 -> 5.2.1 | C51: Armadura CA-60 - 5.0MM (fornecimento, corte, dobra e colocação) | D51: ∑ | E51: 20.79 | F51: =ORÇAMENTO!D40 -> KG
B53: =ORÇAMENTO!B41 -> 5.2.2 | C53: Armadura CA-50 - 12.5MM (fornecimento, corte, dobra e colocação) | D53: ∑ | E53: 176.81 | F53: =ORÇAMENTO!D41 -> KG
B55: =ORÇAMENTO!B42 -> 5.3 | C55: Concreto Usinado (fornecimento, lançamento, adensamento e bombeado) FCK=25MPA - Pilares | D55: ∑ | E55: 1.04 | F55: =ORÇAMENTO!D42 -> M3
J56: CED500
B57: =ORÇAMENTO!B43 -> 6 | C57: PISO | O57: -
B58: =ORÇAMENTO!B44 -> 6.1 | C58: Escavações Manuais | D58: ∑ | E58: =K61 -> 19.65 | F58: =ORÇAMENTO!D44 -> M3
C59: Largura x comprimento x altura x quantidade
E60: Largura | G60: Comprimento | I60: Altura
C61: Área de Reforço | E61: 13.1 | F61: x | G61: 1 | H61: x | I61: 1.5 | J61: = | K61: =ROUND((E61*I61*G61),2) -> 19.65
B63: =ORÇAMENTO!B45 -> 6.2 | C63: Brita 2 (fornecimento e colocação) | D63: ∑ | E63: =SUM(E66:E69) -> 26.106 | F63: =ORÇAMENTO!D45 -> M3
C64: Comprimento x Largura x Espessura
C66: Área de Reforço | E66: =E58 -> 19.65
C67: Área de Elevação | E67: 4.73
C68: Banheiros | E68: =G15*0.1 -> 0.863
C69: Banheiros | E69: =E68 -> 0.863
B71: =ORÇAMENTO!B46 -> 6.3 | C71: Lona 200 Micras (fornecimento e instalação) | D71: ∑ | E71: =SUM(I74:I77) -> 71.64 | F71: =ORÇAMENTO!D46 -> M2
C72: Comprimento x Largura
C74: Área de Reforço | E74: 13.1 | F74: x | G74: 1 | H74: = | I74: =ROUND((E74*G74),2) -> 13.1
C75: Área de Elevação | E75: 8.6 | F75: x | G75: 4.8 | H75: = | I75: =ROUND((E75*G75),2) -> 41.28
C76: Banheiros | H76: = | I76: =G15 -> 8.63
C77: Banheiros | H77: = | I77: =G15 -> 8.63
B79: =ORÇAMENTO!B47 -> 6.4 | C79: Tela Soldada Q-92 - Aço CA-60 4.2mm - Malha 15x15cm (fornecimento, corte e instalação) | D79: ∑ | E79: =E71 -> 71.64 | F79: =ORÇAMENTO!D47 -> M2
B81: =ORÇAMENTO!B48 -> 6.5 | C81: Piso em Concreto 25 Mpa | D81: ∑ | E81: =SUM(E84:E87) -> 5.5582 | F81: =ORÇAMENTO!D48 -> M3
C82: Comprimento x Largura x Espessura
C84: Área de Reforço | E84: 1.05
C85: Área de Elevação | E85: 3.3
C86: Banheiros | E86: =I76*0.07 -> 0.6041
C87: Banheiros | E87: =E86 -> 0.6041
B89: =ORÇAMENTO!B49 -> 6.6 | C89: Contrapiso/Regularização em Argamassa, e=3cm | D89: ∑ | E89: =SUM(E90:E94) -> 71.71 | F89: M2
C91: Plenária | E91: 54.45
C92: Banheiros | E92: =I77 -> 8.63
C93: Banheiros | E93: =E92 -> 8.63
B95: =ORÇAMENTO!B50 -> 6.7 | C95: Guia de Travamento com Blocos de Concreto 14x19x39 | D95: ∑ | E95: 1.64 | F95: =ORÇAMENTO!D50 -> M2
B97: =ORÇAMENTO!B53 -> 8 | C97: COBERTURA | O97: -
B98: =ORÇAMENTO!B55 -> 8.1.1 | C98: Estrutura em Madeira Aparelhada (Angelim ou equivalente da região) para Telha Ondulada, Composta por Ripas, Caibros e Terças | D98: ∑ | E98: =E21 -> 283.05 | F98: =ORÇAMENTO!D55 -> M2
C99: Área Simples da Projeção do Telhado Retirada em CAD
B101: =ORÇAMENTO!B58 -> 8.2 | C101: Telha Sanduíche, Composta por: - Telha em Galvalume, e=0,5mm, Trapezoidal 40cm (TP40) - Preenchimento de Lã de Rocha 50mm - Telha em Galvalume, e=0,5mm, Trapezoidal 40cm (TP40) | D101: ∑ | E101: =E98 -> 283.05 | F101: =ORÇAMENTO!D58 -> M2
C102: Área Simples da Projeção do Telhado Retirada em CAD
B104: =ORÇAMENTO!B95 -> 12 | C104: REVESTIMENTO PISO | O104: -
B105: =ORÇAMENTO!B96 -> 12.1 | C105: Soleira de Granito Jateada, e=2cm (fornecimento e assentamento) | D105: ∑ | E105: 8.6 | F105: =ORÇAMENTO!D96 -> M
B107: =ORÇAMENTO!B97 -> 12.2 | C107: Piso Porcelanato 60x60, PEI 5, assentado com Argamassa para Porcelanato | D107: ∑ | E107: =SUM(E110:E111) -> 112.66 | F107: =ORÇAMENTO!D97 -> UN
C108: Soma de áreas de ambientes
C110: Plenária | E110: 112.66
B112: =ORÇAMENTO!B98 -> 12.3 | C112: Piso Cerâmico Antiderrapente 60x60, PEI 5, assentado com Argamassa para Porcelanato | D112: ∑ | E112: =SUM(E115:E117) -> 17.26 | F112: =ORÇAMENTO!D105 -> M2
C113: Soma de áreas de ambientes
C115: Banheiros | E115: 8.63
C116: Banheiros | E116: 8.63
B118: =ORÇAMENTO!B99 -> 12.4 | C118: Rodapé Cerâmico de 7cm, assentado com Argamassa | D118: ∑ | E118: =SUM(E121:E124) -> 43.4 | F118: =ORÇAMENTO!D99 -> M
C119: Soma dos comprimentos por ambiente com descontos
C121: Eixo X | E121: 13.1
C122: Eixo X | E122: 13.1
C123: Eixo Y | E123: 8.6
C124: Eixo Y | E124: 8.6
B126: =ORÇAMENTO!B100 -> 13 | C126: =ORÇAMENTO!C100 -> REVESTIMENTO PAREDE | O126: -
B127: =ORÇAMENTO!B103 -> 13.3 | C127: =ORÇAMENTO!C103 -> Azulejos 30x60cm (fornecimento e assentamento) | D127: ∑ | E127: =SUM(I131:I139)-SUM(M142:M143) -> 75.258 | F127: =ORÇAMENTO!D103 -> M2
C128: Comprimento x Altura - Descontos
C130: EIXO X - INTERNO | E130: Comprimento | G130: Altura
C131: Sanitário Feminino | E131: 2.5 | F131: x | G131: =2.8-1.85 -> 0.95 | H131: = | I131: =ROUND((E131*G131),2) -> 2.38
C132: Sanitário Masculino | E132: 2.5 | F132: x | G132: =2.8-1.85 -> 0.95 | H132: = | I132: =ROUND((E132*G132),2) -> 2.38
C133: Sanitário Feminino | E133: 2.5 | F133: x | G133: 2.8 | H133: = | I133: =ROUND((E133*G133),2) -> 7
C134: Sanitário Masculino | E134: 2.5 | F134: x | G134: 2.8 | H134: = | I134: 7
C135: Sanitário Feminino | E135: 3.45 | F135: x | G135: 2.8 | H135: = | I135: =ROUND((E135*G135),2) -> 9.66
C136: Sanitário Feminino | E136: 3.45 | F136: x | G136: 2.8 | H136: = | I136: =ROUND((E136*G136),2) -> 9.66
C137: Sanitário Maculino | E137: 3.45 | F137: x | G137: 2.8 | H137: = | I137: =ROUND((E137*G137),2) -> 9.66
C138: Sanitário Masculino | E138: 3.45 | F138: x | G138: 2.8 | H138: = | I138: =ROUND((E138*G138),2) -> 9.66
C139: Área de Reboco | I139: =ORÇAMENTO!E102 -> 22.848
C141: Descontos x2 | E141: Largura | G141: Altura | I141: Quantidade
C142: Porta 90cm | E142: 0.9 | F142: x | G142: 2.1 | H142: x | I142: 2 | J142: x | K142: 1 | L142: = | M142: =ROUND((E142*G142*I142*K142),2) -> 3.78
C143: Janelas | E143: 0.55 | F143: x | G143: 0.55 | H143: x | I143: 4 | J143: x | K143: 1 | L143: = | M143: =ROUND((E143*G143*I143*K143),2) -> 1.21
B145: =ORÇAMENTO!B104 -> 14 | C145: PINTURA | O145: -
B146: =ORÇAMENTO!B105 -> 14.1 | C146: Pintura Acrílica, duas demãos | D146: ∑ | E146: =SUM(I149:I212)-SUM(M213:M223) -> 936.12 | F146: =ORÇAMENTO!D105 -> M2
C147: Comprimento x Altura - Descontos
C149: EIXO X - INTERNO | E149: Comprimento | G149: Altura
C150: Depósito | E150: 5.05 | F150: x | G150: 2.2 | H150: = | I150: =ROUND((E150*G150),2) -> 11.11
C151: Depósito | E151: 5.05 | F151: x | G151: 2.2 | H151: = | I151: =ROUND((E151*G151),2) -> 11.11
C152: Sala de Reunião | E152: 6 | F152: x | G152: 2.85 | H152: = | I152: 17.1
C153: Plenária | E153: 13.1 | F153: x | G153: 3.8 | H153: = | I153: 49.78
C154: Circulação | E154: 5.15 | F154: x | G154: 2.8 | H154: = | I154: 14.42
C155: Circulação | E155: 3.5 | F155: x | G155: 2.8 | H155: = | I155: 9.8
C156: Copa | E156: 3.35 | F156: x | G156: 2.8 | H156: = | I156: 9.38
C157: Sala de Reunião | E157: 6 | F157: x | G157: 2.85 | H157: = | I157: =ROUND((E157*G157),2) -> 17.1
C158: Copa | E158: 3.35 | F158: x | G158: 2.8 | H158: = | I158: =ROUND((E158*G158),2) -> 9.38
C159: Sala 01 | E159: 3.35 | F159: x | G159: 2.8 | H159: = | I159: 9.38
C160: Plenária | E160: 13.1 | F160: x | G160: 3.8 | H160: = | I160: 49.78
C161: Circulação | E161: 3.6 | F161: x | G161: 2.8 | H161: = | I161: 10.08
C162: Sala do Presidente | E162: 4.8 | F162: x | G162: 2.8 | H162: = | I162: 13.44
C163: Sala 01 | E163: 3.35 | F163: x | G163: 2.8 | H163: = | I163: =ROUND((E163*G163),2) -> 9.38
C164: Circulação | E164: 1.05 | F164: x | G164: 2.8 | H164: = | I164: 2.94
C165: Sala 02 | E165: 6.45 | F165: x | G165: 2.8 | H165: = | I165: 18.06
C166: Sala do Presidente | E166: 1.15 | F166: x | G166: 2.8 | H166: = | I166: 3.22
C167: Sala 02 | E167: 6.45 | F167: x | G167: 2.8 | H167: = | I167: 18.06
C168: Circulação | E168: 3 | F168: x | G168: 2.8 | H168: = | I168: 8.4
C169: Sala do Presidente | E169: 7.05 | F169: x | G169: 2.8 | H169: = | I169: 19.74
C171: EIXO Y - INTERNO | E171: Comprimento | G171: Altura
C172: Sala de Reunião | E172: 5.45 | F172: x | G172: 2.85 | H172: = | I172: =ROUND((E172*G172),2) -> 15.53
C173: Depósito | E173: 1.6 | F173: x | G173: 2.2 | H173: = | I173: =ROUND((E173*G173),2) -> 3.52
C174: Sala 02 | E174: 3.05 | F174: x | G174: 2.8 | H174: = | I174: 8.54
C175: Depósito | E175: 1.6 | F175: x | G175: 2.2 | H175: = | I175: 3.52
C176: Sala de Reunião | E176: 5.45 | F176: x | G176: 2.85 | H176: = | I176: =ROUND((E176*G176),2) -> 15.53
C177: Sala 01 | E177: 2.95 | F177: x | G177: 2.8 | H177: = | I177: 8.26
C178: Copa | E178: 2.1 | F178: x | G178: 2.8 | H178: = | I178: 5.88
C179: Circulação | E179: 1.2 | F179: x | G179: 2.8 | H179: = | I179: 3.36
C180: Sala 02 | E180: 3.05 | F180: x | G180: 2.8 | H180: = | I180: 8.54
C181: Sala 01 | E181: 2.95 | F181: x | G181: 2.8 | H181: = | I181: 8.26
C182: Copa | E182: 2.1 | F182: x | G182: 2.8 | H182: = | I182: 5.88
C183: Circulação | E183: 9.05 | F183: x | G183: 2.8 | H183: = | I183: 25.34
C184: Circulação | E184: 5.15 | F184: x | G184: 2.8 | H184: = | I184: 14.42
C185: Plenária | E185: 8.6 | F185: x | G185: 3.8 | H185: = | I185: 32.68
C186: Circulação | E186: 2.55 | F186: x | G186: 2.8 | H186: = | I186: 7.14
C187: Sala do Presidente | E187: 2.5 | F187: x | G187: 2.8 | H187: = | I187: 7
C188: Circulação | E188: 1.35 | F188: x | G188: 2.8 | H188: = | I188: 3.78
C189: Sala do Presidente | E189: 1.5 | F189: x | G189: 2.8 | H189: = | I189: =ROUND((E189*G189),2) -> 4.2
C190: Sala do Presidente | E190: 5.1 | F190: x | G190: 2.8 | H190: = | I190: 14.28
C191: Plenária | E191: 8.6 | F191: x | G191: 3.8 | H191: = | I191: 32.68
C193: EIXO 45º - INTERNO | E193: Comprimento | G193: Altura
C194: Circulação | E194: 1.7 | F194: x | G194: 2.8 | H194: = | I194: =ROUND((E194*G194),2) -> 4.76
C195: Sala Presidente | E195: 1.6 | F195: x | G195: 2.8 | H195: = | I195: =ROUND((E195*G195),2) -> 4.48
C197: TETOS | G197: Área
C198: Sanitário Feminino | G198: 8.63 | H198: = | I198: =G198 -> 8.63
C199: Sanitário Masculino | G199: 8.63 | H199: = | I199: 8.63
C200: Circulação | G200: 31.76 | H200: = | I200: 31.76
C201: Copa | G201: 7.04 | H201: = | I201: 7.04
C202: Sala 01 | G202: 9.88 | H202: = | I202: 9.88
C203: Sala do Presidente | G203: 31.96 | H203: = | I203: 31.96
C204: Sala 02 | G204: 19.67 | H204: = | I204: 19.67
C205: Hall de Entrada | G205: 3.69 | H205: = | I205: 3.69
C206: Detalhe Platibanda | G206: 2.3 | H206: = | I206: 2.3
C208: PERÍMETRO- EXTERNO | E208: Comprimento | G208: Altura
C209: Nível Comum | E209: 79.9 | F209: x | G209: 4 | H209: = | I209: =ROUND((E209*G209),2) -> 319.6
C210: Plenária | E210: 44 | F210: x | G210: 1 | H210: = | I210: 44
C211: Marquise Hall | E211: 5.1 | F211: x | G211: 0.5 | H211: = | I211: 2.55
C213: Descontos x2 | E213: Largura | G213: Altura | I213: Quantidade | K213: x 2
C214: Porta 80cm | E214: 0.8 | F214: x | G214: 2.1 | H214: x | I214: 8 | J214: x | K214: 2 | L214: = | M214: =ROUND((E214*G214*I214*K214),2) -> 26.88
C215: Porta Sala de Reunião | E215: 2.5 | F215: x | G215: 2.45 | H215: x | I215: 1 | J215: x | K215: 2 | L215: = | M215: =ROUND((E215*G215*I215*K215),2) -> 12.25
C216: Porta hall de Entrada | E216: 2.5 | F216: x | G216: 2.4 | H216: x | I216: 1 | J216: x | K216: 2 | L216: = | M216: =ROUND((E216*G216*I216*K216),2) -> 12
C217: Janelas | E217: 1.45 | F217: x | G217: 0.95 | H217: x | I217: 1 | J217: x | K217: 2 | L217: = | M217: =ROUND((E217*G217*I217*K217),2) -> 2.76
C218: Janelas | E218: 0.55 | F218: x | G218: 0.55 | H218: x | I218: 3 | J218: x | K218: 2 | L218: = | M218: 1.82
C219: Janelas | E219: 3 | F219: x | G219: 1 | H219: x | I219: 3 | J219: x | K219: 2 | L219: = | M219: 18
C220: Janelas | E220: 3 | F220: x | G220: 1.4 | H220: x | I220: 2 | J220: x | K220: 2 | L220: = | M220: 16.8
C221: Janelas | E221: 1.1 | F221: x | G221: 1.4 | H221: x | I221: 2 | J221: x | K221: 2 | L221: = | M221: 6.16
C222: Janelas | E222: 1.1 | F222: x | G222: 1.4 | H222: x | I222: 2 | J222: x | K222: 2 | L222: = | M222: 6.16
B224: =ORÇAMENTO!B106 -> 15 | C224: FORRO | O224: -
B225: =ORÇAMENTO!B107 -> 15.1 | C225: Forro de PVC em Réguas, Liso (inclusive estrutura metálica de fixação, fornecimento e colocação) | D225: ∑ | E225: =E24 -> 145.36 | F225: =ORÇAMENTO!D107 -> M2

Sheet BDI 20,34%
B4: O valor do BDI é obtido pela fórmula e taxas abaixo
B6: FÓRMULA BDI - Construção de Edifícios | O6: ISSQN
O7: Agrolandia | P7: 0.03
O8: Aurora | P8: 0.02
B9: BDI = | C9: (1+AC+S+R+G)(1+DF)(1+L) | D9: -1 | O9: Atalanta | P9: 0.03
C10: _______________________________________ | O10: Braço do Trombudo | P10: 0.05
C11: (1-I) | O11: Chapadão do Lageado | P11: 0.025
O12: Dona emma | P12: 0.02
O13: Ibirama | P13: 0.025
B14: ONDE: | H14: 1.1 Construção de Edifícios | O14: Imbuia | P14: 0.03
B15: AC = Taxa de Administração Central | E15: 0.03 | K15: 1 Quartil | L15: Médio | M15: 3 Quartil | O15: Ituporanga | P15: 0.03
B16: S = Taxa de Seguros | E16: 0.004 | H16: Administração Central | K16: 0.03 | L16: 0.04 | M16: 0.055 | O16: Jose Boiteux | P16: 0.03
B17: G = Taxa de Garantias | E17: 0.004 | H17: Seguro | K17: 0.004 | L17: 0.004 | M17: 0.005 | O17: Laurentino | P17: 0.015
B18: R = Taxa de Riscos | E18: 0.0097 | H18: Garantia | K18: 0.004 | L18: 0.004 | M18: 0.005 | O18: Lontras | P18: 0.03
B19: DF = Taxa de Despesas Financeiras | E19: 0.0059 | H19: Risco | K19: 0.0097 | L19: 0.0127 | M19: 0.0127 | O19: Mirim doce | P19: 0.02
B20: L = Taxa de Lucro / Remuneração | E20: 0.066 | H20: Despesas Financeiras | K20: 0.0059 | L20: 0.0123 | M20: 0.0139 | O20: Pouso Redondo | P20: 0.03
B21: I = Taxa de Incidência de Impostos | E21: =D24 -> 0.0665 | H21: Lucro | K21: 0.0616 | L21: 0.074 | M21: 0.0896 | O21: Presidente Getulio | P21: 0.02
C22: I1: PIS e COFINS | D22: 0.0365 | H22: PIS e COFINS | K22: 0.0365 | L22: 0.0365 | M22: 0.0365 | O22: Presidente Nereu | P22: 0.015
C23: I2: ISSQN (conforme legislação municipal) | D23: 0.03 | H23: ISSQN | K23: x | L23: x | M23: x | O23: Rio do Campo | P23: 0.03
C24: ∑ | D24: =SUM(D22:D23) -> 0.0665 | O24: Rio do Oeste | P24: 0.05
K25: 1 Quartil | L25: Médio | M25: 3 Quartil | O25: Rio do Sul | P25: 0.02
B26: TEMOS ENTÃO ENTRANDO COM OS DADOS NA FÓRMULA | K26: 0.2034 | L26: 0.2212 | M26: 0.25 | O26: Salete | P26: 0.02
O27: Santa Terezinha | P27: 0.03
C28: =TRUNC(((((1+E15+E16+E17+E18)*(1+E19)*(1+E20))/(1-E21))-1),4) -> 0.2034 | O28: Taio | P28: 0.02
O29: Trombudo Central | P29: 0.03
O30: Vidal Ramos | P30: 0.04
O31: Vitor Meireles | P31: 0.03
O32: Witmarsum | P32: 0.03
J56: CED500
F495: COM003
F507: COM004
A509: 32.25 | B509: m2
A510: 3.23 | B510: m3
A511: 70.95 | B511: kg
A512: 3.23 | B512: m3
A513: 2 | B513: un
A514: 7.44 | B514: m2 | E514: COM003

Sheet CRONOGRAMA
B4: TODOS OS VALORES ESTÃO NA UNIDADE MONETÁRIA REAL
B5: ITEM | C5: DESCRIÇÃO | D5: TOTAL | E5: % | F5: 1º MÊS | G5: % | H5: 2º MÊS | I5: % | L5: TOTAL
B7: =ORÇAMENTO!B16 -> 1 | C7: =ORÇAMENTO!C16 -> SERVIÇOS INICIAIS | D7: =ORÇAMENTO!J16 -> 964 | E7: =D7*100/$D$25 -> 0.652330729 | F7: =D7*G7/100 -> 964 | G7: 100 | H7: =D7*I7/100 -> 0 | I7: 0 | L7: =SUM(G7,I7) -> 100
B8: =ORÇAMENTO!B18 -> 2 | C8: =ORÇAMENTO!C18 -> DEMOLIÇÕES | D8: =ORÇAMENTO!J18 -> 5380.61 | E8: 3.641013738 | F8: =D8*G8/100 -> 5380.61 | G8: 100 | H8: =D8*I8/100 -> 0 | I8: 0 | L8: =SUM(G8,I8) -> 100
B9: =ORÇAMENTO!B25 -> 3 | C9: =ORÇAMENTO!C25 -> FUNDAÇÃO PROFUNDA | D9: =ORÇAMENTO!J25 -> 4654.93 | E9: 3.149952158 | F9: =D9*G9/100 -> 4654.93 | G9: 100 | H9: 0 | I9: 0 | L9: 100
B10: =ORÇAMENTO!B30 -> 4 | C10: =ORÇAMENTO!C30 -> INFRAESTRUTURA | D10: =ORÇAMENTO!J30 -> 4020.93 | E10: 2.720929666 | F10: 4020.93 | G10: 100 | H10: 0 | I10: 0 | L10: 100
B11: =ORÇAMENTO!B37 -> 5 | C11: =ORÇAMENTO!C37 -> SUPRAESTRUTURA | D11: =ORÇAMENTO!J37 -> 4352.18 | E11: 2.945083768 | F11: 4352.18 | G11: 100 | H11: 0 | I11: 0 | L11: 100
B12: =ORÇAMENTO!B43 -> 6 | C12: =ORÇAMENTO!C43 -> PISO | D12: =ORÇAMENTO!J43 -> 10555.33 | E12: 7.142703437 | F12: =D12*G12/100 -> 0 | G12: 0 | H12: =D12*I12/100 -> 10555.33 | I12: 100 | L12: 100
B13: =ORÇAMENTO!B51 -> 7 | C13: =ORÇAMENTO!C51 -> FECHAMENTOS | D13: =ORÇAMENTO!J51 -> 905.26 | E13: 0.6125818628 | F13: =D13*G13/100 -> 0 | G13: 0 | H13: =D13*I13/100 -> 905.26 | I13: 100 | L13: =SUM(G13,I13) -> 100
B14: =ORÇAMENTO!B53 -> 8 | C14: =ORÇAMENTO!C53 -> COBERTURA | D14: =ORÇAMENTO!J53 -> 63208.84 | E14: 42.77289282 | F14: =D14*G14/100 -> 31604.42 | G14: 50 | H14: =D14*I14/100 -> 31604.42 | I14: 50 | L14: 100
B15: =ORÇAMENTO!B61 -> 9 | C15: =ORÇAMENTO!C61 -> INSTALAÇÕES ELÉTRICAS | D15: =ORÇAMENTO!J61 -> 2955.3 | E15: 1.999826767 | F15: =D15*G15/100 -> 1477.65 | G15: 50 | H15: =D15*I15/100 -> 1477.65 | I15: 50 | L15: =SUM(G15,I15) -> 100
B16: =ORÇAMENTO!B65 -> 10 | C16: =ORÇAMENTO!C65 -> REDE HIDRÁULICA | D16: =ORÇAMENTO!J65 -> 420.91 | E16: 0.284826273 | F16: 210.455 | G16: 50 | H16: 210.455 | I16: 50 | L16: 100
B17: =ORÇAMENTO!B82 -> 11 | C17: =ORÇAMENTO!C82 -> REDE SANITÁRIA | D17: =ORÇAMENTO!J82 -> 430.45 | E17: 0.2912819111 | F17: =D17*G17/100 -> 215.225 | G17: 50 | H17: =D17*I17/100 -> 215.225 | I17: 50 | L17: =SUM(G17,I17) -> 100
B18: =ORÇAMENTO!B95 -> 12 | C18: =ORÇAMENTO!C95 -> REVESTIMENTO PISO | D18: =ORÇAMENTO!J95 -> 12901.29 | E18: 8.730194928 | F18: =D18*G18/100 -> 0 | G18: 0 | H18: =D18*I18/100 -> 12901.29 | I18: 100 | L18: 100
B19: =ORÇAMENTO!B100 -> 13 | C19: =ORÇAMENTO!C100 -> REVESTIMENTO PAREDE | D19: =ORÇAMENTO!J100 -> 4118.06 | E19: 2.786656724 | F19: =D19*G19/100 -> 0 | G19: 0 | H19: =D19*I19/100 -> 4118.06 | I19: 100 | L19: =SUM(G19,I19) -> 100
B20: =ORÇAMENTO!B104 -> 14 | C20: =ORÇAMENTO!C104 -> PINTURA | D20: =ORÇAMENTO!J104 -> 13358.43 | E20: 9.039537738 | F20: =D20*G20/100 -> 0 | G20: 0 | H20: =D20*I20/100 -> 13358.43 | I20: 100 | L20: 100
B21: =ORÇAMENTO!B106 -> 15 | C21: =ORÇAMENTO!C106 -> FORRO | D21: =ORÇAMENTO!J106 -> 7654.66 | E21: 5.179844334 | F21: 0 | G21: 0 | H21: 7654.66 | I21: 100 | L21: 100
B22: =ORÇAMENTO!B108 -> 16 | C22: =ORÇAMENTO!C108 -> ESQUADRIAS | D22: =ORÇAMENTO!J108 -> 8022.64 | E22: 5.428853319 | F22: =D22*G22/100 -> 0 | G22: 0 | H22: =D22*I22/100 -> 8022.64 | I22: 100 | L22: =SUM(G22,I22) -> 100
B23: =ORÇAMENTO!B112 -> 17 | C23: =ORÇAMENTO!C112 -> INSTALAÇÕES LOUÇAS ACESSORIOS E APARELHOS | D23: =ORÇAMENTO!J112 -> 3873.98 | E23: 2.621489831 | F23: =D23*G23/100 -> 0 | G23: 0 | H23: =D23*I23/100 -> 3873.98 | I23: 100 | L23: =SUM(G23,I23) -> 100
C25: SUBTOTAL | D25: =SUM(D7:D23) -> 147777.8 | E25: =SUM(E7:E22) -> 97.37851017 | F25: =SUM(F7:F24) -> 52880.4 | G25: =F25*100/$D$25 -> 35.78372394 | H25: =SUM(H7:H24) -> 94897.4 | I25: =H25*100/$D$25 -> 64.21627606
C26: TOTAL ACUMULADO | F26: =F25 -> 52880.4 | G26: =G25 -> 35.78372394 | H26: =F26+H25 -> 147777.8 | I26: =G26+I25 -> 100
C29: VALOR DO ORÇAMENTO | D29: =ORÇAMENTO!J128 -> 147777.8
J56: CED500
B216: 13.1
H504: COM003
H516: COM004
B518: =#REF! ->  | C518: 32.25 | D518: m2
B519: =#REF! ->  | C519: 3.23 | D519: m3
B520: =#REF! ->  | C520: 70.95 | D520: kg
B521: =#REF! ->  | C521: 3.23 | D521: m3
B522: =#REF! ->  | C522: 2 | D522: un
B523: =#REF! ->  | C523: 7.44 | D523: m2 | G523: COM003

Sheet COMPOSIÇÕES
B4: Descrição | G4: UN | H4: Cód. | L4: =MATCH(H5,ORÇAMENTO!K:K,0) -> 20
B5: DEMOLIÇÃO DE CONCRETO SIMPLES. DE FORMA MANUAL | G5: M3 | H5: CRD009 | L5: =IF((ISNA(L4)=TRUE),"","ESTÁ SENDO UTILIZADA") -> ESTÁ SENDO UTILIZADA
B6: Descrição | C6: Coefi. | D6: UNi. | E6: Valor UNi. | F6: Fonte | G6: Cód. | H6: Valor | L6: Linha | M6: Nome original na fonte
B7: =M7 -> PEDREIRO COM ENCARGOS COMPLEMENTARES | C7: 1 | D7: =OFFSET(FONTE!$A$1,L7,2,1) -> H | E7: =OFFSET(FONTE!$A$1,L7,3,1) -> 22.42 | F7: =OFFSET(FONTE!$A$3,L7,4,1) -> SINAPI | G7: 88309 | H7: =ROUND((C7*E7),2) -> 22.42 | L7: =MATCH(G7,FONTE!$A$1:$A$12282,0)-1 -> 11578 | M7: =OFFSET(FONTE!$A$1,L7,1,1) -> PEDREIRO COM ENCARGOS COMPLEMENTARES
B8: =M8 -> SERVENTE COM ENCARGOS COMPLEMENTARES | C8: 10 | D8: =OFFSET(FONTE!$A$1,L8,2,1) -> H | E8: =OFFSET(FONTE!$A$1,L8,3,1) -> 16.64 | F8: =OFFSET(FONTE!$A$3,L8,4,1) -> SINAPI | G8: 88316 | H8: =ROUND((C8*E8),2) -> 166.4 | L8: =MATCH(G8,FONTE!$A$1:$A$12282,0)-1 -> 11585 | M8: =OFFSET(FONTE!$A$1,L8,1,1) -> SERVENTE COM ENCARGOS COMPLEMENTARES
G9: ∑ | H9: =SUM(H7:H8) -> 188.82
B11: Descrição | G11: UN | H11: Cód. | L11: =MATCH(H12,ORÇAMENTO!K:K,0) -> 48
B12: CONCRETAGEM DE PISO, FCK 25 MPA, PARA ESPESSURA DE 5 À 15 CM - LANÇAMENTO, ADENSAMENTO E ACABAMENTO. | G12: M3 | H12: CED100 | L12: =IF((ISNA(L11)=TRUE),"","ESTÁ SENDO UTILIZADA") -> ESTÁ SENDO UTILIZADA
B13: Descrição | C13: Coefi. | D13: UNi. | E13: Valor UNi. | F13: Fonte | G13: Cód. | H13: Valor | L13: Linha | M13: Nome original na fonte
B14: =M14 -> CONCRETO USINADO BOMBEAVEL, CLASSE DE RESISTENCIA C25, COM BRITA 0 E 1, SLUMP = 100 +/- 20 MM, EXCLUI SERVICO DE BOMBEAMENTO (NBR 8953) | C14: 1.15 | D14: =OFFSET(FONTE!$A$1,L14,2,1) -> M3 | E14: =OFFSET(FONTE!$A$1,L14,3,1) -> 256.06 | F14: =OFFSET(FONTE!$A$1,L14,4,1) -> SINAPI-I | G14: 34493 | H14: =ROUND((C14*E14),2) -> 294.47 | L14: =MATCH(G14,FONTE!$A$1:$A$12282,0)-1 -> 1334 | M14: =OFFSET(FONTE!$A$1,L14,1,1) -> CONCRETO USINADO BOMBEAVEL, CLASSE DE RESISTENCIA C25, COM BRITA 0 E 1, SLUMP = 100 +/- 20 MM, EXCLUI SERVICO DE BOMBEAMENTO (NBR 8953)
B15: PEDREIRO COM ENCARGOS COMPLEMENTARES | C15: 0.504 | D15: =OFFSET(FONTE!$A$1,L15,2,1) -> H | E15: =OFFSET(FONTE!$A$1,L15,3,1) -> 22.42 | F15: =OFFSET(FONTE!$A$1,L15,4,1) -> SINAPI | G15: 88309 | H15: 11.3 | L15: =MATCH(G15,FONTE!$A$1:$A$12282,0)-1 -> 11578 | M15: =OFFSET(FONTE!$A$1,L15,1,1) -> PEDREIRO COM ENCARGOS COMPLEMENTARES
B16: SERVENTE COM ENCARGOS COMPLEMENTARES | C16: 0.504 | D16: =OFFSET(FONTE!$A$1,L16,2,1) -> H | E16: =OFFSET(FONTE!$A$1,L16,3,1) -> 16.64 | F16: =OFFSET(FONTE!$A$1,L16,4,1) -> SINAPI | G16: 88316 | H16: 8.39 | L16: =MATCH(G16,FONTE!$A$1:$A$12282,0)-1 -> 11585 | M16: =OFFSET(FONTE!$A$1,L16,1,1) -> SERVENTE COM ENCARGOS COMPLEMENTARES
B17: VIBRADOR DE IMERSÃO, DIÂMETRO DE PONTEIRA 45MM, MOTOR ELÉTRICO TRIFÁSICO POTÊNCIA DE 2 CV - CHP DIURNO. AF_06/2015 | C17: 0.066 | D17: =OFFSET(FONTE!$A$1,L17,2,1) -> CHP | E17: =OFFSET(FONTE!$A$1,L17,3,1) -> 1.38 | F17: =OFFSET(FONTE!$A$1,L17,4,1) -> SINAPI | G17: 90586 | H17: 0.09 | L17: =MATCH(G17,FONTE!$A$1:$A$12282,0)-1 -> 5693 | M17: =OFFSET(FONTE!$A$1,L17,1,1) -> VIBRADOR DE IMERSÃO, DIÂMETRO DE PONTEIRA 45MM, MOTOR ELÉTRICO TRIFÁSICO POTÊNCIA DE 2 CV - CHP DIURNO. AF_06/2015
B18: VIBRADOR DE IMERSÃO, DIÂMETRO DE PONTEIRA 45MM, MOTOR ELÉTRICO TRIFÁSICO POTÊNCIA DE 2 CV - CHI DIURNO. AF_06/2015 | C18: 0.066 | D18: =OFFSET(FONTE!$A$1,L18,2,1) -> CHI | E18: =OFFSET(FONTE!$A$1,L18,3,1) -> 0.29 | F18: =OFFSET(FONTE!$A$1,L18,4,1) -> SINAPI | G18: 90587 | H18: 0.02 | L18: =MATCH(G18,FONTE!$A$1:$A$12282,0)-1 -> 5834 | M18: =OFFSET(FONTE!$A$1,L18,1,1) -> VIBRADOR DE IMERSÃO, DIÂMETRO DE PONTEIRA 45MM, MOTOR ELÉTRICO TRIFÁSICO POTÊNCIA DE 2 CV - CHI DIURNO. AF_06/2015
G19: ∑ | H19: =SUM(H14:H18) -> 314.27
B21: Descrição | G21: UN | H21: Cód. | L21: =MATCH(H22,ORÇAMENTO!K:K,0) -> 58
B22: TELHA METÁLICA COM ISOLAMENTO DE LÃ DE ROCHA | G22: M2 | H22: CED101 | L22: =IF((ISNA(L21)=TRUE),"","ESTÁ SENDO UTILIZADA") -> ESTÁ SENDO UTILIZADA
B23: Descrição | C23: Coefi. | D23: UNi. | E23: Valor UNi. | F23: Fonte | G23: Cód. | H23: Valor | L23: Linha | M23: Nome original na fonte
B24: =M24 -> TELHA DE ACO ZINCADO TRAPEZOIDAL, A = *40* MM, E = 0,5 MM, SEM PINTURA | C24: =2*1.166 -> 2.332 | D24: =OFFSET(FONTE!$A$1,L24,2,1) -> M2 | E24: =OFFSET(FONTE!$A$1,L24,3,1) -> 27.51 | F24: =OFFSET(FONTE!$A$1,L24,4,1) -> SINAPI-I | G24: 7243 | H24: =ROUND((C24*E24),2) -> 64.15 | L24: =MATCH(G24,FONTE!$A$1:$A$12282,0)-1 -> 4617 | M24: =OFFSET(FONTE!$A$1,L24,1,1) -> TELHA DE ACO ZINCADO TRAPEZOIDAL, A = *40* MM, E = 0,5 MM, SEM PINTURA
B25: FELTRO EM LA DE ROCHA, 1 FACE REVESTIDA COM PAPEL ALUMINIZADO, EM ROLO, DENSIDADE = 32 KG/M3, E=*50* MM (COLETADO CAIXA) | C25: 1.05 | D25: =OFFSET(FONTE!$A$1,L25,2,1) -> M2 | E25: =OFFSET(FONTE!$A$1,L25,3,1) -> 20.12 | F25: =OFFSET(FONTE!$A$1,L25,4,1) -> SINAPI-I | G25: 42481 | H25: 21.13 | L25: =MATCH(G25,FONTE!$A$1:$A$12282,0)-1 -> 2237 | M25: =OFFSET(FONTE!$A$1,L25,1,1) -> FELTRO EM LA DE ROCHA, 1 FACE REVESTIDA COM PAPEL ALUMINIZADO, EM ROLO, DENSIDADE = 32 KG/M3, E=*50* MM (COLETADO CAIXA)
B26: PERFIL CARTOLA DE ACO GALVANIZADO, *20 X 30 X 10* MM, E = 0,8 MM | C26: 0.58 | D26: =OFFSET(FONTE!$A$1,L26,2,1) -> KG | E26: =OFFSET(FONTE!$A$1,L26,3,1) -> 5.79 | F26: =OFFSET(FONTE!$A$1,L26,4,1) -> SINAPI-I | G26: 40664 | H26: 3.36 | L26: =MATCH(G26,FONTE!$A$1:$A$12282,0)-1 -> 3664 | M26: =OFFSET(FONTE!$A$1,L26,1,1) -> PERFIL CARTOLA DE ACO GALVANIZADO, *20 X 30 X 10* MM, E = 0,8 MM
B27: =M27 -> HASTE RETA PARA GANCHO DE FERRO GALVANIZADO, COM ROSCA 1/4 " X 30 CM PARA FIXACAO DE TELHA METALICA, INCLUI PORCA E ARRUELAS DE VEDACAO | C27: 4.15 | D27: =OFFSET(FONTE!$A$1,L27,2,1) -> CJ | E27: =OFFSET(FONTE!$A$1,L27,3,1) -> 1.22 | F27: =OFFSET(FONTE!$A$1,L27,4,1) -> SINAPI-I | G27: 11029 | H27: =ROUND((C27*E27),2) -> 5.06 | L27: =MATCH(G27,FONTE!$A$1:$A$12282,0)-1 -> 2482 | M27: =OFFSET(FONTE!$A$1,L27,1,1) -> HASTE RETA PARA GANCHO DE FERRO GALVANIZADO, COM ROSCA 1/4 " X 30 CM PARA FIXACAO DE TELHA METALICA, INCLUI PORCA E ARRUELAS DE VEDACAO
B28: SERVENTE COM ENCARGOS COMPLEMENTARES | C28: =3*0.097 -> 0.291 | D28: =OFFSET(FONTE!$A$1,L28,2,1) -> H | E28: =OFFSET(FONTE!$A$1,L28,3,1) -> 16.64 | F28: =OFFSET(FONTE!$A$1,L28,4,1) -> SINAPI | G28: 88316 | H28: 4.84 | L28: =MATCH(G28,FONTE!$A$1:$A$12282,0)-1 -> 11585 | M28: =OFFSET(FONTE!$A$1,L28,1,1) -> SERVENTE COM ENCARGOS COMPLEMENTARES
B29: TELHADISTA COM ENCARGOS COMPLEMENTARES | C29: =2*0.091 -> 0.182 | D29: =OFFSET(FONTE!$A$1,L29,2,1) -> H | E29: =OFFSET(FONTE!$A$1,L29,3,1) -> 23.59 | F29: =OFFSET(FONTE!$A$1,L29,4,1) -> SINAPI | G29: 88323 | H29: 4.29 | L29: =MATCH(G29,FONTE!$A$1:$A$12282,0)-1 -> 11591 | M29: =OFFSET(FONTE!$A$1,L29,1,1) -> TELHADISTA COM ENCARGOS COMPLEMENTARES
G30: ∑ | H30: =SUM(H24:H29) -> 102.83
B32: Descrição | G32: UN | H32: Cód. | L32: =MATCH(H33,ORÇAMENTO!K:K,0) -> 67
B33: BUCHA DE REDUCAO DE PVC, SOLDAVEL, LONGA, COM 50 X 25 MM, PARA AGUA FRIA PREDIAL - FORNECIMENTO E INSTALAÇÃO | G33: UN | H33: CHD011 | L33: =IF((ISNA(L32)=TRUE),"","ESTÁ SENDO UTILIZADA") -> ESTÁ SENDO UTILIZADA
B34: Descrição | C34: Coefi. | D34: UNi. | E34: Valor UNi. | F34: Fonte | G34: Cód. | H34: Valor | L34: Linha | M34: Nome original na fonte
B35: =M35 -> ADESIVO PLASTICO PARA PVC, FRASCO COM 850 GR | C35: 0.007 | D35: =OFFSET(FONTE!$A$1,L35,2,1) -> UN | E35: =OFFSET(FONTE!$A$1,L35,3,1) -> 48.78 | F35: =OFFSET(FONTE!$A$1,L35,4,1) -> SINAPI-I | G35: 122 | H35: =ROUND((C35*E35),2) -> 0.34 | L35: =MATCH(G35,FONTE!$A$1:$A$12282,0)-1 -> 180 | M35: =OFFSET(FONTE!$A$1,L35,1,1) -> ADESIVO PLASTICO PARA PVC, FRASCO COM 850 GR
B36: BUCHA DE REDUCAO DE PVC, SOLDAVEL, LONGA, COM 50 X 25 MM, PARA AGUA FRIA PREDIAL | C36: 1 | D36: =OFFSET(FONTE!$A$1,L36,2,1) -> UN | E36: =OFFSET(FONTE!$A$1,L36,3,1) -> 2.56 | F36: =OFFSET(FONTE!$A$1,L36,4,1) -> SINAPI-I | G36: 813 | H36: 2.56 | L36: =MATCH(G36,FONTE!$A$1:$A$12282,0)-1 -> 687 | M36: =OFFSET(FONTE!$A$1,L36,1,1) -> BUCHA DE REDUCAO DE PVC, SOLDAVEL, LONGA, COM 50 X 25 MM, PARA AGUA FRIA PREDIAL
B37: SOLUCAO LIMPADORA PARA PVC, FRASCO COM 1000 CM3 | C37: 0.008 | D37: =OFFSET(FONTE!$A$1,L37,2,1) -> UN | E37: =OFFSET(FONTE!$A$1,L37,3,1) -> 42.36 | F37: =OFFSET(FONTE!$A$1,L37,4,1) -> SINAPI-I | G37: 20083 | H37: 0.34 | L37: =MATCH(G37,FONTE!$A$1:$A$12282,0)-1 -> 4237 | M37: =OFFSET(FONTE!$A$1,L37,1,1) -> SOLUCAO LIMPADORA PARA PVC, FRASCO COM 1000 CM3
B38: LIXA D'AGUA EM FOLHA, GRAO 100 | C38: 0.03 | D38: =OFFSET(FONTE!$A$1,L38,2,1) -> UN | E38: =OFFSET(FONTE!$A$1,L38,3,1) -> 1.72 | F38: =OFFSET(FONTE!$A$1,L38,4,1) -> SINAPI-I | G38: 38383 | H38: 0.05 | L38: =MATCH(G38,FONTE!$A$1:$A$12282,0)-1 -> 2892 | M38: =OFFSET(FONTE!$A$1,L38,1,1) -> LIXA D'AGUA EM FOLHA, GRAO 100
B39: =M39 -> AUXILIAR DE ENCANADOR OU BOMBEIRO HIDRÁULICO COM ENCARGOS COMPLEMENTARES | C39: 0.09 | D39: =OFFSET(FONTE!$A$1,L39,2,1) -> H | E39: =OFFSET(FONTE!$A$1,L39,3,1) -> 16.7 | F39: =OFFSET(FONTE!$A$1,L39,4,1) -> SINAPI | G39: 88248 | H39: =ROUND((C39*E39),2) -> 1.5 | L39: =MATCH(G39,FONTE!$A$1:$A$12282,0)-1 -> 11525 | M39: =OFFSET(FONTE!$A$1,L39,1,1) -> AUXILIAR DE ENCANADOR OU BOMBEIRO HIDRÁULICO COM ENCARGOS COMPLEMENTARES
B40: ENCANADOR OU BOMBEIRO HIDRÁULICO COM ENCARGOS COMPLEMENTARES | C40: 0.09 | D40: =OFFSET(FONTE!$A$1,L40,2,1) -> H | E40: =OFFSET(FONTE!$A$1,L40,3,1) -> 22.63 | F40: =OFFSET(FONTE!$A$1,L40,4,1) -> SINAPI | G40: 88267 | H40: 2.04 | L40: =MATCH(G40,FONTE!$A$1:$A$12282,0)-1 -> 11543 | M40: =OFFSET(FONTE!$A$1,L40,1,1) -> ENCANADOR OU BOMBEIRO HIDRÁULICO COM ENCARGOS COMPLEMENTARES
G41: ∑ | H41: =SUM(H35:H40) -> 6.83
B43: Descrição | G43: UN | H43: Cód. | L43: =MATCH(H44,ORÇAMENTO!K:K,0) -> 90
B44: JUNCAO SIMPLES, PVC, DN 100 X 50 MM, SERIE NORMAL PARA ESGOTO PREDIAL - FORNECIMENTOE INSTALAÇÃO | G44: UN | H44: CHD019 | L44: =IF((ISNA(L43)=TRUE),"","ESTÁ SENDO UTILIZADA") -> ESTÁ SENDO UTILIZADA
B45: Descrição | C45: Coefi. | D45: UNi. | E45: Valor UNi. | F45: Fonte | G45: Cód. | H45: Valor | L45: Linha | M45: Nome original na fonte
B46: =M46 -> ANEL BORRACHA PARA TUBO ESGOTO PREDIAL DN 50 MM (NBR 5688) | C46: 1 | D46: =OFFSET(FONTE!$A$1,L46,2,1) -> UN | E46: =OFFSET(FONTE!$A$1,L46,3,1) -> 1.27 | F46: =OFFSET(FONTE!$A$1,L46,4,1) -> SINAPI-I | G46: 296 | H46: =ROUND((C46*E46),2) -> 1.27 | L46: =MATCH(G46,FONTE!$A$1:$A$12282,0)-1 -> 235 | M46: =OFFSET(FONTE!$A$1,L46,1,1) -> ANEL BORRACHA PARA TUBO ESGOTO PREDIAL DN 50 MM (NBR 5688)
B47: ANEL BORRACHA PARA TUBO ESGOTO PREDIAL, DN 100 MM (NBR 5688) | C47: 1 | D47: =OFFSET(FONTE!$A$1,L47,2,1) -> UN | E47: =OFFSET(FONTE!$A$1,L47,3,1) -> 2.25 | F47: =OFFSET(FONTE!$A$1,L47,4,1) -> SINAPI-I | G47: 301 | H47: 2.25 | L47: =MATCH(G47,FONTE!$A$1:$A$12282,0)-1 -> 237 | M47: =OFFSET(FONTE!$A$1,L47,1,1) -> ANEL BORRACHA PARA TUBO ESGOTO PREDIAL, DN 100 MM (NBR 5688)
B48: PASTA LUBRIFICANTE PARA TUBOS E CONEXOES COM JUNTA ELASTICA (USO EM PVC, ACO, POLIETILENO E OUTROS) ( DE *400* G) | C48: 0.092 | D48: =OFFSET(FONTE!$A$1,L48,2,1) -> UN | E48: =OFFSET(FONTE!$A$1,L48,3,1) -> 17.86 | F48: =OFFSET(FONTE!$A$1,L48,4,1) -> SINAPI-I | G48: 20078 | H48: 1.64 | L48: =MATCH(G48,FONTE!$A$1:$A$12282,0)-1 -> 3592 | M48: =OFFSET(FONTE!$A$1,L48,1,1) -> PASTA LUBRIFICANTE PARA TUBOS E CONEXOES COM JUNTA ELASTICA (USO EM PVC, ACO, POLIETILENO E OUTROS) ( DE *400* G)
B49: JUNCAO SIMPLES, PVC, DN 100 X 50 MM, SERIE NORMAL PARA ESGOTO PREDIAL | C49: 1 | D49: =OFFSET(FONTE!$A$1,L49,2,1) -> UN | E49: =OFFSET(FONTE!$A$1,L49,3,1) -> 9.01 | F49: =OFFSET(FONTE!$A$1,L49,4,1) -> SINAPI-I | G49: 3659 | H49: 9.01 | L49: =MATCH(G49,FONTE!$A$1:$A$12282,0)-1 -> 2765 | M49: =OFFSET(FONTE!$A$1,L49,1,1) -> JUNCAO SIMPLES, PVC, DN 100 X 50 MM, SERIE NORMAL PARA ESGOTO PREDIAL
B50: AUXILIAR DE ENCANADOR OU BOMBEIRO HIDRÁULICO COM ENCARGOS COMPLEMENTARES | C50: 0.185 | D50: =OFFSET(FONTE!$A$1,L50,2,1) -> H | E50: =OFFSET(FONTE!$A$1,L50,3,1) -> 16.7 | F50: =OFFSET(FONTE!$A$1,L50,4,1) -> SINAPI | G50: 88248 | H50: 3.09 | L50: =MATCH(G50,FONTE!$A$1:$A$12282,0)-1 -> 11525 | M50: =OFFSET(FONTE!$A$1,L50,1,1) -> AUXILIAR DE ENCANADOR OU BOMBEIRO HIDRÁULICO COM ENCARGOS COMPLEMENTARES
B51: ENCANADOR OU BOMBEIRO HIDRÁULICO COM ENCARGOS COMPLEMENTARES | C51: 0.185 | D51: =OFFSET(FONTE!$A$1,L51,2,1) -> H | E51: =OFFSET(FONTE!$A$1,L51,3,1) -> 22.63 | F51: =OFFSET(FONTE!$A$1,L51,4,1) -> SINAPI | G51: 88267 | H51: 4.19 | L51: =MATCH(G51,FONTE!$A$1:$A$12282,0)-1 -> 11543 | M51: =OFFSET(FONTE!$A$1,L51,1,1) -> ENCANADOR OU BOMBEIRO HIDRÁULICO COM ENCARGOS COMPLEMENTARES
G52: ∑ | H52: =SUM(H46:H51) -> 21.45
B54: Descrição | G54: UN | H54: Cód. | L54: =MATCH(H55,ORÇAMENTO!K:K,0) -> 62
B55: MÃO DE OBRA DE REVISÃO ELÉTRICA | G55: H | H55: CEL100 | L55: =IF((ISNA(L54)=TRUE),"","ESTÁ SENDO UTILIZADA") -> ESTÁ SENDO UTILIZADA
B56: Descrição | C56: Coefi. | D56: UNi. | E56: Valor UNi. | F56: Fonte | G56: Cód. | H56: Valor | J56: CED500 | L56: Linha | M56: Nome original na fonte
B57: =M57 -> ELETRICISTA COM ENCARGOS COMPLEMENTARES | C57: 1 | D57: =OFFSET(FONTE!$A$1,L57,2,1) -> H | E57: =OFFSET(FONTE!$A$1,L57,3,1) -> 29.46 | F57: =OFFSET(FONTE!$A$1,L57,4,1) -> SINAPI | G57: 88264 | H57: =ROUND((C57*E57),2) -> 29.46 | L57: =MATCH(G57,FONTE!$A$1:$A$12282,0)-1 -> 11540 | M57: =OFFSET(FONTE!$A$1,L57,1,1) -> ELETRICISTA COM ENCARGOS COMPLEMENTARES
B58: AUXILIAR DE ELETRICISTA COM ENCARGOS COMPLEMENTARES | C58: 1 | D58: =OFFSET(FONTE!$A$1,L58,2,1) -> H | E58: =OFFSET(FONTE!$A$1,L58,3,1) -> 21.49 | F58: =OFFSET(FONTE!$A$1,L58,4,1) -> SINAPI | G58: 88247 | H58: 21.49 | L58: =MATCH(G58,FONTE!$A$1:$A$12282,0)-1 -> 11524 | M58: =OFFSET(FONTE!$A$1,L58,1,1) -> AUXILIAR DE ELETRICISTA COM ENCARGOS COMPLEMENTARES
G59: ∑ | H59: =SUM(H57:H58) -> 50.95
B61: Descrição | G61: UN | H61: Cód. | L61: =MATCH(H62,ORÇAMENTO!K:K,0) -> 56
B62: FABRICAÇÃO E INSTALAÇÃO DE TESOURA INTEIRA EM MADEIRA NÃO APARELHADA, VÃO DE 6 M, PARA TELHA ONDULADA DE FIBROCIMENTO, METÁLICA, PLÁSTICA OU TERMOACÚSTICA. | G62: UN | H62: CED500 | L62: =IF((ISNA(L61)=TRUE),"","ESTÁ SENDO UTILIZADA") -> ESTÁ SENDO UTILIZADA
B63: Descrição | C63: Coefi. | D63: UNi. | E63: Valor UNi. | F63: Fonte | G63: Cód. | H63: Valor | L63: Linha | M63: Nome original na fonte
B64: =M64 -> CAIBRO DE MADEIRA NAO APARELHADA *6 X 8* CM, MACARANDUBA, ANGELIM OU EQUIVALENTE DA REGIAO | C64: 3.5 | D64: M | E64: =OFFSET(FONTE!$A$1,L64,3,1) -> 15.87 | F64: =OFFSET(FONTE!$A$1,L64,4,1) -> SINAPI-I | G64: 4400 | H64: =ROUND((C64*E64),2) -> 55.55 | L64: =MATCH(G64,FONTE!$A$1:$A$12282,0)-1 -> 915 | M64: =OFFSET(FONTE!$A$1,L64,1,1) -> CAIBRO DE MADEIRA NAO APARELHADA *6 X 8* CM, MACARANDUBA, ANGELIM OU EQUIVALENTE DA REGIAO
B65: VIGA DE MADEIRA NAO APARELHADA 6 X 12 CM, MACARANDUBA, ANGELIM OU EQUIVALENTE DA REGIAO | C65: 13.5 | D65: M | E65: =OFFSET(FONTE!$A$1,L65,3,1) -> 24.34 | F65: =OFFSET(FONTE!$A$1,L65,4,1) -> SINAPI-I | G65: 4425 | H65: 328.59 | L65: =MATCH(G65,FONTE!$A$1:$A$12282,0)-1 -> 5334 | M65: =OFFSET(FONTE!$A$1,L65,1,1) -> VIGA DE MADEIRA NAO APARELHADA 6 X 12 CM, MACARANDUBA, ANGELIM OU EQUIVALENTE DA REGIAO
B66: TABUA DE MADEIRA NAO APARELHADA *2,5 X 20* CM, CEDRINHO OU EQUIVALENTE DA REGIAO | C66: 3 | D66: M | E66: =OFFSET(FONTE!$A$1,L66,3,1) -> 13.09 | F66: =OFFSET(FONTE!$A$1,L66,4,1) -> SINAPI-I | G66: 6193 | H66: 39.27 | L66: =MATCH(G66,FONTE!$A$1:$A$12282,0)-1 -> 4282 | M66: =OFFSET(FONTE!$A$1,L66,1,1) -> TABUA DE MADEIRA NAO APARELHADA *2,5 X 20* CM, CEDRINHO OU EQUIVALENTE DA REGIAO
B67: ESTRIBO COM PARAFUSO EM CHAPA DE FERRO FUNDIDO DE 2" X 3/16" X 35 CM, SECAO "U", PARA MADEIRAMENTO DE TELHADO | C67: 1 | D67: UN | E67: =OFFSET(FONTE!$A$1,L67,3,1) -> 20.5 | F67: =OFFSET(FONTE!$A$1,L67,4,1) -> SINAPI-I | G67: 21142 | H67: 20.5 | L67: =MATCH(G67,FONTE!$A$1:$A$12282,0)-1 -> 2168 | M67: =OFFSET(FONTE!$A$1,L67,1,1) -> ESTRIBO COM PARAFUSO EM CHAPA DE FERRO FUNDIDO DE 2" X 3/16" X 35 CM, SECAO "U", PARA MADEIRAMENTO DE TELHADO
B68: PREGO DE ACO POLIDO COM CABECA 19 X 36 (3 1/4 X 9) | C68: 1.65 | D68: KG | E68: =OFFSET(FONTE!$A$1,L68,3,1) -> 10.11 | F68: =OFFSET(FONTE!$A$1,L68,4,1) -> SINAPI-I | G68: 39027 | H68: 16.68 | L68: =MATCH(G68,FONTE!$A$1:$A$12282,0)-1 -> 3932 | M68: =OFFSET(FONTE!$A$1,L68,1,1) -> PREGO DE ACO POLIDO COM CABECA 19 X 36 (3 1/4 X 9)
B69: =M69 -> AJUDANTE DE CARPINTEIRO COM ENCARGOS COMPLEMENTARES | C69: 2.594 | D69: H | E69: =OFFSET(FONTE!$A$1,L69,3,1) -> 20.55 | F69: =OFFSET(FONTE!$A$1,L69,4,1) -> SINAPI | G69: 88239 | H69: =ROUND((C69*E69),2) -> 53.31 | L69: =MATCH(G69,FONTE!$A$1:$A$12282,0)-1 -> 11517 | M69: =OFFSET(FONTE!$A$1,L69,1,1) -> AJUDANTE DE CARPINTEIRO COM ENCARGOS COMPLEMENTARES
B70: CARPINTEIRO DE FORMAS COM ENCARGOS COMPLEMENTARES | C70: 11.241 | D70: H | E70: =OFFSET(FONTE!$A$1,L70,3,1) -> 25.33 | F70: =OFFSET(FONTE!$A$1,L70,4,1) -> SINAPI | G70: 88262 | H70: 284.73 | L70: =MATCH(G70,FONTE!$A$1:$A$12282,0)-1 -> 11538 | M70: =OFFSET(FONTE!$A$1,L70,1,1) -> CARPINTEIRO DE FORMAS COM ENCARGOS COMPLEMENTARES
G71: ∑ | H71: =SUM(H64:H70) -> 798.63
B73: Descrição | G73: UN | H73: Cód. | L73: =MATCH(H74,ORÇAMENTO!K:K,0) -> 57
B74: FABRICAÇÃO E INSTALAÇÃO DE TESOURA INTEIRA EM MADEIRA NÃO APARELHADA, VÃO DE 9 M, PARA TELHA ONDULADA DE FIBROCIMENTO, METÁLICA, PLÁSTICA | G74: UN | H74: CED501 | L74: =IF((ISNA(L73)=TRUE),"","ESTÁ SENDO UTILIZADA") -> ESTÁ SENDO UTILIZADA
B75: Descrição | C75: Coefi. | D75: UNi. | E75: Valor UNi. | F75: Fonte | G75: Cód. | H75: Valor | L75: Linha | M75: Nome original na fonte
B76: =M76 -> PARAFUSO FRANCES METRICO ZINCADO, DIAMETRO 12 MM, COMPRIMENTO 150 MM, COM PORCA SEXTAVADA E ARRUELA DE PRESSAO MEDIA | C76: 4 | D76: UN | E76: =OFFSET(FONTE!$A$1,L76,3,1) -> 9.19 | F76: =OFFSET(FONTE!$A$1,L76,4,1) -> SINAPI-I | G76: 4344 | H76: =ROUND((C76*E76),2) -> 36.76 | L76: =MATCH(G76,FONTE!$A$1:$A$12282,0)-1 -> 3541 | M76: =OFFSET(FONTE!$A$1,L76,1,1) -> PARAFUSO FRANCES METRICO ZINCADO, DIAMETRO 12 MM, COMPRIMENTO 150 MM, COM PORCA SEXTAVADA E ARRUELA DE PRESSAO MEDIA
B77: CAIBRO DE MADEIRA NAO APARELHADA *6 X 8* CM, MACARANDUBA, ANGELIM OU EQUIVALENTE DA REGIAO | C77: 6.5 | D77: M | E77: =OFFSET(FONTE!$A$1,L77,3,1) -> 15.87 | F77: =OFFSET(FONTE!$A$1,L77,4,1) -> SINAPI-I | G77: 4400 | H77: 103.16 | L77: =MATCH(G77,FONTE!$A$1:$A$12282,0)-1 -> 915 | M77: =OFFSET(FONTE!$A$1,L77,1,1) -> CAIBRO DE MADEIRA NAO APARELHADA *6 X 8* CM, MACARANDUBA, ANGELIM OU EQUIVALENTE DA REGIAO
B78: SARRAFO DE MADEIRA NAO APARELHADA 2,5 X 5 CM, MACARANDUBA, ANGELIM OU EQUIVALENTE DA REGIAO | C78: 2.5 | D78: M | E78: =OFFSET(FONTE!$A$1,L78,3,1) -> 5.55 | F78: =OFFSET(FONTE!$A$1,L78,4,1) -> SINAPI-I | G78: 4415 | H78: 13.88 | L78: =MATCH(G78,FONTE!$A$1:$A$12282,0)-1 -> 4174 | M78: =OFFSET(FONTE!$A$1,L78,1,1) -> SARRAFO DE MADEIRA NAO APARELHADA 2,5 X 5 CM, MACARANDUBA, ANGELIM OU EQUIVALENTE DA REGIAO
B79: VIGA DE MADEIRA NAO APARELHADA 6 X 12 CM, MACARANDUBA, ANGELIM OU EQUIVALENTE DA REGIAO | C79: 10.5 | D79: M | E79: =OFFSET(FONTE!$A$1,L79,3,1) -> 24.34 | F79: =OFFSET(FONTE!$A$1,L79,4,1) -> SINAPI-I | G79: 4425 | H79: 255.57 | L79: =MATCH(G79,FONTE!$A$1:$A$12282,0)-1 -> 5334 | M79: =OFFSET(FONTE!$A$1,L79,1,1) -> VIGA DE MADEIRA NAO APARELHADA 6 X 12 CM, MACARANDUBA, ANGELIM OU EQUIVALENTE DA REGIAO
B80: VIGA DE MADEIRA NAO APARELHADA *6 X 16* CM, MACARANDUBA, ANGELIM OU EQUIVALENTE DA REGIAO | C80: 10 | D80: M | E80: =OFFSET(FONTE!$A$1,L80,3,1) -> 33.14 | F80: =OFFSET(FONTE!$A$1,L80,4,1) -> SINAPI-I | G80: 4472 | H80: 331.4 | L80: =MATCH(G80,FONTE!$A$1:$A$12282,0)-1 -> 5331 | M80: =OFFSET(FONTE!$A$1,L80,1,1) -> VIGA DE MADEIRA NAO APARELHADA *6 X 16* CM, MACARANDUBA, ANGELIM OU EQUIVALENTE DA REGIAO
B81: TABUA DE MADEIRA NAO APARELHADA *2,5 X 20* CM, CEDRINHO OU EQUIVALENTE DA REGIAO | C81: 3 | D81: M | E81: =OFFSET(FONTE!$A$1,L81,3,1) -> 13.09 | F81: =OFFSET(FONTE!$A$1,L81,4,1) -> SINAPI-I | G81: 6193 | H81: 39.27 | L81: =MATCH(G81,FONTE!$A$1:$A$12282,0)-1 -> 4282 | M81: =OFFSET(FONTE!$A$1,L81,1,1) -> TABUA DE MADEIRA NAO APARELHADA *2,5 X 20* CM, CEDRINHO OU EQUIVALENTE DA REGIAO
B82: =M82 -> ESTRIBO COM PARAFUSO EM CHAPA DE FERRO FUNDIDO DE 2" X 3/16" X 35 CM, SECAO "U", PARA MADEIRAMENTO DE TELHADO | C82: 1 | D82: UN | E82: =OFFSET(FONTE!$A$1,L82,3,1) -> 20.5 | F82: =OFFSET(FONTE!$A$1,L82,4,1) -> SINAPI-I | G82: 21142 | H82: =ROUND((C82*E82),2) -> 20.5 | L82: =MATCH(G82,FONTE!$A$1:$A$12282,0)-1 -> 2168 | M82: =OFFSET(FONTE!$A$1,L82,1,1) -> ESTRIBO COM PARAFUSO EM CHAPA DE FERRO FUNDIDO DE 2" X 3/16" X 35 CM, SECAO "U", PARA MADEIRAMENTO DE TELHADO
B83: PREGO DE ACO POLIDO COM CABECA 19 X 36 (3 1/4 X 9) | C83: 2.7 | D83: KG | E83: =OFFSET(FONTE!$A$1,L83,3,1) -> 10.11 | F83: =OFFSET(FONTE!$A$1,L83,4,1) -> SINAPI-I | G83: 39027 | H83: 27.3 | L83: =MATCH(G83,FONTE!$A$1:$A$12282,0)-1 -> 3932 | M83: =OFFSET(FONTE!$A$1,L83,1,1) -> PREGO DE ACO POLIDO COM CABECA 19 X 36 (3 1/4 X 9)
B84: =M84 -> CHAPA PARA EMENDA DE VIGA, EM ACO GROSSO, QUALIDADE ESTRUTURAL, BITOLA 3/16 ", E= 4,75 MM, 4 FUROS, LARGURA 45 MM, COMPRIMENTO 500 MM | C84: 1 | D84: PAR | E84: =OFFSET(FONTE!$A$1,L84,3,1) -> 32.48 | F84: =OFFSET(FONTE!$A$1,L84,4,1) -> SINAPI-I | G84: 40623 | H84: =ROUND((C84*E84),2) -> 32.48 | L84: =MATCH(G84,FONTE!$A$1:$A$12282,0)-1 -> 1252 | M84: =OFFSET(FONTE!$A$1,L84,1,1) -> CHAPA PARA EMENDA DE VIGA, EM ACO GROSSO, QUALIDADE ESTRUTURAL, BITOLA 3/16 ", E= 4,75 MM, 4 FUROS, LARGURA 45 MM, COMPRIMENTO 500 MM
B85: AJUDANTE DE CARPINTEIRO COM ENCARGOS COMPLEMENTARES | C85: 4.323 | D85: H | E85: =OFFSET(FONTE!$A$1,L85,3,1) -> 20.55 | F85: =OFFSET(FONTE!$A$1,L85,4,1) -> SINAPI | G85: 88239 | H85: 88.84 | L85: =MATCH(G85,FONTE!$A$1:$A$12282,0)-1 -> 11517 | M85: =OFFSET(FONTE!$A$1,L85,1,1) -> AJUDANTE DE CARPINTEIRO COM ENCARGOS COMPLEMENTARES
B86: =M86 -> CARPINTEIRO DE FORMAS COM ENCARGOS COMPLEMENTARES | C86: 18.735 | D86: H | E86: =OFFSET(FONTE!$A$1,L86,3,1) -> 25.33 | F86: =OFFSET(FONTE!$A$1,L86,4,1) -> SINAPI | G86: 88262 | H86: =ROUND((C86*E86),2) -> 474.56 | L86: =MATCH(G86,FONTE!$A$1:$A$12282,0)-1 -> 11538 | M86: =OFFSET(FONTE!$A$1,L86,1,1) -> CARPINTEIRO DE FORMAS COM ENCARGOS COMPLEMENTARES
G87: ∑ | H87: =SUM(H76:H86) -> 1423.72
B89: Descrição | G89: UN | H89: Cód. | L89: =MATCH(H90,ORÇAMENTO!K:K,0) -> 97
B90: REVESTIMENTO CERÂMICO PARA PISO COM PLACAS TIPO PORCELANATO DE DIMENSÕES 60X60 CM APLICADA EM AMBIENTES DE ÁREA MAIOR QUE 10 M². AF_06/2014 | G90: UN | H90: CED502 | L90: =IF((ISNA(L89)=TRUE),"","ESTÁ SENDO UTILIZADA") -> ESTÁ SENDO UTILIZADA
B91: Descrição | C91: Coefi. | D91: UNi. | E91: Valor UNi. | F91: Fonte | G91: Cód. | H91: Valor | L91: Linha | M91: Nome original na fonte
B92: =M92 -> REJUNTE COLORIDO, CIMENTICIO | C92: 0.14 | D92: KG | E92: =OFFSET(FONTE!$A$1,L92,3,1) -> 2.48 | F92: =OFFSET(FONTE!$A$1,L92,4,1) -> SINAPI-I | G92: 34357 | H92: =ROUND((C92*E92),2) -> 0.35 | L92: =MATCH(G92,FONTE!$A$1:$A$12282,0)-1 -> 4096 | M92: =OFFSET(FONTE!$A$1,L92,1,1) -> REJUNTE COLORIDO, CIMENTICIO
B93: ARGAMASSA COLANTE TIPO ACIII | C93: 8.62 | D93: KG | E93: =OFFSET(FONTE!$A$1,L93,3,1) -> 1.19 | F93: =OFFSET(FONTE!$A$1,L93,4,1) -> SINAPI-I | G93: 37595 | H93: 10.26 | L93: =MATCH(G93,FONTE!$A$1:$A$12282,0)-1 -> 363 | M93: =OFFSET(FONTE!$A$1,L93,1,1) -> ARGAMASSA COLANTE TIPO ACIII
B94: PISO PORCELANATO, BORDA RETA, EXTRA, FORMATO 60x60 | C94: 1.07 | D94: M2 | E94: =OFFSET(FONTE!$A$1,L94,3,1) -> 49.9 | F94: =OFFSET(FONTE!$A$1,L94,4,1) -> Mercado | G94: MED118 | H94: 53.39 | L94: =MATCH(G94,FONTE!$A$1:$A$12282,0)-1 -> 11831 | M94: =OFFSET(FONTE!$A$1,L94,1,1) -> PISO PORCELANATO, BORDA RETA, EXTRA, FORMATO 60x60
B95: AZULEJISTA OU LADRILHISTA COM ENCARGOS COMPLEMENTARES | C95: 0.44 | D95: H | E95: =OFFSET(FONTE!$A$1,L95,3,1) -> 22.32 | F95: =OFFSET(FONTE!$A$1,L95,4,1) -> SINAPI | G95: 88256 | H95: 9.82 | L95: =MATCH(G95,FONTE!$A$1:$A$12282,0)-1 -> 11532 | M95: =OFFSET(FONTE!$A$1,L95,1,1) -> AZULEJISTA OU LADRILHISTA COM ENCARGOS COMPLEMENTARES
B96: SERVENTE COM ENCARGOS COMPLEMENTARES | C96: 0.2 | D96: H | E96: =OFFSET(FONTE!$A$1,L96,3,1) -> 16.64 | F96: =OFFSET(FONTE!$A$1,L96,4,1) -> SINAPI | G96: 88316 | H96: 3.33 | L96: =MATCH(G96,FONTE!$A$1:$A$12282,0)-1 -> 11585 | M96: =OFFSET(FONTE!$A$1,L96,1,1) -> SERVENTE COM ENCARGOS COMPLEMENTARES
G97: ∑ | H97: =SUM(H92:H96) -> 77.15
B114: Descrição | G114: UN | H114: Cód. | L114: =MATCH(H115,ORÇAMENTO!K:K,0) -> 114
B115: DUCHA HIGIÊNICA METÁLICA DE PAREDE ARTICULÁVEL (fornecimento e instalação) | G115: UN | H115: CAC001 | L115: =IF((ISNA(L114)=TRUE),"","ESTÁ SENDO UTILIZADA") -> ESTÁ SENDO UTILIZADA
B116: Descrição | C116: Coefi. | D116: UNi. | E116: Valor UNi. | F116: Fonte | G116: Cód. | H116: Valor | L116: Linha | M116: Nome original na fonte
B117: =M117 -> DUCHA METALICA DE PAREDE, ARTICULAVEL, COM BRACO/CANO, SEM DESVIADOR | C117: 1 | D117: =OFFSET(FONTE!$A$1,L117,2,1) -> UN | E117: =OFFSET(FONTE!$A$1,L117,3,1) -> 196.96 | F117: =OFFSET(FONTE!$A$1,L117,4,1) -> SINAPI-I | G117: 38189 | H117: =ROUND((C117*E117),2) -> 196.96 | L117: =MATCH(G117,FONTE!$A$1:$A$12282,0)-1 -> 1967 | M117: =OFFSET(FONTE!$A$1,L117,1,1) -> DUCHA METALICA DE PAREDE, ARTICULAVEL, COM BRACO/CANO, SEM DESVIADOR
B118: FITA VEDA ROSCA EM ROLOS DE 18 MM X 50 M (L X C) | C118: 0.01 | D118: =OFFSET(FONTE!$A$1,L118,2,1) -> UN | E118: =OFFSET(FONTE!$A$1,L118,3,1) -> 9.4 | F118: =OFFSET(FONTE!$A$1,L118,4,1) -> SINAPI-I | G118: 3148 | H118: 0.09 | L118: =MATCH(G118,FONTE!$A$1:$A$12282,0)-1 -> 2303 | M118: =OFFSET(FONTE!$A$1,L118,1,1) -> FITA VEDA ROSCA EM ROLOS DE 18 MM X 50 M (L X C)
B119: ELETRICISTA COM ENCARGOS COMPLEMENTARES | C119: 0.45 | D119: =OFFSET(FONTE!$A$1,L119,2,1) -> H | E119: =OFFSET(FONTE!$A$1,L119,3,1) -> 29.46 | F119: =OFFSET(FONTE!$A$1,L119,4,1) -> SINAPI | G119: 88264 | H119: 13.26 | L119: =MATCH(G119,FONTE!$A$1:$A$12282,0)-1 -> 11540 | M119: =OFFSET(FONTE!$A$1,L119,1,1) -> ELETRICISTA COM ENCARGOS COMPLEMENTARES
B120: SERVENTE COM ENCARGOS COMPLEMENTARES | C120: 0.3 | D120: =OFFSET(FONTE!$A$1,L120,2,1) -> H | E120: =OFFSET(FONTE!$A$1,L120,3,1) -> 16.64 | F120: =OFFSET(FONTE!$A$1,L120,4,1) -> SINAPI | G120: 88316 | H120: 4.99 | L120: =MATCH(G120,FONTE!$A$1:$A$12282,0)-1 -> 11585 | M120: =OFFSET(FONTE!$A$1,L120,1,1) -> SERVENTE COM ENCARGOS COMPLEMENTARES
G121: ∑ | H121: =SUM(H117:H120) -> 215.3
B123: Descrição | G123: UN | H123: Cód. | L123: =MATCH(H124,ORÇAMENTO!K:K,0) -> 116
B124: BARRA DE APOIO ANGULAR, 60 CM, EM ACO INOX POLIDO (fornecimento e instalação) | G124: UN | H124: CAC003 | L124: =IF((ISNA(L123)=TRUE),"","ESTÁ SENDO UTILIZADA") -> ESTÁ SENDO UTILIZADA
B125: Descrição | C125: Coefi. | D125: UNi. | E125: Valor UNi. | F125: Fonte | G125: Cód. | H125: Valor | L125: Linha | M125: Nome original na fonte
B126: =M126 -> BARRA DE APOIO RETA, EM ACO INOX POLIDO, COMPRIMENTO 90 CM, DIAMETRO MINIMO 3 CM | C126: 1 | D126: =OFFSET(FONTE!$A$1,L126,2,1) -> UN | E126: =OFFSET(FONTE!$A$1,L126,3,1) -> 183.34 | F126: =OFFSET(FONTE!$A$1,L126,4,1) -> SINAPI-I | G126: 36206 | H126: =ROUND((C126*E126),2) -> 183.34 | L126: =MATCH(G126,FONTE!$A$1:$A$12282,0)-1 -> 477 | M126: =OFFSET(FONTE!$A$1,L126,1,1) -> BARRA DE APOIO RETA, EM ACO INOX POLIDO, COMPRIMENTO 90 CM, DIAMETRO MINIMO 3 CM
B127: BUCHA DE NYLON SEM ABA S8, COM PARAFUSO DE 4,80 X 50 MM EM ACO ZINCADO COM ROSCA SOBERBA, CABECA CHATA E FENDA PHILLIPS | C127: 8 | D127: =OFFSET(FONTE!$A$1,L127,2,1) -> UN | E127: =OFFSET(FONTE!$A$1,L127,3,1) -> 0.41 | F127: =OFFSET(FONTE!$A$1,L127,4,1) -> SINAPI-I | G127: 7583 | H127: 3.28 | L127: =MATCH(G127,FONTE!$A$1:$A$12282,0)-1 -> 636 | M127: =OFFSET(FONTE!$A$1,L127,1,1) -> BUCHA DE NYLON SEM ABA S8, COM PARAFUSO DE 4,80 X 50 MM EM ACO ZINCADO COM ROSCA SOBERBA, CABECA CHATA E FENDA PHILLIPS
B128: SERVENTE COM ENCARGOS COMPLEMENTARES | C128: 0.5 | D128: =OFFSET(FONTE!$A$1,L128,2,1) -> H | E128: =OFFSET(FONTE!$A$1,L128,3,1) -> 16.64 | F128: =OFFSET(FONTE!$A$1,L128,4,1) -> SINAPI | G128: 88316 | H128: 8.32 | L128: =MATCH(G128,FONTE!$A$1:$A$12282,0)-1 -> 11585 | M128: =OFFSET(FONTE!$A$1,L128,1,1) -> SERVENTE COM ENCARGOS COMPLEMENTARES
G129: ∑ | H129: =SUM(H126:H128) -> 194.94
B131: Descrição | G131: UN | H131: Cód. | L131: =MATCH(H132,ORÇAMENTO!K:K,0) -> 117
B132: BARRA DE APOIO RETA, EM ALUMINIO, COMPRIMENTO 60CM OU MENOR (fornecimento e instalação) | G132: UN | H132: CAC004 | L132: =IF((ISNA(L131)=TRUE),"","ESTÁ SENDO UTILIZADA") -> ESTÁ SENDO UTILIZADA
B133: Descrição | C133: Coefi. | D133: UNi. | E133: Valor UNi. | F133: Fonte | G133: Cód. | H133: Valor | L133: Linha | M133: Nome original na fonte
B134: =M134 -> BARRA DE APOIO RETA, EM ALUMINIO, COMPRIMENTO 60CM, DIAMETRO MINIMO 3 CM | C134: 1 | D134: =OFFSET(FONTE!$A$1,L134,2,1) -> UN | E134: =OFFSET(FONTE!$A$1,L134,3,1) -> 84.64 | F134: =OFFSET(FONTE!$A$1,L134,4,1) -> SINAPI-I | G134: 36218 | H134: =ROUND((C134*E134),2) -> 84.64 | L134: =MATCH(G134,FONTE!$A$1:$A$12282,0)-1 -> 478 | M134: =OFFSET(FONTE!$A$1,L134,1,1) -> BARRA DE APOIO RETA, EM ALUMINIO, COMPRIMENTO 60CM, DIAMETRO MINIMO 3 CM
B135: BUCHA DE NYLON SEM ABA S8, COM PARAFUSO DE 4,80 X 50 MM EM ACO ZINCADO COM ROSCA SOBERBA, CABECA CHATA E FENDA PHILLIPS | C135: 8 | D135: =OFFSET(FONTE!$A$1,L135,2,1) -> UN | E135: =OFFSET(FONTE!$A$1,L135,3,1) -> 0.41 | F135: =OFFSET(FONTE!$A$1,L135,4,1) -> SINAPI-I | G135: 7583 | H135: 3.28 | L135: =MATCH(G135,FONTE!$A$1:$A$12282,0)-1 -> 636 | M135: =OFFSET(FONTE!$A$1,L135,1,1) -> BUCHA DE NYLON SEM ABA S8, COM PARAFUSO DE 4,80 X 50 MM EM ACO ZINCADO COM ROSCA SOBERBA, CABECA CHATA E FENDA PHILLIPS
B136: SERVENTE COM ENCARGOS COMPLEMENTARES | C136: 0.5 | D136: =OFFSET(FONTE!$A$1,L136,2,1) -> H | E136: =OFFSET(FONTE!$A$1,L136,3,1) -> 16.64 | F136: =OFFSET(FONTE!$A$1,L136,4,1) -> SINAPI | G136: 88316 | H136: 8.32 | L136: =MATCH(G136,FONTE!$A$1:$A$12282,0)-1 -> 11585 | M136: =OFFSET(FONTE!$A$1,L136,1,1) -> SERVENTE COM ENCARGOS COMPLEMENTARES
G137: ∑ | H137: =SUM(H134:H136) -> 96.24
B139: Descrição | G139: UN | H139: Cód. | L139: =MATCH(H140,ORÇAMENTO!K:K,0) -> 118
B140: BARRA DE APOIO RETA, EM ALUMINIO, COMPRIMENTO 70CM (fornecimento e instalação) | G140: UN | H140: CAC005 | L140: =IF((ISNA(L139)=TRUE),"","ESTÁ SENDO UTILIZADA") -> ESTÁ SENDO UTILIZADA
B141: Descrição | C141: Coefi. | D141: UNi. | E141: Valor UNi. | F141: Fonte | G141: Cód. | H141: Valor | L141: Linha | M141: Nome original na fonte
B142: =M142 -> BARRA DE APOIO RETA, EM ALUMINIO, COMPRIMENTO 70CM, DIAMETRO MINIMO 3 CM | C142: 1 | D142: =OFFSET(FONTE!$A$1,L142,2,1) -> UN | E142: =OFFSET(FONTE!$A$1,L142,3,1) -> 97.05 | F142: =OFFSET(FONTE!$A$1,L142,4,1) -> SINAPI-I | G142: 36220 | H142: =ROUND((C142*E142),2) -> 97.05 | L142: =MATCH(G142,FONTE!$A$1:$A$12282,0)-1 -> 479 | M142: =OFFSET(FONTE!$A$1,L142,1,1) -> BARRA DE APOIO RETA, EM ALUMINIO, COMPRIMENTO 70CM, DIAMETRO MINIMO 3 CM
B143: BUCHA DE NYLON SEM ABA S8, COM PARAFUSO DE 4,80 X 50 MM EM ACO ZINCADO COM ROSCA SOBERBA, CABECA CHATA E FENDA PHILLIPS | C143: 8 | D143: =OFFSET(FONTE!$A$1,L143,2,1) -> UN | E143: =OFFSET(FONTE!$A$1,L143,3,1) -> 0.41 | F143: =OFFSET(FONTE!$A$1,L143,4,1) -> SINAPI-I | G143: 7583 | H143: 3.28 | L143: =MATCH(G143,FONTE!$A$1:$A$12282,0)-1 -> 636 | M143: =OFFSET(FONTE!$A$1,L143,1,1) -> BUCHA DE NYLON SEM ABA S8, COM PARAFUSO DE 4,80 X 50 MM EM ACO ZINCADO COM ROSCA SOBERBA, CABECA CHATA E FENDA PHILLIPS
B144: SERVENTE COM ENCARGOS COMPLEMENTARES | C144: 0.5 | D144: =OFFSET(FONTE!$A$1,L144,2,1) -> H | E144: =OFFSET(FONTE!$A$1,L144,3,1) -> 16.64 | F144: =OFFSET(FONTE!$A$1,L144,4,1) -> SINAPI | G144: 88316 | H144: 8.32 | L144: =MATCH(G144,FONTE!$A$1:$A$12282,0)-1 -> 11585 | M144: =OFFSET(FONTE!$A$1,L144,1,1) -> SERVENTE COM ENCARGOS COMPLEMENTARES
G145: ∑ | H145: =SUM(H142:H144) -> 108.65
B147: Descrição | G147: UN | H147: Cód. | L147: =MATCH(H148,ORÇAMENTO!K:K,0) -> 119
B148: BARRA DE APOIO RETA, EM ALUMINIO, COMPRIMENTO 80CM (fornecimento e instalação) | G148: UN | H148: CAC006 | L148: =IF((ISNA(L147)=TRUE),"","ESTÁ SENDO UTILIZADA") -> ESTÁ SENDO UTILIZADA
B149: Descrição | C149: Coefi. | D149: UNi. | E149: Valor UNi. | F149: Fonte | G149: Cód. | H149: Valor | L149: Linha | M149: Nome original na fonte
B150: =M150 -> BARRA DE APOIO RETA, EM ALUMINIO, COMPRIMENTO 80 CM, DIAMETRO MINIMO 3 CM | C150: 1 | D150: =OFFSET(FONTE!$A$1,L150,2,1) -> UN | E150: =OFFSET(FONTE!$A$1,L150,3,1) -> 104.98 | F150: =OFFSET(FONTE!$A$1,L150,4,1) -> SINAPI-I | G150: 36080 | H150: =ROUND((C150*E150),2) -> 104.98 | L150: =MATCH(G150,FONTE!$A$1:$A$12282,0)-1 -> 480 | M150: =OFFSET(FONTE!$A$1,L150,1,1) -> BARRA DE APOIO RETA, EM ALUMINIO, COMPRIMENTO 80 CM, DIAMETRO MINIMO 3 CM
B151: BUCHA DE NYLON SEM ABA S8, COM PARAFUSO DE 4,80 X 50 MM EM ACO ZINCADO COM ROSCA SOBERBA, CABECA CHATA E FENDA PHILLIPS | C151: 8 | D151: =OFFSET(FONTE!$A$1,L151,2,1) -> UN | E151: =OFFSET(FONTE!$A$1,L151,3,1) -> 0.41 | F151: =OFFSET(FONTE!$A$1,L151,4,1) -> SINAPI-I | G151: 7583 | H151: 3.28 | L151: =MATCH(G151,FONTE!$A$1:$A$12282,0)-1 -> 636 | M151: =OFFSET(FONTE!$A$1,L151,1,1) -> BUCHA DE NYLON SEM ABA S8, COM PARAFUSO DE 4,80 X 50 MM EM ACO ZINCADO COM ROSCA SOBERBA, CABECA CHATA E FENDA PHILLIPS
B152: SERVENTE COM ENCARGOS COMPLEMENTARES | C152: 0.5 | D152: =OFFSET(FONTE!$A$1,L152,2,1) -> H | E152: =OFFSET(FONTE!$A$1,L152,3,1) -> 16.64 | F152: =OFFSET(FONTE!$A$1,L152,4,1) -> SINAPI | G152: 88316 | H152: 8.32 | L152: =MATCH(G152,FONTE!$A$1:$A$12282,0)-1 -> 11585 | M152: =OFFSET(FONTE!$A$1,L152,1,1) -> SERVENTE COM ENCARGOS COMPLEMENTARES
G153: ∑ | H153: =SUM(H150:H152) -> 116.58
B155: Descrição | G155: UN | H155: Cód. | L155: =MATCH(H156,ORÇAMENTO!K:K,0) -> 122
B156: TOALHEIRO PLÁSTICO TIPO DISPENSER PARA PAPEL TOALHA INTERFOLHADO (fornecimento e instalação) | G156: UN | H156: CAC007 | L156: =IF((ISNA(L155)=TRUE),"","ESTÁ SENDO UTILIZADA") -> ESTÁ SENDO UTILIZADA
B157: Descrição | C157: Coefi. | D157: UNi. | E157: Valor UNi. | F157: Fonte | G157: Cód. | H157: Valor | L157: Linha | M157: Nome original na fonte
B158: =M158 -> SERVENTE COM ENCARGOS COMPLEMENTARES | C158: 0.25 | D158: =OFFSET(FONTE!$A$1,L158,2,1) -> H | E158: =OFFSET(FONTE!$A$1,L158,3,1) -> 16.64 | F158: =OFFSET(FONTE!$A$1,L158,4,1) -> SINAPI | G158: 88316 | H158: =ROUND((C158*E158),2) -> 4.16 | L158: =MATCH(G158,FONTE!$A$1:$A$12282,0)-1 -> 11585 | M158: =OFFSET(FONTE!$A$1,L158,1,1) -> SERVENTE COM ENCARGOS COMPLEMENTARES
B159: TOALHEIRO PLASTICO TIPO DISPENSER PARA PAPEL TOALHA INTERFOLHADO | C159: 1 | D159: =OFFSET(FONTE!$A$1,L159,2,1) -> UN | E159: =OFFSET(FONTE!$A$1,L159,3,1) -> 64.96 | F159: =OFFSET(FONTE!$A$1,L159,4,1) -> SINAPI-I | G159: 37401 | H159: 64.96 | L159: =MATCH(G159,FONTE!$A$1:$A$12282,0)-1 -> 4745 | M159: =OFFSET(FONTE!$A$1,L159,1,1) -> TOALHEIRO PLASTICO TIPO DISPENSER PARA PAPEL TOALHA INTERFOLHADO
G160: ∑ | H160: =SUM(H158:H159) -> 69.12
B162: Descrição | G162: UN | H162: Cód. | L162: =MATCH(H163,ORÇAMENTO!K:K,0) -> 123
B163: PAPELEIRA TIPO DISPENSER PARA PAPEL HIGIÊNICO PARA ROLO DE 300M (fornecimento e instalação) | G163: UN | H163: CAC008 | L163: =IF((ISNA(L162)=TRUE),"","ESTÁ SENDO UTILIZADA") -> ESTÁ SENDO UTILIZADA
B164: Descrição | C164: Coefi. | D164: UNi. | E164: Valor UNi. | F164: Fonte | G164: Cód. | H164: Valor | L164: Linha | M164: Nome original na fonte
B165: =M165 -> SERVENTE COM ENCARGOS COMPLEMENTARES | C165: 0.25 | D165: =OFFSET(FONTE!$A$1,L165,2,1) -> H | E165: =OFFSET(FONTE!$A$1,L165,3,1) -> 16.64 | F165: =OFFSET(FONTE!$A$1,L165,4,1) -> SINAPI | G165: 88316 | H165: =ROUND((C165*E165),2) -> 4.16 | L165: =MATCH(G165,FONTE!$A$1:$A$12282,0)-1 -> 11585 | M165: =OFFSET(FONTE!$A$1,L165,1,1) -> SERVENTE COM ENCARGOS COMPLEMENTARES
B166: PAPELEIRA PLASTICA TIPO DISPENSER PARA PAPEL HIGIENICO ROLAO | C166: 1 | D166: =OFFSET(FONTE!$A$1,L166,2,1) -> UN | E166: =OFFSET(FONTE!$A$1,L166,3,1) -> 64.96 | F166: =OFFSET(FONTE!$A$1,L166,4,1) -> SINAPI-I | G166: 37400 | H166: 64.96 | L166: =MATCH(G166,FONTE!$A$1:$A$12282,0)-1 -> 3513 | M166: =OFFSET(FONTE!$A$1,L166,1,1) -> PAPELEIRA PLASTICA TIPO DISPENSER PARA PAPEL HIGIENICO ROLAO
G167: ∑ | H167: =SUM(H165:H166) -> 69.12
B169: Descrição | G169: UN | H169: Cód. | L169: =MATCH(H170,ORÇAMENTO!K:K,0) -> 124
B170: GANCHO PARA PENDURAR UTENSÍLIOS (fornecimento e instalação) | G170: UN | H170: CAC009 | L170: =IF((ISNA(L169)=TRUE),"","ESTÁ SENDO UTILIZADA") -> ESTÁ SENDO UTILIZADA
B171: Descrição | C171: Coefi. | D171: UNi. | E171: Valor UNi. | F171: Fonte | G171: Cód. | H171: Valor | L171: Linha | M171: Nome original na fonte
B172: =M172 -> CABIDE/GANCHO DE BANHEIRO SIMPLES EM METAL CROMADO | C172: 1 | D172: =OFFSET(FONTE!$A$1,L172,2,1) -> UN | E172: =OFFSET(FONTE!$A$1,L172,3,1) -> 22.77 | F172: =OFFSET(FONTE!$A$1,L172,4,1) -> SINAPI-I | G172: 37399 | H172: =ROUND((C172*E172),2) -> 22.77 | L172: =MATCH(G172,FONTE!$A$1:$A$12282,0)-1 -> 760 | M172: =OFFSET(FONTE!$A$1,L172,1,1) -> CABIDE/GANCHO DE BANHEIRO SIMPLES EM METAL CROMADO
B173: SERVENTE COM ENCARGOS COMPLEMENTARES | C173: 0.33 | D173: =OFFSET(FONTE!$A$1,L173,2,1) -> H | E173: =OFFSET(FONTE!$A$1,L173,3,1) -> 16.64 | F173: =OFFSET(FONTE!$A$1,L173,4,1) -> SINAPI | G173: 88316 | H173: 5.49 | L173: =MATCH(G173,FONTE!$A$1:$A$12282,0)-1 -> 11585 | M173: =OFFSET(FONTE!$A$1,L173,1,1) -> SERVENTE COM ENCARGOS COMPLEMENTARES
G174: ∑ | H174: =SUM(H172:H173) -> 28.26
B176: Descrição | G176: UN | H176: Cód. | L176: =MATCH(H177,ORÇAMENTO!K:K,0) -> 125
B177: PORTA OBJETOS (fornecimento e instalação) | G177: UN | H177: CAC010 | L177: =IF((ISNA(L176)=TRUE),"","ESTÁ SENDO UTILIZADA") -> ESTÁ SENDO UTILIZADA
B178: Descrição | C178: Coefi. | D178: UNi. | E178: Valor UNi. | F178: Fonte | G178: Cód. | H178: Valor | L178: Linha | M178: Nome original na fonte
B179: =M179 -> Porta objetos (pratileira em mdf com 2 mão francesa) | C179: 1 | D179: =OFFSET(FONTE!$A$1,L179,2,1) -> UN. | E179: =OFFSET(FONTE!$A$1,L179,3,1) -> 27.5 | F179: =OFFSET(FONTE!$A$1,L179,4,1) -> Mercado | G179: MAC001 | H179: =ROUND((C179*E179),2) -> 27.5 | L179: =MATCH(G179,FONTE!$A$1:$A$12282,0)-1 -> 11980 | M179: =OFFSET(FONTE!$A$1,L179,1,1) -> Porta objetos (pratileira em mdf com 2 mão francesa)
B180: SERVENTE COM ENCARGOS COMPLEMENTARES | C180: 0.33 | D180: =OFFSET(FONTE!$A$1,L180,2,1) -> H | E180: =OFFSET(FONTE!$A$1,L180,3,1) -> 16.64 | F180: =OFFSET(FONTE!$A$1,L180,4,1) -> SINAPI | G180: 88316 | H180: 5.49 | L180: =MATCH(G180,FONTE!$A$1:$A$12282,0)-1 -> 11585 | M180: =OFFSET(FONTE!$A$1,L180,1,1) -> SERVENTE COM ENCARGOS COMPLEMENTARES
G181: ∑ | H181: =SUM(H179:H180) -> 32.99
B183: Descrição | G183: UN | H183: Cód. | L183: =MATCH(H184,ORÇAMENTO!K:K,0) -> 126
B184: LIXEIRA BASCULANTE DE PVC 12 LITROS (fornecimento e instalação) | G184: UN | H184: CAC011 | L184: =IF((ISNA(L183)=TRUE),"","ESTÁ SENDO UTILIZADA") -> ESTÁ SENDO UTILIZADA
B185: Descrição | C185: Coefi. | D185: UNi. | E185: Valor UNi. | F185: Fonte | G185: Cód. | H185: Valor | L185: Linha | M185: Nome original na fonte
B186: =M186 -> SERVENTE COM ENCARGOS COMPLEMENTARES | C186: 0.16 | D186: =OFFSET(FONTE!$A$1,L186,2,1) -> H | E186: =OFFSET(FONTE!$A$1,L186,3,1) -> 16.64 | F186: =OFFSET(FONTE!$A$1,L186,4,1) -> SINAPI | G186: 88316 | H186: =ROUND((C186*E186),2) -> 2.66 | L186: =MATCH(G186,FONTE!$A$1:$A$12282,0)-1 -> 11585 | M186: =OFFSET(FONTE!$A$1,L186,1,1) -> SERVENTE COM ENCARGOS COMPLEMENTARES
B187: Lixeira basculante de pvc 12 litros | C187: 1 | D187: =OFFSET(FONTE!$A$1,L187,2,1) -> UN. | E187: =OFFSET(FONTE!$A$1,L187,3,1) -> 32 | F187: =OFFSET(FONTE!$A$1,L187,4,1) -> Mercado | G187: MED099 | H187: 32 | L187: =MATCH(G187,FONTE!$A$1:$A$12282,0)-1 -> 11815 | M187: =OFFSET(FONTE!$A$1,L187,1,1) -> Lixeira basculante de pvc 12 litros
G188: ∑ | H188: =SUM(H186:H187) -> 34.66
B190: Descrição | G190: UN | H190: Cód. | L190: =MATCH(H191,ORÇAMENTO!K:K,0) -> 
B191: PLACA DE PROTEÇÃO DE IMPACTO NAS PORTAS (fornecimento e instalação) | G191: M2 | H191: CAC013 | L191: =IF((ISNA(L190)=TRUE),"","ESTÁ SENDO UTILIZADA") -> 
B192: Descrição | C192: Coefi. | D192: UNi. | E192: Valor UNi. | F192: Fonte | G192: Cód. | H192: Valor | L192: Linha | M192: Nome original na fonte
B193: =M193 -> CHAPA DE ACO GALVANIZADA BITOLA GSG 20, E = 0,95 MM (7,60 KG/M2) | C193: 1 | D193: =OFFSET(FONTE!$A$1,L193,2,1) -> M2 | E193: =OFFSET(FONTE!$A$1,L193,3,1) -> 55.7 | F193: =OFFSET(FONTE!$A$1,L193,4,1) -> SINAPI-I | G193: 39630 | H193: =ROUND((C193*E193),2) -> 55.7 | L193: =MATCH(G193,FONTE!$A$1:$A$12282,0)-1 -> 1180 | M193: =OFFSET(FONTE!$A$1,L193,1,1) -> CHAPA DE ACO GALVANIZADA BITOLA GSG 20, E = 0,95 MM (7,60 KG/M2)
B194: SERVENTE COM ENCARGOS COMPLEMENTARES | C194: 0.33 | D194: =OFFSET(FONTE!$A$1,L194,2,1) -> H | E194: =OFFSET(FONTE!$A$1,L194,3,1) -> 16.64 | F194: =OFFSET(FONTE!$A$1,L194,4,1) -> SINAPI | G194: 88316 | H194: 5.49 | L194: =MATCH(G194,FONTE!$A$1:$A$12282,0)-1 -> 11585 | M194: =OFFSET(FONTE!$A$1,L194,1,1) -> SERVENTE COM ENCARGOS COMPLEMENTARES
B195: PARAFUSO DE ACO ZINCADO COM ROSCA SOBERBA, CABECA CHATA E FENDA SIMPLES, DIAMETRO 4,8 MM, COMPRIMENTO 45 MM | C195: 4 | D195: =OFFSET(FONTE!$A$1,L195,2,1) -> UN | E195: =OFFSET(FONTE!$A$1,L195,3,1) -> 0.11 | F195: =OFFSET(FONTE!$A$1,L195,4,1) -> SINAPI-I | G195: 4356 | H195: 0.44 | L195: =MATCH(G195,FONTE!$A$1:$A$12282,0)-1 -> 3524 | M195: =OFFSET(FONTE!$A$1,L195,1,1) -> PARAFUSO DE ACO ZINCADO COM ROSCA SOBERBA, CABECA CHATA E FENDA SIMPLES, DIAMETRO 4,8 MM, COMPRIMENTO 45 MM
G196: ∑ | H196: =SUM(H193:H195) -> 61.63

Sheet BDI 14,45%
B4: O valor do BDI é obtido pela fórmula e taxas abaixo
B6: FÓRMULA BDI - Fornecimento de Materiais e Equipamentos
B9: BDI = | C9: (1+AC+S+R+G)(1+DF)(1+L) | D9: -1
C10: _______________________________________
C11: (1-I)
B14: ONDE:
B15: AC = Taxa de Administração Central | E15: 0.015
B16: S = Taxa de Seguros | E16: 0.0015
B17: G = Taxa de Garantias | E17: 0.0015
B18: R = Taxa de Riscos | E18: 0.0056
B19: DF = Taxa de Despesas Financeiras | E19: 0.0085
B20: L = Taxa de Lucro / Remuneração | E20: 0.035
B21: I = Taxa de Incidência de Impostos | E21: =D24 -> 0.0665
C22: I1: PIS e COFINS | D22: 0.0365
C23: I2: ISSQN (conforme legislação municipal) | D23: 0.03
C24: ∑ | D24: =SUM(D22:D23) -> 0.0665
B26: TEMOS ENTÃO ENTRANDO COM OS DADOS NA FÓRMULA
C28: =TRUNC(((((1+E15+E16+E17+E18)*(1+E19)*(1+E20))/(1-E21))-1),4) -> 0.1445
F495: COM003
F507: COM004
A509: 32.25 | B509: m2
A510: 3.23 | B510: m3
A511: 70.95 | B511: kg
A512: 3.23 | B512: m3
A513: 2 | B513: un
A514: 7.44 | B514: m2 | E514: COM003

Sheet COTAÇÃO DE MERCADO
B4: Abaixo segue uma lista com Valores, Nomes de Fabricantes. Os valores referem-se ao produto posto no local da obra. Junto ao Nome de cada Fabricante há o contato deles e o CNPJ.
B5: Código utilizado | C5: Descrição | D5: Uni. | E5: Data da Pesquisa | F5: Empresas | G5: Valor orçado s/ BDI | H5: Valor orçado da Mediana s/ BDI | K5: Custo | L5: Frete | M5: Distância
B7: =FONTE!A11831 -> MED117 | C7: =FONTE!B11831 -> Telhas tipo galvalume trapezoidal #0,50 mm + 3 cm de EPS (isopor) + telha tipo galvalume trapezoidal #0,43 mm | D7: M | E7: 2019-06-14 | F7: =FONTE!R11831 -> Kurtz Empreendimentos - CNPJ 13.624.323/0001-06 - Tel.: (47) 3533-5959 - Jaison Roberto Hillesheim | G7: =FONTE!S11831 -> 86.14457831 | H7: =MEDIAN(G7,G8,G9) -> 90.23603896 | K7: 70
E8: 2019-06-14 | F8: =FONTE!H11831 -> Manturi - CNPJ: 72.385.776/0001-88 - Tel.: (47) 3533-4161 - Eduardo Bruda | G8: =FONTE!I11831 -> 90.23603896 | K8: 40
E9: =E7 -> 2019-06-14 | F9: =FONTE!M11831 -> ARG Industrial Ltda - CNPJ: 04.415.095/0001-65 - Tel.: (47) 3562-2020 - Otávio Trevizan | G9: =FONTE!N11831 -> 105 | K9: 50
B11: =FONTE!A11832 -> MED118 | C11: =FONTE!B11832 -> PISO PORCELANATO, BORDA RETA, EXTRA, FORMATO 60x60 | D11: =FONTE!C11832 -> M2 | E11: 2019-07-29 | F11: =FONTE!H11832 -> Nardelli Mat. Cons. - CNPJ: 75.862.961.0002-95 Fone: (47) 3525-6700 - 9 8814-6137 - 9 8886-2548 Contato: Vilando Vieira | G11: =FONTE!I11832 -> 49.9 | H11: =MEDIAN(G11,G12,G13) -> 49.9 | K11: 70
E12: =E11 -> 2019-07-29 | F12: =FONTE!M11832 -> Tonet Materiais de Construção - CNPJ: 80.653.918/0003-30 Fone: (47) 3531-7400 - 9 8814-6137 Contato: Genesio Hasse | G12: =FONTE!N11832 -> 49 | K12: 40
E13: =E11 -> 2019-07-29 | F13: =FONTE!R11832 -> Cerutti Com De Material De Construcao Ltda Me - CNPJ: 00.548.252/0001-50 - Tel.: (47)3371-0791 - Contato: Cerutti | G13: =FONTE!S11832 -> 52 | K13: 50
H320: COM003
H332: COM004
B334: =L334 -> 0 | C334: 32.25 | D334: m2
B335: =L335 -> 0 | C335: 3.23 | D335: m3
B336: 0 | C336: 70.95 | D336: kg
B337: 0 | C337: 3.23 | D337: m3
B338: 0 | C338: 2 | D338: un
B339: =L339 -> 0 | C339: 7.44 | D339: m2 | G339: COM003

Sheet FONTE
A1: Código | B1: Descrição | C1: UN | D1: Preço Unitário | E1: Fonte | F1: Classe | G1: Tipo
A2: SINAPI - JUNHO/2019 - SEM DESONERAÇÃO
A6: INSUMOS
A8: 39847 | B8: !EM PROCESSO DE DESATIVACAO! AR-CONDICIONADO FRIO SPLIT HI-WALL (PAREDE) 12000 BTU/H | C8: UN | D8: 1498.59 | E8: SINAPI-I
A9: 39844 | B9: !EM PROCESSO DE DESATIVACAO! AR-CONDICIONADO FRIO SPLIT HI-WALL (PAREDE) 18000 BTU/H | C9: UN | D9: 2211.62 | E9: SINAPI-I
A10: 39846 | B10: !EM PROCESSO DE DESATIVACAO! AR-CONDICIONADO FRIO SPLIT HI-WALL (PAREDE) 9000 BTU/H | C10: UN | D10: 1351.25 | E10: SINAPI-I
A11: 39838 | B11: !EM PROCESSO DE DESATIVACAO! AR-CONDICIONADO FRIO SPLIT PISO-TETO 18000 BTU/H | C11: UN | D11: 3745.22 | E11: SINAPI-I
A12: 39839 | B12: !EM PROCESSO DE DESATIVACAO! AR-CONDICIONADO FRIO SPLIT PISO-TETO 24000 BTU/H | C12: UN | D12: 3912.91 | E12: SINAPI-I
A13: 39841 | B13: !EM PROCESSO DE DESATIVACAO! AR-CONDICIONADO FRIO SPLIT PISO-TETO 36000 BTU/H | C13: UN | D13: 5302.19 | E13: SINAPI-I
A14: 39842 | B14: !EM PROCESSO DE DESATIVACAO! AR-CONDICIONADO FRIO SPLIT PISO-TETO 48000 BTU/H | C14: UN | D14: 6735.76 | E14: SINAPI-I
A15: 39843 | B15: !EM PROCESSO DE DESATIVACAO! AR-CONDICIONADO FRIO SPLIT PISO-TETO 60000 BTU/H | C15: UN | D15: 7435.53 | E15: SINAPI-I
A16: 2404 | B16: !EM PROCESSO DE DESATIVACAO! DIVISORIA COLMEIA CEGA COM MONTANTE E RODAPE DE ALUMINIO ANODIZADO SIMPLES (SEM COLOCACAO) | C16: M2 | D16: 79 | E16: SINAPI-I
A17: 2720 | B17: !EM PROCESSO DE DESATIVACAO! ESCAVADEIRA DRAGA DE ARRASTE, CAP. 3/4 JC 140HP (INCL MANUTENCAO/OPERACAO) | C17: H | D17: 212.44 | E17: SINAPI-I
A18: 2719 | B18: !EM PROCESSO DE DESATIVACAO! ESCAVADEIRA HIDRAULICA SOBRE ESTEIRAS DE 99 HP, PESO OPERACIONAL DE *16* T E CAPACIDADE DE 0,85 A 1,00 M3 (LOCACAO COM OPERADOR, COMBUSTIVEL E MANUTENCAO) | C18: H | D18: 180 | E18: SINAPI-I
A19: 3378 | B19: !EM PROCESSO DE DESATIVACAO! HASTE DE ATERRAMENTO EM ACO COM 3,00 M DE COMPRIMENTO E DN = 3/4", REVESTIDA COM BAIXA CAMADA DE COBRE, SEM CONECTOR | C19: UN | D19: 57.34 | E19: SINAPI-I
A20: 3380 | B20: !EM PROCESSO DE DESATIVACAO! HASTE DE ATERRAMENTO EM ACO COM 3,00 M DE COMPRIMENTO E DN = 5/8", REVESTIDA COM BAIXA CAMADA DE COBRE, COM CONECTOR TIPO GRAMPO | C20: UN | D20: 40.14 | E20: SINAPI-I
A21: 3379 | B21: !EM PROCESSO DE DESATIVACAO! HASTE DE ATERRAMENTO EM ACO COM 3,00 M DE COMPRIMENTO E DN = 5/8", REVESTIDA COM BAIXA CAMADA DE COBRE, SEM CONECTOR | C21: UN | D21: 38.75 | E21: SINAPI-I
A22: 13382 | B22: !EM PROCESSO DE DESATIVACAO! LUMINARIA FECHADA P/ ILUMINACAO PUBLICA, TIPO ABL 50/F OU EQUIV, P/ LAMPADA A VAPOR DE MERCURIO 400W | C22: UN | D22: 179.65 | E22: SINAPI-I
A23: 4126 | B23: !EM PROCESSO DE DESATIVACAO! TERMINAL DE PORCELANA (MUFLA) UNIPOLAR, USO EXTERNO, TENSAO 3,6/6 KV, PARA CABO DE 10/16 MM2, COM ISOLAMENTO EPR | C23: UN | D23: 209.97 | E23: SINAPI-I
A24: 10615 | B24: !EM PROCESSO DE DESATIVACAO! VEICULO DE PASSEIO COM MOTOR 1.0 FLEX, POTENCIA 72/85 CV, 5 PORTAS, COR SOLIDA, BASICO | C24: UN | D24: 44225 | E24: SINAPI-I
A25: 21136 | B25: !EM PROCESSO DESATIVACAO! ELETRODUTO EM ACO GALVANIZADO ELETROLITICO, LEVE, DIAMETRO 1", PAREDE DE 0,90 MM | C25: M | D25: 11.84 | E25: SINAPI-I
A26: 21128 | B26: !EM PROCESSO DESATIVACAO! ELETRODUTO EM ACO GALVANIZADO ELETROLITICO, LEVE, DIAMETRO 3/4", PAREDE DE 0,90 MM | C26: M | D26: 9.16 | E26: SINAPI-I
A27: 21130 | B27: !EM PROCESSO DESATIVACAO! ELETRODUTO EM ACO GALVANIZADO ELETROLITICO, SEMI-PESADO, DIAMETRO 1 1/2", PAREDE DE 1,20 MM | C27: M | D27: 23.13 | E27: SINAPI-I
A28: 21135 | B28: !EM PROCESSO DESATIVACAO! ELETRODUTO EM ACO GALVANIZADO ELETROLITICO, SEMI-PESADO, DIAMETRO 1 1/4", PAREDE DE 1,20 MM | C28: M | D28: 22.77 | E28: SINAPI-I
A29: 38605 | B29: ABERTURA PARA ENCAIXE DE CUBA OU LAVATORIO EM BANCADA DE MARMORE/ GRANITO OU OUTRO TIPO DE PEDRA NATURAL | C29: UN | D29: 115.85 | E29: SINAPI-I
A30: 11270 | B30: ABRACADEIRA DE LATAO PARA FIXACAO DE CABO PARA-RAIO, DIMENSOES 32 X 24 X 24 MM | C30: UN | D30: 1.16 | E30: SINAPI-I
A31: 412 | B31: ABRACADEIRA DE NYLON PARA AMARRACAO DE CABOS, COMPRIMENTO DE *230* X *7,6* MM | C31: UN | D31: 1.02 | E31: SINAPI-I
A32: 414 | B32: ABRACADEIRA DE NYLON PARA AMARRACAO DE CABOS, COMPRIMENTO DE 100 X 2,5 MM | C32: UN | D32: 0.06 | E32: SINAPI-I
A33: 410 | B33: ABRACADEIRA DE NYLON PARA AMARRACAO DE CABOS, COMPRIMENTO DE 150 X *3,6* MM | C33: UN | D33: 0.15 | E33: SINAPI-I
A34: 411 | B34: ABRACADEIRA DE NYLON PARA AMARRACAO DE CABOS, COMPRIMENTO DE 200 X *4,6* MM | C34: UN | D34: 0.2 | E34: SINAPI-I
A35: 408 | B35: ABRACADEIRA DE NYLON PARA AMARRACAO DE CABOS, COMPRIMENTO DE 390 X *4,6* MM | C35: UN | D35: 0.99 | E35: SINAPI-I
A36: 39131 | B36: ABRACADEIRA EM ACO PARA AMARRACAO DE ELETRODUTOS, TIPO D, COM 1 1/2" E CUNHA DE FIXACAO | C36: UN | D36: 1.24 | E36: SINAPI-I
A37: 394 | B37: ABRACADEIRA EM ACO PARA AMARRACAO DE ELETRODUTOS, TIPO D, COM 1 1/2" E PARAFUSO DE FIXACAO | C37: UN | D37: 1.25 | E37: SINAPI-I
A38: 39130 | B38: ABRACADEIRA EM ACO PARA AMARRACAO DE ELETRODUTOS, TIPO D, COM 1 1/4" E CUNHA DE FIXACAO | C38: UN | D38: 1.13 | E38: SINAPI-I
A39: 395 | B39: ABRACADEIRA EM ACO PARA AMARRACAO DE ELETRODUTOS, TIPO D, COM 1 1/4" E PARAFUSO DE FIXACAO | C39: UN | D39: 1.21 | E39: SINAPI-I
A40: 39127 | B40: ABRACADEIRA EM ACO PARA AMARRACAO DE ELETRODUTOS, TIPO D, COM 1/2" E CUNHA DE FIXACAO | C40: UN | D40: 0.59 | E40: SINAPI-I
A41: 392 | B41: ABRACADEIRA EM ACO PARA AMARRACAO DE ELETRODUTOS, TIPO D, COM 1/2" E PARAFUSO DE FIXACAO | C41: UN | D41: 0.61 | E41: SINAPI-I
A42: 39129 | B42: ABRACADEIRA EM ACO PARA AMARRACAO DE ELETRODUTOS, TIPO D, COM 1" E CUNHA DE FIXACAO | C42: UN | D42: 0.69 | E42: SINAPI-I
A43: 393 | B43: ABRACADEIRA EM ACO PARA AMARRACAO DE ELETRODUTOS, TIPO D, COM 1" E PARAFUSO DE FIXACAO | C43: UN | D43: 0.73 | E43: SINAPI-I
A44: 39133 | B44: ABRACADEIRA EM ACO PARA AMARRACAO DE ELETRODUTOS, TIPO D, COM 2 1/2" E CUNHA DE FIXACAO | C44: UN | D44: 1.63 | E44: SINAPI-I
A45: 397 | B45: ABRACADEIRA EM ACO PARA AMARRACAO DE ELETRODUTOS, TIPO D, COM 2 1/2" E PARAFUSO DE FIXACAO | C45: UN | D45: 1.8 | E45: SINAPI-I
A46: 39132 | B46: ABRACADEIRA EM ACO PARA AMARRACAO DE ELETRODUTOS, TIPO D, COM 2" E CUNHA DE FIXACAO | C46: UN | D46: 1.3 | E46: SINAPI-I
A47: 396 | B47: ABRACADEIRA EM ACO PARA AMARRACAO DE ELETRODUTOS, TIPO D, COM 2" E PARAFUSO DE FIXACAO | C47: UN | D47: 1.39 | E47: SINAPI-I
A48: 39135 | B48: ABRACADEIRA EM ACO PARA AMARRACAO DE ELETRODUTOS, TIPO D, COM 3 1/2" E CUNHA DE FIXACAO | C48: UN | D48: 2.6 | E48: SINAPI-I
A49: 39128 | B49: ABRACADEIRA EM ACO PARA AMARRACAO DE ELETRODUTOS, TIPO D, COM 3/4" E CUNHA DE FIXACAO | C49: UN | D49: 0.65 | E49: SINAPI-I
A50: 400 | B50: ABRACADEIRA EM ACO PARA AMARRACAO DE ELETRODUTOS, TIPO D, COM 3/4" E PARAFUSO DE FIXACAO | C50: UN | D50: 0.63 | E50: SINAPI-I
A51: 39125 | B51: ABRACADEIRA EM ACO PARA AMARRACAO DE ELETRODUTOS, TIPO D, COM 3/8" E PARAFUSO DE FIXACAO | C51: UN | D51: 0.65 | E51: SINAPI-I
A52: 39134 | B52: ABRACADEIRA EM ACO PARA AMARRACAO DE ELETRODUTOS, TIPO D, COM 3" E CUNHA DE FIXACAO | C52: UN | D52: 2.17 | E52: SINAPI-I
A53: 398 | B53: ABRACADEIRA EM ACO PARA AMARRACAO DE ELETRODUTOS, TIPO D, COM 3" E PARAFUSO DE FIXACAO | C53: UN | D53: 2 | E53: SINAPI-I
A54: 39126 | B54: ABRACADEIRA EM ACO PARA AMARRACAO DE ELETRODUTOS, TIPO D, COM 4" E CUNHA DE FIXACAO | C54: UN | D54: 2.93 | E54: SINAPI-I
A55: 399 | B55: ABRACADEIRA EM ACO PARA AMARRACAO DE ELETRODUTOS, TIPO D, COM 4" E PARAFUSO DE FIXACAO | C55: UN | D55: 2.58 | E55: SINAPI-I
A56: 39158 | B56: ABRACADEIRA EM ACO PARA AMARRACAO DE ELETRODUTOS, TIPO ECONOMICA (GOTA), COM 8" | C56: UN | D56: 6.94 | E56: SINAPI-I
A57: 39141 | B57: ABRACADEIRA EM ACO PARA AMARRACAO DE ELETRODUTOS, TIPO U SIMPLES, COM 1 1/2" | C57: UN | D57: 0.5 | E57: SINAPI-I
A58: 39140 | B58: ABRACADEIRA EM ACO PARA AMARRACAO DE ELETRODUTOS, TIPO U SIMPLES, COM 1 1/4" | C58: UN | D58: 0.45 | E58: SINAPI-I
A59: 39137 | B59: ABRACADEIRA EM ACO PARA AMARRACAO DE ELETRODUTOS, TIPO U SIMPLES, COM 1/2" | C59: UN | D59: 0.26 | E59: SINAPI-I
A60: 39139 | B60: ABRACADEIRA EM ACO PARA AMARRACAO DE ELETRODUTOS, TIPO U SIMPLES, COM 1" | C60: UN | D60: 0.38 | E60: SINAPI-I
A61: 39143 | B61: ABRACADEIRA EM ACO PARA AMARRACAO DE ELETRODUTOS, TIPO U SIMPLES, COM 2 1/2" | C61: UN | D61: 1.04 | E61: SINAPI-I
A62: 39142 | B62: ABRACADEIRA EM ACO PARA AMARRACAO DE ELETRODUTOS, TIPO U SIMPLES, COM 2" | C62: UN | D62: 0.74 | E62: SINAPI-I
A63: 39138 | B63: ABRACADEIRA EM ACO PARA AMARRACAO DE ELETRODUTOS, TIPO U SIMPLES, COM 3/4" | C63: UN | D63: 0.27 | E63: SINAPI-I
A64: 39136 | B64: ABRACADEIRA EM ACO PARA AMARRACAO DE ELETRODUTOS, TIPO U SIMPLES, COM 3/8" | C64: UN | D64: 0.18 | E64: SINAPI-I
A65: 39144 | B65: ABRACADEIRA EM ACO PARA AMARRACAO DE ELETRODUTOS, TIPO U SIMPLES, COM 3" | C65: UN | D65: 1.21 | E65: SINAPI-I
A66: 39145 | B66: ABRACADEIRA EM ACO PARA AMARRACAO DE ELETRODUTOS, TIPO U SIMPLES, COM 4" | C66: UN | D66: 1.99 | E66: SINAPI-I
A67: 12615 | B67: ABRACADEIRA PVC, PARA CALHA PLUVIAL, DIAMETRO ENTRE 80 E 100 MM, PARA DRENAGEM PREDIAL | C67: UN | D67: 3.7 | E67: SINAPI-I
A68: 11927 | B68: ABRACADEIRA, GALVANIZADA/ZINCADA, ROSCA SEM FIM, PARAFUSO INOX, LARGURA FITA *12,6 A *14 MM, D = 2" A 2 1/2" | C68: UN | D68: 3.47 | E68: SINAPI-I
A69: 11928 | B69: ABRACADEIRA, GALVANIZADA/ZINCADA, ROSCA SEM FIM, PARAFUSO INOX, LARGURA FITA *12,6 A *14 MM, D = 3" A 3 3/4" | C69: UN | D69: 3.98 | E69: SINAPI-I
A70: 11929 | B70: ABRACADEIRA, GALVANIZADA/ZINCADA, ROSCA SEM FIM, PARAFUSO INOX, LARGURA FITA *12,6 A *14 MM, D = 4" A 4 3/4" | C70: UN | D70: 6.15 | E70: SINAPI-I
A71: 36801 | B71: ACABAMENTO CROMADO PARA REGISTRO PEQUENO, 1/2 " OU 3/4 " | C71: UN | D71: 22.91 | E71: SINAPI-I
A72: 36246 | B72: ACABAMENTO SIMPLES/CONVENCIONAL PARA FORRO PVC, TIPO "U" OU "C", COR BRANCA, COMPRIMENTO 6 M | C72: M | D72: 2.11 | E72: SINAPI-I
A73: 37600 | B73: ACESSORIO DE LIGACAO NAO ELETRICO PARA CARGAS EXPLOSIVAS, TUBO DE 6 M | C73: UN | D73: 51.99 | E73: SINAPI-I
A74: 37599 | B74: ACESSORIO INICIADOR NAO ELETRICO, TUBO DE 6 M, TEMPO DE RETARDO DE *160* MS | C74: UN | D74: 48.39 | E74: SINAPI-I
A75: 1 | B75: ACETILENO (RECARGA PARA CILINDRO DE CONJUNTO OXICORTE GRANDE) | C75: KG | D75: 40.75 | E75: SINAPI-I
A76: 3 | B76: ACIDO MURIATICO, DILUICAO 10% A 12% PARA USO EM LIMPEZA | C76: L | D76: 4.54 | E76: SINAPI-I
A77: 26 | B77: ACO CA-25, 10,0 MM, VERGALHAO | C77: KG | D77: 4.76 | E77: SINAPI-I
A78: 20 | B78: ACO CA-25, 12,5 MM, VERGALHAO | C78: KG | D78: 4.79 | E78: SINAPI-I
A79: 21 | B79: ACO CA-25, 16,0 MM, VERGALHAO | C79: KG | D79: 4.79 | E79: SINAPI-I
A80: 24 | B80: ACO CA-25, 20,0 MM, VERGALHAO | C80: KG | D80: 4.79 | E80: SINAPI-I
A81: 25 | B81: ACO CA-25, 25,0 MM, VERGALHAO | C81: KG | D81: 4.79 | E81: SINAPI-I
A82: 43065 | B82: ACO CA-25, 32,0 MM, BARRA DE TRANSFERENCIA (COLETADO CAIXA) | C82: KG | D82: 7.24 | E82: SINAPI-I
A83: 34341 | B83: ACO CA-25, 32,0 MM, VERGALHAO | C83: KG | D83: 4.51 | E83: SINAPI-I
A84: 22 | B84: ACO CA-25, 6,3 MM, VERGALHAO | C84: KG | D84: 5.13 | E84: SINAPI-I
A85: 23 | B85: ACO CA-25, 8,0 MM, VERGALHAO | C85: KG | D85: 5.08 | E85: SINAPI-I
A86: 34439 | B86: ACO CA-50, 10,0 MM, DOBRADO E CORTADO | C86: KG | D86: 5.61 | E86: SINAPI-I
A87: 34 | B87: ACO CA-50, 10,0 MM, VERGALHAO | C87: KG | D87: 4.99 | E87: SINAPI-I
A88: 34441 | B88: ACO CA-50, 12,5 MM, DOBRADO E CORTADO | C88: KG | D88: 5.32 | E88: SINAPI-I
A89: 31 | B89: ACO CA-50, 12,5 MM, VERGALHAO | C89: KG | D89: 4.75 | E89: SINAPI-I
A90: 34443 | B90: ACO CA-50, 16 MM, DOBRADO E CORTADO | C90: KG | D90: 5.32 | E90: SINAPI-I
A91: 27 | B91: ACO CA-50, 16,0 MM, VERGALHAO | C91: KG | D91: 4.75 | E91: SINAPI-I
A92: 34446 | B92: ACO CA-50, 20 MM, DOBRADO E CORTADO | C92: KG | D92: 5.32 | E92: SINAPI-I
A93: 29 | B93: ACO CA-50, 20,0 MM, VERGALHAO | C93: KG | D93: 4.44 | E93: SINAPI-I
A94: 28 | B94: ACO CA-50, 25,0 MM, VERGALHAO | C94: KG | D94: 5.13 | E94: SINAPI-I
A95: 34449 | B95: ACO CA-50, 6,3 MM, DOBRADO E CORTADO | C95: KG | D95: 5.86 | E95: SINAPI-I
A96: 32 | B96: ACO CA-50, 6,3 MM, VERGALHAO | C96: KG | D96: 5.23 | E96: SINAPI-I
A97: 33 | B97: ACO CA-50, 8,0 MM, VERGALHAO | C97: KG | D97: 5.87 | E97: SINAPI-I
A98: 34343 | B98: ACO CA-60, VERGALHAO, 9,5 MM | C98: KG | D98: 5.64 | E98: SINAPI-I
A99: 34452 | B99: ACO CA-60, 4,2 MM, DOBRADO E CORTADO | C99: KG | D99: 5.19 | E99: SINAPI-I
A100: 36 | B100: ACO CA-60, 4,2 MM, VERGALHAO | C100: KG | D100: 4.95 | E100: SINAPI-I
A101: 34456 | B101: ACO CA-60, 5,0 MM, DOBRADO E CORTADO | C101: KG | D101: 5.19 | E101: SINAPI-I
A102: 39 | B102: ACO CA-60, 5,0 MM, VERGALHAO | C102: KG | D102: 4.95 | E102: SINAPI-I
A103: 34457 | B103: ACO CA-60, 6,0 MM, DOBRADO E CORTADO | C103: KG | D103: 5.57 | E103: SINAPI-I
A104: 40 | B104: ACO CA-60, 6,0 MM, VERGALHAO | C104: KG | D104: 5.06 | E104: SINAPI-I
A105: 34460 | B105: ACO CA-60, 7,0 MM, DOBRADO E CORTADO | C105: KG | D105: 5.69 | E105: SINAPI-I
A106: 42 | B106: ACO CA-60, 7,0 MM, VERGALHAO | C106: KG | D106: 5.14 | E106: SINAPI-I
A107: 38 | B107: ACO CA-60, 8,0 MM, VERGALHAO | C107: KG | D107: 5.72 | E107: SINAPI-I
A108: 34344 | B108: ACO-FIO PARA PROTENSAO, CP-150 RB L, 8 MM | C108: KG | D108: 7.77 | E108: SINAPI-I
A109: 20063 | B109: ACOPLAMENTO DE CONDUTOR PLUVIAL, EM PVC, DIAMETRO ENTRE 80 E 100 MM, PARA DRENAGEM PREDIAL | C109: UN | D109: 3.68 | E109: SINAPI-I
A110: 40410 | B110: ACOPLAMENTO RIGIDO EM FERRO FUNDIDO PARA SISTEMA DE TUBULACAO RANHURADA, DN 50 MM (2") | C110: UN | D110: 13.58 | E110: SINAPI-I
A111: 40411 | B111: ACOPLAMENTO RIGIDO EM FERRO FUNDIDO PARA SISTEMA DE TUBULACAO RANHURADA, DN 65 MM (2 1/2") | C111: UN | D111: 14.73 | E111: SINAPI-I
A112: 40412 | B112: ACOPLAMENTO RIGIDO EM FERRO FUNDIDO PARA SISTEMA DE TUBULACAO RANHURADA, DN 80 MM (3") | C112: UN | D112: 16.54 | E112: SINAPI-I
A113: 38838 | B113: ADAPTADOR DE COBRE PARA TUBULACAO PEX, DN 16 X 15 MM | C113: UN | D113: 6.63 | E113: SINAPI-I
A114: 38839 | B114: ADAPTADOR DE COBRE PARA TUBULACAO PEX, DN 20 X 22 MM | C114: UN | D114: 7.81 | E114: SINAPI-I
A115: 55 | B115: ADAPTADOR DE COMPRESSAO EM POLIPROPILENO (PP), PARA TUBO EM PEAD, 20 MM X 1/2", PARA LIGACAO PREDIAL DE AGUA (NTS 179) | C115: UN | D115: 3 | E115: SINAPI-I
A116: 61 | B116: ADAPTADOR DE COMPRESSAO EM POLIPROPILENO (PP), PARA TUBO EM PEAD, 20 MM X 3/4", PARA LIGACAO PREDIAL DE AGUA (NTS 179) | C116: UN | D116: 2.83 | E116: SINAPI-I
A117: 62 | B117: ADAPTADOR DE COMPRESSAO EM POLIPROPILENO (PP), PARA TUBO EM PEAD, 32 MM X 1", PARA LIGACAO PREDIAL DE AGUA (NTS 179) | C117: UN | D117: 5.88 | E117: SINAPI-I
A118: 77 | B118: ADAPTADOR PVC PARA SIFAO METALICO, SOLDAVEL, COM ANEL BORRACHA (JE), 40 MM X 1 1/2" | C118: UN | D118: 0.7 | E118: SINAPI-I
A119: 76 | B119: ADAPTADOR PVC PARA SIFAO, ROSCAVEL, 40 MM X 1 1/4" | C119: UN | D119: 0.71 | E119: SINAPI-I
A120: 67 | B120: ADAPTADOR PVC ROSCAVEL, COM FLANGES E ANEL DE VEDACAO, 1/2", PARA CAIXA D' AGUA | C120: UN | D120: 6.86 | E120: SINAPI-I
A121: 71 | B121: ADAPTADOR PVC ROSCAVEL, COM FLANGES E ANEL DE VEDACAO, 1", PARA CAIXA D' AGUA | C121: UN | D121: 12.6 | E121: SINAPI-I
A122: 73 | B122: ADAPTADOR PVC ROSCAVEL, COM FLANGES E ANEL DE VEDACAO, 3/4", PARA CAIXA D' AGUA | C122: UN | D122: 9.41 | E122: SINAPI-I
A123: 103 | B123: ADAPTADOR PVC SOLDAVEL CURTO COM BOLSA E ROSCA, 110 MM X 4", PARA AGUA FRIA | C123: UN | D123: 27.99 | E123: SINAPI-I
A124: 107 | B124: ADAPTADOR PVC SOLDAVEL CURTO COM BOLSA E ROSCA, 20 MM X 1/2", PARA AGUA FRIA | C124: UN | D124: 0.43 | E124: SINAPI-I
A125: 65 | B125: ADAPTADOR PVC SOLDAVEL CURTO COM BOLSA E ROSCA, 25 MM X 3/4", PARA AGUA FRIA | C125: UN | D125: 0.54 | E125: SINAPI-I
A126: 108 | B126: ADAPTADOR PVC SOLDAVEL CURTO COM BOLSA E ROSCA, 32 MM X 1", PARA AGUA FRIA | C126: UN | D126: 1.11 | E126: SINAPI-I
A127: 110 | B127: ADAPTADOR PVC SOLDAVEL CURTO COM BOLSA E ROSCA, 40 MM X 1 1/2", PARA AGUA FRIA | C127: UN | D127: 4.32 | E127: SINAPI-I
A128: 109 | B128: ADAPTADOR PVC SOLDAVEL CURTO COM BOLSA E ROSCA, 40 MM X 1 1/4", PARA AGUA FRIA | C128: UN | D128: 2.13 | E128: SINAPI-I
A129: 111 | B129: ADAPTADOR PVC SOLDAVEL CURTO COM BOLSA E ROSCA, 50 MM X 1 1/4", PARA AGUA FRIA | C129: UN | D129: 4.98 | E129: SINAPI-I
A130: 112 | B130: ADAPTADOR PVC SOLDAVEL CURTO COM BOLSA E ROSCA, 50 MM X1 1/2", PARA AGUA FRIA | C130: UN | D130: 2.71 | E130: SINAPI-I
A131: 113 | B131: ADAPTADOR PVC SOLDAVEL CURTO COM BOLSA E ROSCA, 60 MM X 2", PARA AGUA FRIA | C131: UN | D131: 7.36 | E131: SINAPI-I
A132: 104 | B132: ADAPTADOR PVC SOLDAVEL CURTO COM BOLSA E ROSCA, 75 MM X 2 1/2", PARA AGUA FRIA | C132: UN | D132: 10.71 | E132: SINAPI-I
A133: 102 | B133: ADAPTADOR PVC SOLDAVEL CURTO COM BOLSA E ROSCA, 85 MM X 3", PARA AGUA FRIA | C133: UN | D133: 17.58 | E133: SINAPI-I
A134: 95 | B134: ADAPTADOR PVC SOLDAVEL, COM FLANGE E ANEL DE VEDACAO, 20 MM X 1/2", PARA CAIXA D'AGUA | C134: UN | D134: 5.95 | E134: SINAPI-I
A135: 96 | B135: ADAPTADOR PVC SOLDAVEL, COM FLANGE E ANEL DE VEDACAO, 25 MM X 3/4", PARA CAIXA D'AGUA | C135: UN | D135: 6.84 | E135: SINAPI-I
A136: 97 | B136: ADAPTADOR PVC SOLDAVEL, COM FLANGE E ANEL DE VEDACAO, 32 MM X 1", PARA CAIXA D'AGUA | C136: UN | D136: 8.88 | E136: SINAPI-I
A137: 98 | B137: ADAPTADOR PVC SOLDAVEL, COM FLANGE E ANEL DE VEDACAO, 40 MM X 1 1/4", PARA CAIXA D'AGUA | C137: UN | D137: 11.98 | E137: SINAPI-I
A138: 99 | B138: ADAPTADOR PVC SOLDAVEL, COM FLANGE E ANEL DE VEDACAO, 50 MM X 1 1/2", PARA CAIXA D'AGUA | C138: UN | D138: 14.53 | E138: SINAPI-I
A139: 100 | B139: ADAPTADOR PVC SOLDAVEL, COM FLANGES E ANEL DE VEDACAO, 60 MM X 2", PARA CAIXA D' AGUA | C139: UN | D139: 20.26 | E139: SINAPI-I
A140: 75 | B140: ADAPTADOR PVC SOLDAVEL, COM FLANGES LIVRES, 110 MM X 4", PARA CAIXA D' AGUA | C140: UN | D140: 211.23 | E140: SINAPI-I
A141: 114 | B141: ADAPTADOR PVC SOLDAVEL, COM FLANGES LIVRES, 25 MM X 3/4", PARA CAIXA D' AGUA | C141: UN | D141: 7.7 | E141: SINAPI-I
A142: 68 | B142: ADAPTADOR PVC SOLDAVEL, COM FLANGES LIVRES, 32 MM X 1", PARA CAIXA D' AGUA | C142: UN | D142: 11.77 | E142: SINAPI-I
A143: 86 | B143: ADAPTADOR PVC SOLDAVEL, COM FLANGES LIVRES, 40 MM X 1 1/4", PARA CAIXA D' AGUA | C143: UN | D143: 21.88 | E143: SINAPI-I
A144: 66 | B144: ADAPTADOR PVC SOLDAVEL, COM FLANGES LIVRES, 50 MM X 1 1/2", PARA CAIXA D' AGUA | C144: UN | D144: 21.96 | E144: SINAPI-I
A145: 69 | B145: ADAPTADOR PVC SOLDAVEL, COM FLANGES LIVRES, 60 MM X 2", PARA CAIXA D' AGUA | C145: UN | D145: 33.56 | E145: SINAPI-I
A146: 83 | B146: ADAPTADOR PVC SOLDAVEL, COM FLANGES LIVRES, 75 MM X 2 1/2", PARA CAIXA D' AGUA | C146: UN | D146: 107.2 | E146: SINAPI-I
A147: 74 | B147: ADAPTADOR PVC SOLDAVEL, COM FLANGES LIVRES, 85 MM X 3", PARA CAIXA D' AGUA | C147: UN | D147: 149.66 | E147: SINAPI-I
A148: 106 | B148: ADAPTADOR PVC SOLDAVEL, LONGO, COM FLANGE LIVRE, 110 MM X 4", PARA CAIXA D' AGUA | C148: UN | D148: 227.36 | E148: SINAPI-I
A149: 87 | B149: ADAPTADOR PVC SOLDAVEL, LONGO, COM FLANGE LIVRE, 25 MM X 3/4", PARA CAIXA D' AGUA | C149: UN | D149: 10.8 | E149: SINAPI-I
A150: 88 | B150: ADAPTADOR PVC SOLDAVEL, LONGO, COM FLANGE LIVRE, 32 MM X 1", PARA CAIXA D' AGUA | C150: UN | D150: 12.06 | E150: SINAPI-I
A151: 89 | B151: ADAPTADOR PVC SOLDAVEL, LONGO, COM FLANGE LIVRE, 40 MM X 1 1/4", PARA CAIXA D' AGUA | C151: UN | D151: 17.83 | E151: SINAPI-I
A152: 90 | B152: ADAPTADOR PVC SOLDAVEL, LONGO, COM FLANGE LIVRE, 50 MM X 1 1/2", PARA CAIXA D' AGUA | C152: UN | D152: 20.43 | E152: SINAPI-I
A153: 81 | B153: ADAPTADOR PVC SOLDAVEL, LONGO, COM FLANGE LIVRE, 60 MM X 2", PARA CAIXA D' AGUA | C153: UN | D153: 34.94 | E153: SINAPI-I
A154: 82 | B154: ADAPTADOR PVC SOLDAVEL, LONGO, COM FLANGE LIVRE, 75 MM X 2 1/2", PARA CAIXA D' AGUA | C154: UN | D154: 135.66 | E154: SINAPI-I
A155: 105 | B155: ADAPTADOR PVC SOLDAVEL, LONGO, COM FLANGE LIVRE, 85 MM X 3", PARA CAIXA D' AGUA | C155: UN | D155: 158.82 | E155: SINAPI-I
A156: 60 | B156: ADAPTADOR PVC, COM REGISTRO, PARA PEAD, 20 MM X 3/4", PARA LIGACAO PREDIAL DE AGUA | C156: UN | D156: 3.89 | E156: SINAPI-I
A157: 72 | B157: ADAPTADOR PVC, ROSCAVEL, COM FLANGES E ANEL DE VEDACAO, 1 1/2", PARA CAIXA D'AGUA | C157: UN | D157: 21.36 | E157: SINAPI-I
A158: 70 | B158: ADAPTADOR PVC, ROSCAVEL, COM FLANGES E ANEL DE VEDACAO, 1 1/4", PARA CAIXA D' AGUA | C158: UN | D158: 17.86 | E158: SINAPI-I
A159: 85 | B159: ADAPTADOR PVC, ROSCAVEL, COM FLANGES E ANEL DE VEDACAO, 2", PARA CAIXA D' AGUA | C159: UN | D159: 25.93 | E159: SINAPI-I
A160: 84 | B160: ADAPTADOR PVC, ROSCAVEL, PARA VALVULA PIA OU LAVATORIO, 40 MM | C160: UN | D160: 0.3 | E160: SINAPI-I
A161: 37997 | B161: ADAPTADOR, CPVC, SOLDAVEL, 15 MM, PARA AGUA QUENTE | C161: UN | D161: 4.48 | E161: SINAPI-I
A162: 37998 | B162: ADAPTADOR, CPVC, SOLDAVEL, 22 MM, PARA AGUA QUENTE | C162: UN | D162: 4.64 | E162: SINAPI-I
A163: 10899 | B163: ADAPTADOR, EM LATAO, ENGATE RAPIDO 2 1/2" X ROSCA INTERNA 5 FIOS 2 1/2", PARA INSTALACAO PREDIAL DE COMBATE A INCENDIO | C163: UN | D163: 31.31 | E163: SINAPI-I
A164: 10900 | B164: ADAPTADOR, EM LATAO, ENGATE RAPIDO1 1/2" X ROSCA INTERNA 5 FIOS 2 1/2", PARA INSTALACAO PREDIAL DE COMBATE A INCENDIO | C164: UN | D164: 24.5 | E164: SINAPI-I
A165: 46 | B165: ADAPTADOR, PVC PBA, BOLSA/ROSCA, JE, DN 75 / DE 85 MM | C165: UN | D165: 28.32 | E165: SINAPI-I
A166: 51 | B166: ADAPTADOR, PVC PBA, A BOLSA DEFOFO, JE, DN 100 / DE 110 MM | C166: UN | D166: 78.13 | E166: SINAPI-I
A167: 12863 | B167: ADAPTADOR, PVC PBA, A BOLSA DEFOFO, JE, DN 50 / DE 60 MM | C167: UN | D167: 17.99 | E167: SINAPI-I
A168: 50 | B168: ADAPTADOR, PVC PBA, A BOLSA DEFOFO, JE, DN 75 / DE 85 MM | C168: UN | D168: 40.8 | E168: SINAPI-I
A169: 47 | B169: ADAPTADOR, PVC PBA, BOLSA/ROSCA, JE, DN 100 / DE 110 MM | C169: UN | D169: 48.42 | E169: SINAPI-I
A170: 48 | B170: ADAPTADOR, PVC PBA, BOLSA/ROSCA, JE, DN 50 / DE 60 MM | C170: UN | D170: 12.63 | E170: SINAPI-I
A171: 52 | B171: ADAPTADOR, PVC PBA, PONTA/ROSCA, JE, DN 50 / DE 60 MM | C171: UN | D171: 9.59 | E171: SINAPI-I
A172: 43 | B172: ADAPTADOR, PVC PBA, PONTA/ROSCA, JE, DN 75 / DE 85 MM | C172: UN | D172: 32.39 | E172: SINAPI-I
A173: 4791 | B173: ADESIVO ACRILICO/COLA DE CONTATO | C173: KG | D173: 19.16 | E173: SINAPI-I
A174: 157 | B174: ADESIVO ESTRUTURAL A BASE DE RESINA EPOXI PARA INJECAO EM TRINCAS, BICOMPONENTE, BAIXA VISCOSIDADE | C174: KG | D174: 86.32 | E174: SINAPI-I
A175: 156 | B175: ADESIVO ESTRUTURAL A BASE DE RESINA EPOXI, BICOMPONENTE, FLUIDO | C175: KG | D175: 38.53 | E175: SINAPI-I
A176: 131 | B176: ADESIVO ESTRUTURAL A BASE DE RESINA EPOXI, BICOMPONENTE, PASTOSO (TIXOTROPICO) | C176: KG | D176: 36.99 | E176: SINAPI-I
A177: 39719 | B177: ADESIVO LIQUIDO A BASE DE RESINAS PARA COLAGEM DE ESPUMA DE ISOLAMENTO TERMICO FLEXIVEL | C177: L | D177: 63.88 | E177: SINAPI-I
A178: 21114 | B178: ADESIVO PARA TUBOS CPVC, *75* G | C178: UN | D178: 13.68 | E178: SINAPI-I
A179: 119 | B179: ADESIVO PLASTICO PARA PVC, BISNAGA COM 75 GR | C179: UN | D179: 5.4 | E179: SINAPI-I
A180: 20080 | B180: ADESIVO PLASTICO PARA PVC, FRASCO COM 175 GR | C180: UN | D180: 15.48 | E180: SINAPI-I
A181: 122 | B181: ADESIVO PLASTICO PARA PVC, FRASCO COM 850 GR | C181: UN | D181: 48.78 | E181: SINAPI-I
A182: 3410 | B182: ADESIVO/COLA PARA EPS (ISOPOR) E OUTROS MATERIAIS | C182: KG | D182: 18.72 | E182: SINAPI-I
A183: 124 | B183: ADITIVO ACELERADOR DE PEGA E ENDURECIMENTO PARA ARGAMASSAS E CONCRETOS | C183: L | D183: 9.61 | E183: SINAPI-I
A184: 7334 | B184: ADITIVO ADESIVO LIQUIDO PARA ARGAMASSAS DE REVESTIMENTOS CIMENTICIOS | C184: L | D184: 9.48 | E184: SINAPI-I
A185: 7325 | B185: ADITIVO IMPERMEABILIZANTE DE PEGA NORMAL PARA ARGAMASSAS E CONCRETOS SEM ARMACAO | C185: KG | D185: 4.44 | E185: SINAPI-I
A186: 123 | B186: ADITIVO IMPERMEABILIZANTE DE PEGA NORMAL PARA ARGAMASSAS E CONCRETOS SEM ARMACAO | C186: L | D186: 4.27 | E186: SINAPI-I
A187: 127 | B187: ADITIVO IMPERMEABILIZANTE DE PEGA ULTRARRAPIDA | C187: L | D187: 10.03 | E187: SINAPI-I
A188: 133 | B188: ADITIVO LIQUIDO INCORPORADOR DE AR PARA CONCRETO E ARGAMASSA | C188: L | D188: 4.3 | E188: SINAPI-I
A189: 37538 | B189: ADITIVO PLASTIFICANTE E ESTABILIZADOR PARA ARGAMASSAS DE ASSENTAMENTO E REBOCO | C189: 18L | D189: 106.9 | E189: SINAPI-I
A190: 132 | B190: ADITIVO PLASTIFICANTE RETARDADOR DE PEGA E REDUTOR DE AGUA PARA CONCRETO | C190: L | D190: 4.74 | E190: SINAPI-I
A191: 13408 | B191: ADITIVO SUPERPLASTIFICANTE DE PEGA NORMAL PARA CONCRETO (TAMBOR 200 KG) | C191: 200KG | D191: 1684.16 | E191: SINAPI-I
A192: 37476 | B192: ADUELA/GALERIA DE CONCRETO ARMADO, SECAO RETANGULAR 1.50 X 1.50 M (L X A), C = 1.00 M, E = 20 CM | C192: UN | D192: 1513.15 | E192: SINAPI-I
A193: 37478 | B193: ADUELA/GALERIA DE CONCRETO ARMADO, SECAO RETANGULAR 2.00 X 2.00 M (L X A), C = 1.00 M, E = 20 CM | C193: UN | D193: 2140.71 | E193: SINAPI-I
A194: 37477 | B194: ADUELA/GALERIA DE CONCRETO ARMADO, SECAO RETANGULAR 2.50 X 2.50 M (L X A), C = 1.00 M, E = 20 CM | C194: UN | D194: 2619.47 | E194: SINAPI-I
A195: 37479 | B195: ADUELA/GALERIA DE CONCRETO ARMADO, SECAO RETANGULAR 3.00 X 3.00 M (L X A), C = 1.00 M, E = 20 CM | C195: UN | D195: 3275.35 | E195: SINAPI-I
A196: 4319 | B196: AFASTADOR PARA TELHA DE FIBROCIMENTO CANALETE 90 OU KALHETAO | C196: UN | D196: 1.11 | E196: SINAPI-I
A197: 43064 | B197: AGENTE DE CURA, PROTETOR DA EVAPORACAO DA AGUA DE HIDRATACAO DO CONCRETO (COLETADO CAIXA) | C197: KG | D197: 6.14 | E197: SINAPI-I
A198: 40553 | B198: AGREGADO RECICLADO, TIPO RACHAO RECICLADO CINZA, CLASSE A | C198: M3 | D198: 31.58 | E198: SINAPI-I
A199: 13003 | B199: AGUA SANITARIA | C199: L | D199: 2.24 | E199: SINAPI-I
A200: 6114 | B200: AJUDANTE DE ARMADOR | C200: H | D200: 13.54 | E200: SINAPI-I
A201: 40912 | B201: AJUDANTE DE ARMADOR (MENSALISTA) | C201: MES | D201: 2395.09 | E201: SINAPI-I
A202: 247 | B202: AJUDANTE DE ELETRICISTA | C202: H | D202: 18.25 | E202: SINAPI-I
A203: 40919 | B203: AJUDANTE DE ELETRICISTA (MENSALISTA) | C203: MES | D203: 3229.21 | E203: SINAPI-I
A204: 25958 | B204: AJUDANTE DE ESTRUTURAS METALICAS | C204: H | D204: 14.27 | E204: SINAPI-I
... 12028 more rows

Sheet DADOS GERAIS
A1: NOME PROJETO | B1: REFORMA CÂMARA DE VEREADORES DE AGRONÔMICA
A2: PROPRIETÁRIO | B2: CÂMARA DE VEREADORES DE AGRONÔMICA
A3: ENDEREÇO | B3: RUA LEOPOLDO DA CUNHA
A4: BAIRRO | B4: BAIRRO CENTRO
A5: CIDADE | B5: AGRONÔMICA/SC
A6: DESCRIÇÃO | B6: Reforma da câmara de vereadores dos itens compreendidos nos projetos e orçamento.
A7: EXTENSÃO | B7: 293.71
A8: BDI | B8: ='BDI 20,34%'!C28 -> 0.2034
A9: DATA ORÇAMENTO | B9: JULHO 2019
A10: REFERENCIA | B10: =FONTE!A2 -> SINAPI - JUNHO/2019 - SEM DESONERAÇÃO
